Transaction Date,Local Authority Department,Beneficiary,Purpose of Expenditure,Amount (excluding VAT),Non Recoverable VAT,Merchant Category
 12-12-2023,oneSource Non-Shared LBH,Oracle Corporation UK Ltd,Ict Software,1475.45,0.00,COMMERCIAL SUPPLIER 
 21-12-2023,oneSource Non-Shared LBH,Financial Data Management PLC,Printing,1642.07,0.00,COMMERCIAL SUPPLIER 
 12-12-2023,oneSource Non-Shared LBH,Oracle Corporation UK Ltd,Ict Software,1786.74,0.00,COMMERCIAL SUPPLIER 
 12-12-2023,oneSource Non-Shared LBH,Oracle Corporation UK Ltd,Ict Software,1797.08,0.00,COMMERCIAL SUPPLIER 
 07-12-2023,oneSource Non-Shared LBH,Computershare Voucher Services,Private Contractors Payment - Other,1819.52,0.00,COMMERCIAL SUPPLIER 
 15-12-2023,oneSource Non-Shared LBH,Financial Data Management PLC,Printing,3466.08,0.00,COMMERCIAL SUPPLIER 
 19-12-2023,oneSource Non-Shared LBH,London Riverside Bid Ltd,Consultancy Fees,4455.26,0.00,COMMERCIAL SUPPLIER 
 12-12-2023,oneSource Non-Shared LBH,Oracle Corporation UK Ltd,Ict Software,8937.73,0.00,COMMERCIAL SUPPLIER 
 12-12-2023,oneSource Non-Shared LBH,Oracle Corporation UK Ltd,Ict Software,100926.62,0.00,COMMERCIAL SUPPLIER 
 15-12-2023,oneSource Non-Shared LBH,Romford Town Management Partnership Ltd,Consultancy Fees,136890.52,0.00,NON COMMERCIAL SUPPLIER 
 06-12-2023,oneSource Non-Shared LBH,Department for Energy Security and Net Zero,Private Contractors Payment - Other,829600.00,0.00,COMMERCIAL SUPPLIER 
 11-12-2023,oneSource Shared,EBB Office Ltd,Stationery,560.00,0.00,COMMERCIAL SUPPLIER 
 11-12-2023,oneSource Shared,EBB Office Ltd,Stationery,560.00,0.00,COMMERCIAL SUPPLIER 
 20-12-2023,oneSource Shared,Personal Information - Redacted,Ict Software,611.73,0.00,Employee 
 28-12-2023,oneSource Shared,Matrix SCM Ltd,Agency Staff,639.69,0.00,COMMERCIAL SUPPLIER 
 06-12-2023,oneSource Shared,Matrix SCM Ltd,Agency Staff,648.78,0.00,COMMERCIAL SUPPLIER 
 20-12-2023,oneSource Shared,Matrix SCM Ltd,Agency Staff,652.08,0.00,COMMERCIAL SUPPLIER 
 28-12-2023,oneSource Shared,Matrix SCM Ltd,Agency Staff,680.96,0.00,COMMERCIAL SUPPLIER 
 28-12-2023,oneSource Shared,Matrix SCM Ltd,Agency Staff,704.99,0.00,COMMERCIAL SUPPLIER 
 06-12-2023,oneSource Shared,Matrix SCM Ltd,Agency Staff,705.28,0.00,COMMERCIAL SUPPLIER 
 13-12-2023,oneSource Shared,Matrix SCM Ltd,Agency Staff,707.76,0.00,COMMERCIAL SUPPLIER 
 06-12-2023,oneSource Shared,Matrix SCM Ltd,Agency Staff,731.87,0.00,COMMERCIAL SUPPLIER 
 13-12-2023,oneSource Shared,Matrix SCM Ltd,Agency Staff,731.87,0.00,COMMERCIAL SUPPLIER 
 20-12-2023,oneSource Shared,Matrix SCM Ltd,Agency Staff,731.87,0.00,COMMERCIAL SUPPLIER 
 06-12-2023,oneSource Shared,Matrix SCM Ltd,Agency Staff,732.96,0.00,COMMERCIAL SUPPLIER 
 13-12-2023,oneSource Shared,Matrix SCM Ltd,Agency Staff,732.96,0.00,COMMERCIAL SUPPLIER 
 20-12-2023,oneSource Shared,Matrix SCM Ltd,Agency Staff,732.96,0.00,COMMERCIAL SUPPLIER 
 28-12-2023,oneSource Shared,Matrix SCM Ltd,Agency Staff,732.96,0.00,COMMERCIAL SUPPLIER 
 06-12-2023,oneSource Shared,Matrix SCM Ltd,Agency Staff,748.10,0.00,COMMERCIAL SUPPLIER 
 13-12-2023,oneSource Shared,Matrix SCM Ltd,Agency Staff,748.10,0.00,COMMERCIAL SUPPLIER 
 20-12-2023,oneSource Shared,Matrix SCM Ltd,Agency Staff,748.10,0.00,COMMERCIAL SUPPLIER 
 28-12-2023,oneSource Shared,Matrix SCM Ltd,Agency Staff,748.10,0.00,COMMERCIAL SUPPLIER 
 20-12-2023,oneSource Shared,Matrix SCM Ltd,Agency Staff,776.28,0.00,COMMERCIAL SUPPLIER 
 20-12-2023,oneSource Shared,Matrix SCM Ltd,Agency Staff,778.94,0.00,COMMERCIAL SUPPLIER 
 13-12-2023,oneSource Shared,Matrix SCM Ltd,Agency Staff,790.40,0.00,COMMERCIAL SUPPLIER 
 06-12-2023,oneSource Shared,Matrix SCM Ltd,Agency Staff,790.56,0.00,COMMERCIAL SUPPLIER 
 13-12-2023,oneSource Shared,Matrix SCM Ltd,Agency Staff,790.56,0.00,COMMERCIAL SUPPLIER 
 06-12-2023,oneSource Shared,Matrix SCM Ltd,Agency Staff,801.01,0.00,COMMERCIAL SUPPLIER 
 20-12-2023,oneSource Shared,Matrix SCM Ltd,Agency Staff,801.01,0.00,COMMERCIAL SUPPLIER 
 13-12-2023,oneSource Shared,Matrix SCM Ltd,Agency Staff,801.02,0.00,COMMERCIAL SUPPLIER 
 06-12-2023,oneSource Shared,Matrix SCM Ltd,Agency Staff,817.22,0.00,COMMERCIAL SUPPLIER 
 13-12-2023,oneSource Shared,Matrix SCM Ltd,Agency Staff,817.22,0.00,COMMERCIAL SUPPLIER 
 06-12-2023,oneSource Shared,Matrix SCM Ltd,Agency Staff,818.28,0.00,COMMERCIAL SUPPLIER 
 13-12-2023,oneSource Shared,Matrix SCM Ltd,Agency Staff,818.28,0.00,COMMERCIAL SUPPLIER 
 20-12-2023,oneSource Shared,Matrix SCM Ltd,Agency Staff,827.42,0.00,COMMERCIAL SUPPLIER 
 21-12-2023,oneSource Shared,Cadline Ltd,Surveys,835.00,0.00,COMMERCIAL SUPPLIER 
 13-12-2023,oneSource Shared,Matrix SCM Ltd,Agency Staff,839.04,0.00,COMMERCIAL SUPPLIER 
 20-12-2023,oneSource Shared,Matrix SCM Ltd,Agency Staff,846.72,0.00,COMMERCIAL SUPPLIER 
 06-12-2023,oneSource Shared,Matrix SCM Ltd,Agency Staff,851.20,0.00,COMMERCIAL SUPPLIER 
 06-12-2023,oneSource Shared,Matrix SCM Ltd,Agency Staff,851.20,0.00,COMMERCIAL SUPPLIER 
 06-12-2023,oneSource Shared,Matrix SCM Ltd,Agency Staff,851.20,0.00,COMMERCIAL SUPPLIER 
 13-12-2023,oneSource Shared,Matrix SCM Ltd,Agency Staff,851.20,0.00,COMMERCIAL SUPPLIER 
 20-12-2023,oneSource Shared,Matrix SCM Ltd,Agency Staff,851.20,0.00,COMMERCIAL SUPPLIER 
 13-12-2023,oneSource Shared,Matrix SCM Ltd,Agency Staff,854.24,0.00,COMMERCIAL SUPPLIER 
 20-12-2023,oneSource Shared,Matrix SCM Ltd,Agency Staff,873.73,0.00,COMMERCIAL SUPPLIER 
 28-12-2023,oneSource Shared,Matrix SCM Ltd,Agency Staff,873.73,0.00,COMMERCIAL SUPPLIER 
 20-12-2023,oneSource Shared,Matrix SCM Ltd,Agency Staff,875.16,0.00,COMMERCIAL SUPPLIER 
 14-12-2023,oneSource Shared,Matrix SCM Ltd,Consultancy Fees,894.69,0.00,COMMERCIAL SUPPLIER 
 06-12-2023,oneSource Shared,Matrix SCM Ltd,Agency Staff,970.56,0.00,COMMERCIAL SUPPLIER 
 13-12-2023,oneSource Shared,Matrix SCM Ltd,Agency Staff,970.56,0.00,COMMERCIAL SUPPLIER 
 20-12-2023,oneSource Shared,Matrix SCM Ltd,Agency Staff,970.56,0.00,COMMERCIAL SUPPLIER 
 28-12-2023,oneSource Shared,Matrix SCM Ltd,Agency Staff,970.56,0.00,COMMERCIAL SUPPLIER 
 08-12-2023,oneSource Shared,Associated Consultants Ltd,Ict Software,990.00,0.00,COMMERCIAL SUPPLIER 
 21-12-2023,oneSource Shared,Cadline Ltd,Surveys,1110.00,0.00,COMMERCIAL SUPPLIER 
 20-12-2023,oneSource Shared,Matrix SCM Ltd,Agency Staff,1158.52,0.00,COMMERCIAL SUPPLIER 
 06-12-2023,oneSource Shared,Matrix SCM Ltd,Agency Staff,1182.02,0.00,COMMERCIAL SUPPLIER 
 20-12-2023,oneSource Shared,Matrix SCM Ltd,Agency Staff,1182.02,0.00,COMMERCIAL SUPPLIER 
 20-12-2023,oneSource Shared,Matrix SCM Ltd,Agency Staff,1189.80,0.00,COMMERCIAL SUPPLIER 
 28-12-2023,oneSource Shared,Matrix SCM Ltd,Agency Staff,1189.80,0.00,COMMERCIAL SUPPLIER 
 06-12-2023,oneSource Shared,Matrix SCM Ltd,Agency Staff,1189.81,0.00,COMMERCIAL SUPPLIER 
 21-12-2023,oneSource Shared,Cadline Ltd,Surveys,1250.00,0.00,COMMERCIAL SUPPLIER 
 13-12-2023,oneSource Shared,Matrix SCM Ltd,Agency Staff,1717.55,0.00,COMMERCIAL SUPPLIER 
 06-12-2023,oneSource Shared,Matrix SCM Ltd,Agency Staff,1717.56,0.00,COMMERCIAL SUPPLIER 
 20-12-2023,oneSource Shared,Matrix SCM Ltd,Agency Staff,1717.56,0.00,COMMERCIAL SUPPLIER 
 28-12-2023,oneSource Shared,Matrix SCM Ltd,Agency Staff,1717.57,0.00,COMMERCIAL SUPPLIER 
 06-12-2023,oneSource Shared,Matrix SCM Ltd,Agency Staff,1720.80,0.00,COMMERCIAL SUPPLIER 
 13-12-2023,oneSource Shared,Matrix SCM Ltd,Agency Staff,1720.80,0.00,COMMERCIAL SUPPLIER 
 20-12-2023,oneSource Shared,Matrix SCM Ltd,Agency Staff,1720.80,0.00,COMMERCIAL SUPPLIER 
 28-12-2023,oneSource Shared,Matrix SCM Ltd,Agency Staff,1720.80,0.00,COMMERCIAL SUPPLIER 
 06-12-2023,oneSource Shared,Matrix SCM Ltd,Agency Staff,1746.37,0.00,COMMERCIAL SUPPLIER 
 13-12-2023,oneSource Shared,Matrix SCM Ltd,Agency Staff,1746.37,0.00,COMMERCIAL SUPPLIER 
 20-12-2023,oneSource Shared,Matrix SCM Ltd,Agency Staff,1746.37,0.00,COMMERCIAL SUPPLIER 
 13-12-2023,oneSource Shared,Matrix SCM Ltd,Agency Staff,1815.48,0.00,COMMERCIAL SUPPLIER 
 06-12-2023,oneSource Shared,Matrix SCM Ltd,Agency Staff,1815.49,0.00,COMMERCIAL SUPPLIER 
 20-12-2023,oneSource Shared,Matrix SCM Ltd,Agency Staff,1815.49,0.00,COMMERCIAL SUPPLIER 
 13-12-2023,oneSource Shared,Matrix SCM Ltd,Agency Staff,1865.90,0.00,COMMERCIAL SUPPLIER 
 20-12-2023,oneSource Shared,Matrix SCM Ltd,Agency Staff,1865.90,0.00,COMMERCIAL SUPPLIER 
 06-12-2023,oneSource Shared,Matrix SCM Ltd,Agency Staff,1865.92,0.00,COMMERCIAL SUPPLIER 
 06-12-2023,oneSource Shared,Matrix SCM Ltd,Agency Staff,1887.49,0.00,COMMERCIAL SUPPLIER 
 28-12-2023,oneSource Shared,Matrix SCM Ltd,Agency Staff,1887.49,0.00,COMMERCIAL SUPPLIER 
 13-12-2023,oneSource Shared,Matrix SCM Ltd,Agency Staff,1948.34,0.00,COMMERCIAL SUPPLIER 
 20-12-2023,oneSource Shared,Matrix SCM Ltd,Agency Staff,1975.45,0.00,COMMERCIAL SUPPLIER 
 07-12-2023,oneSource Shared,Matrix SCM Ltd,Consultancy Fees,1993.88,0.00,COMMERCIAL SUPPLIER 
 20-12-2023,oneSource Shared,Matrix SCM Ltd,Agency Staff,2097.20,0.00,COMMERCIAL SUPPLIER 
 13-12-2023,oneSource Shared,Matrix SCM Ltd,Agency Staff,2097.21,0.00,COMMERCIAL SUPPLIER 
 06-12-2023,oneSource Shared,Matrix SCM Ltd,Agency Staff,2493.95,0.00,COMMERCIAL SUPPLIER 
 20-12-2023,oneSource Shared,Matrix SCM Ltd,Agency Staff,2493.95,0.00,COMMERCIAL SUPPLIER 
 06-12-2023,oneSource Shared,Matrix SCM Ltd,Agency Staff,2546.00,0.00,COMMERCIAL SUPPLIER 
 13-12-2023,oneSource Shared,Matrix SCM Ltd,Agency Staff,2546.00,0.00,COMMERCIAL SUPPLIER 
 20-12-2023,oneSource Shared,Matrix SCM Ltd,Agency Staff,2546.00,0.00,COMMERCIAL SUPPLIER 
 14-12-2023,oneSource Shared,Matrix SCM Ltd,Consultancy Fees,2556.25,0.00,COMMERCIAL SUPPLIER 
 20-12-2023,oneSource Shared,Matrix SCM Ltd,Agency Staff,2892.04,0.00,COMMERCIAL SUPPLIER 
 06-12-2023,oneSource Shared,Matrix SCM Ltd,Agency Staff,2922.51,0.00,COMMERCIAL SUPPLIER 
 13-12-2023,oneSource Shared,Matrix SCM Ltd,Agency Staff,2961.45,0.00,COMMERCIAL SUPPLIER 
 20-12-2023,oneSource Shared,Matrix SCM Ltd,Agency Staff,2995.29,0.00,COMMERCIAL SUPPLIER 
 06-12-2023,oneSource Shared,Matrix SCM Ltd,Agency Staff,3012.22,0.00,COMMERCIAL SUPPLIER 
 13-12-2023,oneSource Shared,Team Netsol Ltd,Consultancy Fees,3060.00,0.00,COMMERCIAL SUPPLIER 
 21-12-2023,oneSource Shared,Cadline Ltd,Surveys,3360.00,0.00,COMMERCIAL SUPPLIER 
 06-12-2023,oneSource Shared,Matrix SCM Ltd,Agency Staff,3457.80,0.00,COMMERCIAL SUPPLIER 
 20-12-2023,oneSource Shared,Matrix SCM Ltd,Agency Staff,3457.80,0.00,COMMERCIAL SUPPLIER 
 20-12-2023,oneSource Shared,Matrix SCM Ltd,Agency Staff,3457.80,0.00,COMMERCIAL SUPPLIER 
 06-12-2023,oneSource Shared,Matrix SCM Ltd,Agency Staff,3615.05,0.00,COMMERCIAL SUPPLIER 
 13-12-2023,oneSource Shared,Matrix SCM Ltd,Agency Staff,3615.05,0.00,COMMERCIAL SUPPLIER 
 06-12-2023,oneSource Shared,Matrix SCM Ltd,Agency Staff,3627.10,0.00,COMMERCIAL SUPPLIER 
 13-12-2023,oneSource Shared,Matrix SCM Ltd,Agency Staff,3627.10,0.00,COMMERCIAL SUPPLIER 
 20-12-2023,oneSource Shared,Matrix SCM Ltd,Agency Staff,3627.10,0.00,COMMERCIAL SUPPLIER 
 13-12-2023,oneSource Shared,Wilkin Chapman LLP,Legal Fees,3676.40,0.00,COMMERCIAL SUPPLIER 
 20-12-2023,oneSource Shared,Matrix SCM Ltd,Agency Staff,3865.60,0.00,COMMERCIAL SUPPLIER 
 06-12-2023,oneSource Shared,Matrix SCM Ltd,Agency Staff,4058.05,0.00,COMMERCIAL SUPPLIER 
 13-12-2023,oneSource Shared,Matrix SCM Ltd,Agency Staff,4058.05,0.00,COMMERCIAL SUPPLIER 
 20-12-2023,oneSource Shared,Matrix SCM Ltd,Agency Staff,4058.05,0.00,COMMERCIAL SUPPLIER 
 13-12-2023,oneSource Shared,Matrix SCM Ltd,Agency Staff,4870.85,0.00,COMMERCIAL SUPPLIER 
 20-12-2023,oneSource Shared,Matrix SCM Ltd,Agency Staff,4870.85,0.00,COMMERCIAL SUPPLIER 
 21-12-2023,oneSource Shared,Matrix SCM Ltd,Consultancy Fees,6748.50,0.00,COMMERCIAL SUPPLIER 
 21-12-2023,oneSource Shared,Matrix SCM Ltd,Consultancy Fees,7285.31,0.00,COMMERCIAL SUPPLIER 
 21-12-2023,oneSource Shared,Cadline Ltd,Surveys,8640.00,0.00,COMMERCIAL SUPPLIER 
 14-12-2023,oneSource Shared,Matrix SCM Ltd,Consultancy Fees,9790.44,0.00,COMMERCIAL SUPPLIER 
 07-12-2023,oneSource Shared,Matrix SCM Ltd,Consultancy Fees,12372.25,0.00,COMMERCIAL SUPPLIER 
 07-12-2023,oneSource Shared,Stripe OLT,Ict Maintenance And Support,12500.00,0.00,COMMERCIAL SUPPLIER 
 07-12-2023,oneSource Shared,Matrix SCM Ltd,Consultancy Fees,13534.53,0.00,COMMERCIAL SUPPLIER 
 07-12-2023,oneSource Shared,Matrix SCM Ltd,Consultancy Fees,36559.49,0.00,COMMERCIAL SUPPLIER 
 04-12-2023,oneSource Shared,Version 1 Solutions Limited,Ict Maintenance And Support,38000.00,0.00,COMMERCIAL SUPPLIER 
 06-12-2023,oneSource Shared,Statmap Ltd,Ict Software,40000.00,0.00,COMMERCIAL SUPPLIER 
 11-12-2023,oneSource Shared,Mastek System Company Ltd,Ict Software,40500.00,0.00,COMMERCIAL SUPPLIER 
 01-12-2023,People - Ageing Well,New Windmill Hall Community Association,Premises Hire - Facilities,500.00,0.00,NON COMMERCIAL SUPPLIER 
 12-12-2023,People - Ageing Well,Voyage 1 Ltd - Quite Waters,Residential Placements - Private Contractors Payment,502.04,0.00,COMMERCIAL SUPPLIER 
 06-12-2023,People - Ageing Well,Radfield Home Care Havering & Brentwood,Home Care - Private Contractors Payment,502.33,0.00,COMMERCIAL SUPPLIER 
 06-12-2023,People - Ageing Well,Matrix SCM Ltd,Agency Staff,504.90,0.00,COMMERCIAL SUPPLIER 
 08-12-2023,People - Ageing Well,Lodge Group Care UK Ltd,Home Care - Private Contractors Payment,513.26,0.00,COMMERCIAL SUPPLIER 
 14-12-2023,People - Ageing Well,Abbottswood Lodge,Residential Placements - Private Contractors Payment,514.29,0.00,COMMERCIAL SUPPLIER 
 12-12-2023,People - Ageing Well,Morepower Ltd t/a Aqs Homecare,Home Care - Private Contractors Payment,514.71,0.00,COMMERCIAL SUPPLIER 
 20-12-2023,People - Ageing Well,Matrix SCM Ltd,Agency Staff,516.60,0.00,COMMERCIAL SUPPLIER 
 06-12-2023,People - Ageing Well,Hospiva Care & Associates Agency Ltd_a,Home Care - Private Contractors Payment,520.17,0.00,COMMERCIAL SUPPLIER 
 08-12-2023,People - Ageing Well,Lodge Group Care UK Ltd,Home Care - Private Contractors Payment,522.36,0.00,COMMERCIAL SUPPLIER 
 08-12-2023,People - Ageing Well,Lodge Group Care UK Ltd,Home Care - Private Contractors Payment,522.36,0.00,COMMERCIAL SUPPLIER 
 13-12-2023,People - Ageing Well,Quality Healthcare Solutions Ltd t/a Kare Plus Romford,Home Care - Private Contractors Payment,523.81,0.00,COMMERCIAL SUPPLIER 
 12-12-2023,People - Ageing Well,Care-Away Ltd T/A Care Support,Home Care - Private Contractors Payment,524.00,0.00,COMMERCIAL SUPPLIER 
 13-12-2023,People - Ageing Well,Care-Away Ltd T/A Care Support,Home Care - Private Contractors Payment,524.00,0.00,COMMERCIAL SUPPLIER 
 03-12-2023,People - Ageing Well,Personal Information - Redacted,Home Care - Private Contractors Payment,524.16,0.00,INDIVIDUALS 
 03-12-2023,People - Ageing Well,Personal Information - Redacted,Home Care - Private Contractors Payment,524.17,0.00,INDIVIDUALS 
 05-12-2023,People - Ageing Well,Inna Care Ltd,Home Care - Private Contractors Payment,524.18,0.00,COMMERCIAL SUPPLIER 
 12-12-2023,People - Ageing Well,Morepower Ltd t/a Aqs Homecare,Home Care - Private Contractors Payment,524.18,0.00,COMMERCIAL SUPPLIER 
 08-12-2023,People - Ageing Well,Home Support Services (Havering & Essex) Ltd,Home Care - Private Contractors Payment,528.55,0.00,COMMERCIAL SUPPLIER 
 28-12-2023,People - Ageing Well,Matrix SCM Ltd,Agency Staff,528.65,0.00,COMMERCIAL SUPPLIER 
 12-12-2023,People - Ageing Well,DMP Healthcare (Cherry Orchard) Ltd,Nursing Homes - Private Contractors Payment,529.83,0.00,COMMERCIAL SUPPLIER 
 12-12-2023,People - Ageing Well,Prior Care Ltd_a,Home Care - Private Contractors Payment,530.73,0.00,COMMERCIAL SUPPLIER 
 08-12-2023,People - Ageing Well,Chosen Care Group Ltd,Home Care - Private Contractors Payment,532.80,0.00,COMMERCIAL SUPPLIER 
 08-12-2023,People - Ageing Well,Home Support Services (Havering & Essex) Ltd,Home Care - Private Contractors Payment,534.01,0.00,COMMERCIAL SUPPLIER 
 12-12-2023,People - Ageing Well,Affinia Healthcare Ltd_a,Supported Other Accommodation - Private Contractors Payment,534.80,0.00,COMMERCIAL SUPPLIER 
 01-12-2023,People - Ageing Well,Radfield Home Care Havering & Brentwood,Home Care - Private Contractors Payment,535.10,0.00,COMMERCIAL SUPPLIER 
 01-12-2023,People - Ageing Well,Radfield Home Care Havering & Brentwood,Home Care - Private Contractors Payment,535.10,0.00,COMMERCIAL SUPPLIER 
 03-12-2023,People - Ageing Well,Personal Information - Redacted,Home Care - Private Contractors Payment,535.10,0.00,INDIVIDUALS 
 06-12-2023,People - Ageing Well,Radfield Home Care Havering & Brentwood,Home Care - Private Contractors Payment,535.10,0.00,COMMERCIAL SUPPLIER 
 12-12-2023,People - Ageing Well,L & Q Living (SWIFT Payments),Supported Other Accommodation - Private Contractors Payment,536.48,0.00,COMMERCIAL SUPPLIER 
 12-12-2023,People - Ageing Well,L & Q Living (SWIFT Payments),Supported Other Accommodation - Private Contractors Payment,536.48,0.00,COMMERCIAL SUPPLIER 
 13-12-2023,People - Ageing Well,Matrix SCM Ltd,Agency Staff,538.56,0.00,COMMERCIAL SUPPLIER 
 12-12-2023,People - Ageing Well,Bluebell & Hawthorn,Residential Placements - Private Contractors Payment,539.84,0.00,COMMERCIAL SUPPLIER 
 08-12-2023,People - Ageing Well,Home Support Services (Havering & Essex) Ltd,Home Care - Private Contractors Payment,540.54,0.00,COMMERCIAL SUPPLIER 
 13-12-2023,People - Ageing Well,Homestead Care Service,Home Care - Private Contractors Payment,542.02,0.00,COMMERCIAL SUPPLIER 
 13-12-2023,People - Ageing Well,Westminster Homecare Ltd_a,Home Care - Private Contractors Payment,543.83,0.00,COMMERCIAL SUPPLIER 
 13-12-2023,People - Ageing Well,Quality Healthcare Solutions Ltd t/a Kare Plus Romford,Home Care - Private Contractors Payment,544.20,0.00,COMMERCIAL SUPPLIER 
 12-12-2023,People - Ageing Well,Ebury Court_a,Residential Placements - Private Contractors Payment,544.78,0.00,COMMERCIAL SUPPLIER 
 12-12-2023,People - Ageing Well,Morepower Ltd t/a Aqs Homecare,Home Care - Private Contractors Payment,546.02,0.00,COMMERCIAL SUPPLIER 
 06-12-2023,People - Ageing Well,Hospiva Care & Associates Agency Ltd_a,Home Care - Private Contractors Payment,547.11,0.00,COMMERCIAL SUPPLIER 
 04-12-2023,People - Ageing Well,Tapestry_a.,Daycare - Private Contractors Payment,549.00,0.00,COMMERCIAL SUPPLIER 
 08-12-2023,People - Ageing Well,Lodge Group Care UK Ltd,Home Care - Private Contractors Payment,550.39,0.00,COMMERCIAL SUPPLIER 
 12-12-2023,People - Ageing Well,Home Sweet Home Care Ltd,Home Care - Private Contractors Payment,552.93,0.00,COMMERCIAL SUPPLIER 
 08-12-2023,People - Ageing Well,Home Support Services (Havering & Essex) Ltd,Home Care - Private Contractors Payment,552.94,0.00,COMMERCIAL SUPPLIER 
 12-12-2023,People - Ageing Well,Sahara Care Ltd,Residential Placements - Private Contractors Payment,555.00,0.00,COMMERCIAL SUPPLIER 
 12-12-2023,People - Ageing Well,Topaz Care and Support Co Ltd,Supported Other Accommodation - Private Contractors Payment,555.20,0.00,COMMERCIAL SUPPLIER 
 03-12-2023,People - Ageing Well,Eastway Care Ltd_a,Daycare - Private Contractors Payment,558.00,0.00,COMMERCIAL SUPPLIER 
 12-12-2023,People - Ageing Well,Raynet Recruitment Agency Ltd,Home Care - Private Contractors Payment,558.00,0.00,COMMERCIAL SUPPLIER 
 07-12-2023,People - Ageing Well,Cera Care Operations Ltd,Home Care - Private Contractors Payment,559.12,0.00,COMMERCIAL SUPPLIER 
 08-12-2023,People - Ageing Well,Lodge Group Care UK Ltd,Home Care - Private Contractors Payment,562.40,0.00,COMMERCIAL SUPPLIER 
 12-12-2023,People - Ageing Well,Affinia Healthcare Ltd_a,Supported Other Accommodation - Private Contractors Payment,562.57,0.00,COMMERCIAL SUPPLIER 
 08-12-2023,People - Ageing Well,Home Support Services (Havering & Essex) Ltd,Home Care - Private Contractors Payment,564.95,0.00,COMMERCIAL SUPPLIER 
 12-12-2023,People - Ageing Well,Morepower Ltd t/a Aqs Homecare,Home Care - Private Contractors Payment,567.13,0.00,COMMERCIAL SUPPLIER 
 12-12-2023,People - Ageing Well,Black Swan International Ltd - Belamacanda,Residential Care Income,567.74,0.00,COMMERCIAL SUPPLIER 
 07-12-2023,People - Ageing Well,Cera Care Operations Ltd,Home Care - Private Contractors Payment,567.86,0.00,COMMERCIAL SUPPLIER 
 12-12-2023,People - Ageing Well,Home Sweet Home Care Ltd,Home Care - Private Contractors Payment,567.86,0.00,COMMERCIAL SUPPLIER 
 06-12-2023,People - Ageing Well,Hospiva Care & Associates Agency Ltd_a,Home Care - Private Contractors Payment,568.95,0.00,COMMERCIAL SUPPLIER 
 06-12-2023,People - Ageing Well,Hospiva Care & Associates Agency Ltd_a,Home Care - Private Contractors Payment,568.95,0.00,COMMERCIAL SUPPLIER 
 13-12-2023,People - Ageing Well,Care-Away Ltd T/A Care Support,Home Care - Private Contractors Payment,573.13,0.00,COMMERCIAL SUPPLIER 
 12-12-2023,People - Ageing Well,Potton Services Ltd,Home Care - Private Contractors Payment,573.60,0.00,COMMERCIAL SUPPLIER 
 08-12-2023,People - Ageing Well,Lodge Group Care UK Ltd,Home Care - Private Contractors Payment,578.42,0.00,COMMERCIAL SUPPLIER 
 11-12-2023,People - Ageing Well,Prestige Care & Support Ltd,Home Care - Private Contractors Payment,578.78,0.00,COMMERCIAL SUPPLIER 
 12-12-2023,People - Ageing Well,Home Sweet Home Care Ltd,Home Care - Private Contractors Payment,578.78,0.00,COMMERCIAL SUPPLIER 
 12-12-2023,People - Ageing Well,Home Sweet Home Care Ltd,Home Care - Private Contractors Payment,578.78,0.00,COMMERCIAL SUPPLIER 
 13-12-2023,People - Ageing Well,Homestead Care Service,Home Care - Private Contractors Payment,579.14,0.00,COMMERCIAL SUPPLIER 
 08-12-2023,People - Ageing Well,Home Support Services (Havering & Essex) Ltd,Home Care - Private Contractors Payment,580.23,0.00,COMMERCIAL SUPPLIER 
 07-12-2023,People - Ageing Well,Cera Care Operations Ltd,Home Care - Private Contractors Payment,580.60,0.00,COMMERCIAL SUPPLIER 
 12-12-2023,People - Ageing Well,Home Sweet Home Care Ltd,Home Care - Private Contractors Payment,581.69,0.00,COMMERCIAL SUPPLIER 
 12-12-2023,People - Ageing Well,Home Sweet Home Care Ltd,Home Care - Private Contractors Payment,582.78,0.00,COMMERCIAL SUPPLIER 
 12-12-2023,People - Ageing Well,Home Sweet Home Care Ltd,Home Care - Private Contractors Payment,585.33,0.00,COMMERCIAL SUPPLIER 
 12-12-2023,People - Ageing Well,Outlook Care - 76 Neave Crescent,Supported Other Accommodation - Private Contractors Payment,586.80,0.00,COMMERCIAL SUPPLIER 
 13-12-2023,People - Ageing Well,Care-Away Ltd T/A Care Support,Home Care - Private Contractors Payment,589.50,0.00,COMMERCIAL SUPPLIER 
 12-12-2023,People - Ageing Well,Home Sweet Home Care Ltd,Home Care - Private Contractors Payment,589.70,0.00,COMMERCIAL SUPPLIER 
 12-12-2023,People - Ageing Well,Paradise Independent Living,Supported Other Accommodation - Private Contractors Payment,589.92,0.00,NON COMMERCIAL SUPPLIER 
 12-12-2023,People - Ageing Well,Livingstone Health Care Services,Home Care - Private Contractors Payment,591.52,0.00,COMMERCIAL SUPPLIER 
 12-12-2023,People - Ageing Well,Home Sweet Home Care Ltd,Home Care - Private Contractors Payment,594.07,0.00,COMMERCIAL SUPPLIER 
 08-12-2023,People - Ageing Well,Home Support Services (Havering & Essex) Ltd,Home Care - Private Contractors Payment,596.25,0.00,COMMERCIAL SUPPLIER 
 13-12-2023,People - Ageing Well,Westminster Homecare Ltd_a,Home Care - Private Contractors Payment,598.43,0.00,COMMERCIAL SUPPLIER 
 13-12-2023,People - Ageing Well,Homestead Care Service,Home Care - Private Contractors Payment,598.80,0.00,COMMERCIAL SUPPLIER 
 20-12-2023,People - Ageing Well,Matrix SCM Ltd,Agency Staff,599.36,0.00,COMMERCIAL SUPPLIER 
 14-12-2023,People - Ageing Well,Abbottswood Lodge,Residential Placements - Private Contractors Payment,600.00,0.00,COMMERCIAL SUPPLIER 
 14-12-2023,People - Ageing Well,Abbottswood Lodge,Residential Placements - Private Contractors Payment,600.00,0.00,COMMERCIAL SUPPLIER 
 14-12-2023,People - Ageing Well,Abbottswood Lodge,Residential Placements - Private Contractors Payment,600.00,0.00,COMMERCIAL SUPPLIER 
 14-12-2023,People - Ageing Well,Abbottswood Lodge,Residential Placements - Private Contractors Payment,600.00,0.00,COMMERCIAL SUPPLIER 
 14-12-2023,People - Ageing Well,Abbottswood Lodge,Residential Placements - Private Contractors Payment,600.00,0.00,COMMERCIAL SUPPLIER 
 04-12-2023,People - Ageing Well,London Homecare Ltd,Home Care - Private Contractors Payment,600.62,0.00,COMMERCIAL SUPPLIER 
 12-12-2023,People - Ageing Well,Home Sweet Home Care Ltd,Home Care - Private Contractors Payment,600.62,0.00,COMMERCIAL SUPPLIER 
 08-12-2023,People - Ageing Well,Home Support Services (Havering & Essex) Ltd,Home Care - Private Contractors Payment,600.99,0.00,COMMERCIAL SUPPLIER 
 12-12-2023,People - Ageing Well,Morepower Ltd t/a Aqs Homecare,Home Care - Private Contractors Payment,601.35,0.00,COMMERCIAL SUPPLIER 
 12-12-2023,People - Ageing Well,Home Sweet Home Care Ltd,Home Care - Private Contractors Payment,601.35,0.00,COMMERCIAL SUPPLIER 
 12-12-2023,People - Ageing Well,Home Sweet Home Care Ltd,Home Care - Private Contractors Payment,601.71,0.00,COMMERCIAL SUPPLIER 
 13-12-2023,People - Ageing Well,Homestead Care Service,Home Care - Private Contractors Payment,602.08,0.00,COMMERCIAL SUPPLIER 
 08-12-2023,People - Ageing Well,Lodge Group Care UK Ltd,Home Care - Private Contractors Payment,602.81,0.00,COMMERCIAL SUPPLIER 
 12-12-2023,People - Ageing Well,Home Sweet Home Care Ltd,Home Care - Private Contractors Payment,603.17,0.00,COMMERCIAL SUPPLIER 
 08-12-2023,People - Ageing Well,Lodge Group Care UK Ltd,Home Care - Private Contractors Payment,604.26,0.00,COMMERCIAL SUPPLIER 
 11-12-2023,People - Ageing Well,Anytime Care 2020_a,Home Care - Private Contractors Payment,604.99,0.00,COMMERCIAL SUPPLIER 
 11-12-2023,People - Ageing Well,Anytime Care 2020_a,Home Care - Private Contractors Payment,606.08,0.00,COMMERCIAL SUPPLIER 
 12-12-2023,People - Ageing Well,Home Sweet Home Care Ltd,Home Care - Private Contractors Payment,606.45,0.00,COMMERCIAL SUPPLIER 
 12-12-2023,People - Ageing Well,Home Sweet Home Care Ltd,Home Care - Private Contractors Payment,607.17,0.00,COMMERCIAL SUPPLIER 
 06-12-2023,People - Ageing Well,Matrix SCM Ltd,Agency Staff,607.20,0.00,COMMERCIAL SUPPLIER 
 06-12-2023,People - Ageing Well,Matrix SCM Ltd,Agency Staff,607.20,0.00,COMMERCIAL SUPPLIER 
 06-12-2023,People - Ageing Well,Matrix SCM Ltd,Agency Staff,607.20,0.00,COMMERCIAL SUPPLIER 
 07-12-2023,People - Ageing Well,Cera Care Operations Ltd,Home Care - Private Contractors Payment,607.54,0.00,COMMERCIAL SUPPLIER 
 12-12-2023,People - Ageing Well,John Stanleys Care Agency Ltd,Home Care - Private Contractors Payment,608.27,0.00,COMMERCIAL SUPPLIER 
 08-12-2023,People - Ageing Well,Home Support Services (Havering & Essex) Ltd,Home Care - Private Contractors Payment,608.99,0.00,COMMERCIAL SUPPLIER 
 07-12-2023,People - Ageing Well,Cera Care Operations Ltd,Home Care - Private Contractors Payment,609.36,0.00,COMMERCIAL SUPPLIER 
 04-12-2023,People - Ageing Well,Tapestry_a.,Daycare - Private Contractors Payment,610.00,0.00,COMMERCIAL SUPPLIER 
 03-12-2023,People - Ageing Well,Personal Information - Redacted,Home Care - Private Contractors Payment,611.53,0.00,INDIVIDUALS 
 03-12-2023,People - Ageing Well,Personal Information - Redacted,Home Care - Private Contractors Payment,611.53,0.00,INDIVIDUALS 
 05-12-2023,People - Ageing Well,Inna Care Ltd,Home Care - Private Contractors Payment,611.53,0.00,COMMERCIAL SUPPLIER 
 11-12-2023,People - Ageing Well,Outreach Support Services Ltd,Home Care - Private Contractors Payment,611.53,0.00,COMMERCIAL SUPPLIER 
 28-12-2023,People - Ageing Well,Crystalize Care Services Ltd,Home Care - Private Contractors Payment,611.53,0.00,COMMERCIAL SUPPLIER 
 28-12-2023,People - Ageing Well,Crystalize Care Services Ltd,Home Care - Private Contractors Payment,611.53,0.00,COMMERCIAL SUPPLIER 
 28-12-2023,People - Ageing Well,Crystalize Care Services Ltd,Home Care - Private Contractors Payment,611.53,0.00,COMMERCIAL SUPPLIER 
 03-12-2023,People - Ageing Well,Personal Information - Redacted,Home Care - Private Contractors Payment,611.54,0.00,INDIVIDUALS 
 03-12-2023,People - Ageing Well,Personal Information - Redacted,Home Care - Private Contractors Payment,611.54,0.00,INDIVIDUALS 
 04-12-2023,People - Ageing Well,London Homecare Ltd,Home Care - Private Contractors Payment,611.54,0.00,COMMERCIAL SUPPLIER 
 05-12-2023,People - Ageing Well,Inna Care Ltd,Home Care - Private Contractors Payment,611.54,0.00,COMMERCIAL SUPPLIER 
 05-12-2023,People - Ageing Well,Inna Care Ltd,Home Care - Private Contractors Payment,611.54,0.00,COMMERCIAL SUPPLIER 
 05-12-2023,People - Ageing Well,Inna Care Ltd,Home Care - Private Contractors Payment,611.54,0.00,COMMERCIAL SUPPLIER 
 05-12-2023,People - Ageing Well,Inna Care Ltd,Home Care - Private Contractors Payment,611.54,0.00,COMMERCIAL SUPPLIER 
 05-12-2023,People - Ageing Well,Inna Care Ltd,Home Care - Private Contractors Payment,611.54,0.00,COMMERCIAL SUPPLIER 
 06-12-2023,People - Ageing Well,Premier Carewaiting Ltd,Home Care - Private Contractors Payment,611.54,0.00,COMMERCIAL SUPPLIER 
 06-12-2023,People - Ageing Well,Premier Carewaiting Ltd,Home Care - Private Contractors Payment,611.54,0.00,COMMERCIAL SUPPLIER 
 06-12-2023,People - Ageing Well,Premier Carewaiting Ltd,Home Care - Private Contractors Payment,611.54,0.00,COMMERCIAL SUPPLIER 
 08-12-2023,People - Ageing Well,Lodge Group Care UK Ltd,Home Care - Private Contractors Payment,611.54,0.00,COMMERCIAL SUPPLIER 
 08-12-2023,People - Ageing Well,Lodge Group Care UK Ltd,Home Care - Private Contractors Payment,611.54,0.00,COMMERCIAL SUPPLIER 
 08-12-2023,People - Ageing Well,Lodge Group Care UK Ltd,Home Care - Private Contractors Payment,611.54,0.00,COMMERCIAL SUPPLIER 
 08-12-2023,People - Ageing Well,Lodge Group Care UK Ltd,Home Care - Private Contractors Payment,611.54,0.00,COMMERCIAL SUPPLIER 
 08-12-2023,People - Ageing Well,Lodge Group Care UK Ltd,Home Care - Private Contractors Payment,611.54,0.00,COMMERCIAL SUPPLIER 
 08-12-2023,People - Ageing Well,Lodge Group Care UK Ltd,Home Care - Private Contractors Payment,611.54,0.00,COMMERCIAL SUPPLIER 
 08-12-2023,People - Ageing Well,Lodge Group Care UK Ltd,Home Care - Private Contractors Payment,611.54,0.00,COMMERCIAL SUPPLIER 
 08-12-2023,People - Ageing Well,Lodge Group Care UK Ltd,Home Care - Private Contractors Payment,611.54,0.00,COMMERCIAL SUPPLIER 
 11-12-2023,People - Ageing Well,Prestige Care & Support Ltd,Home Care - Private Contractors Payment,611.54,0.00,COMMERCIAL SUPPLIER 
 11-12-2023,People - Ageing Well,Prestige Care & Support Ltd,Home Care - Private Contractors Payment,611.54,0.00,COMMERCIAL SUPPLIER 
 11-12-2023,People - Ageing Well,Prestige Care & Support Ltd,Home Care - Private Contractors Payment,611.54,0.00,COMMERCIAL SUPPLIER 
 11-12-2023,People - Ageing Well,Prestige Care & Support Ltd,Home Care - Private Contractors Payment,611.54,0.00,COMMERCIAL SUPPLIER 
 11-12-2023,People - Ageing Well,Anytime Care 2020_a,Home Care - Private Contractors Payment,611.54,0.00,COMMERCIAL SUPPLIER 
 11-12-2023,People - Ageing Well,Anytime Care 2020_a,Home Care - Private Contractors Payment,611.54,0.00,COMMERCIAL SUPPLIER 
 11-12-2023,People - Ageing Well,Anytime Care 2020_a,Home Care - Private Contractors Payment,611.54,0.00,COMMERCIAL SUPPLIER 
 11-12-2023,People - Ageing Well,Passion Tree Care Services Ltd,Home Care - Private Contractors Payment,611.54,0.00,COMMERCIAL SUPPLIER 
 11-12-2023,People - Ageing Well,Passion Tree Care Services Ltd,Home Care - Private Contractors Payment,611.54,0.00,COMMERCIAL SUPPLIER 
 11-12-2023,People - Ageing Well,Passion Tree Care Services Ltd,Home Care - Private Contractors Payment,611.54,0.00,COMMERCIAL SUPPLIER 
 11-12-2023,People - Ageing Well,Passion Tree Care Services Ltd,Home Care - Private Contractors Payment,611.54,0.00,COMMERCIAL SUPPLIER 
 11-12-2023,People - Ageing Well,Passion Tree Care Services Ltd,Home Care - Private Contractors Payment,611.54,0.00,COMMERCIAL SUPPLIER 
 12-12-2023,People - Ageing Well,Morepower Ltd t/a Aqs Homecare,Home Care - Private Contractors Payment,611.54,0.00,COMMERCIAL SUPPLIER 
 12-12-2023,People - Ageing Well,Home Sweet Home Care Ltd,Home Care - Private Contractors Payment,611.54,0.00,COMMERCIAL SUPPLIER 
 12-12-2023,People - Ageing Well,Home Sweet Home Care Ltd,Home Care - Private Contractors Payment,611.54,0.00,COMMERCIAL SUPPLIER 
 13-12-2023,People - Ageing Well,Homestead Care Service,Home Care - Private Contractors Payment,611.54,0.00,COMMERCIAL SUPPLIER 
 13-12-2023,People - Ageing Well,Homestead Care Service,Home Care - Private Contractors Payment,611.54,0.00,COMMERCIAL SUPPLIER 
 13-12-2023,People - Ageing Well,Homestead Care Service,Home Care - Private Contractors Payment,611.54,0.00,COMMERCIAL SUPPLIER 
 08-12-2023,People - Ageing Well,Lodge Group Care UK Ltd,Home Care - Private Contractors Payment,611.91,0.00,COMMERCIAL SUPPLIER 
 08-12-2023,People - Ageing Well,Lodge Group Care UK Ltd,Home Care - Private Contractors Payment,611.91,0.00,COMMERCIAL SUPPLIER 
 08-12-2023,People - Ageing Well,Home Support Services (Havering & Essex) Ltd,Home Care - Private Contractors Payment,611.91,0.00,COMMERCIAL SUPPLIER 
 08-12-2023,People - Ageing Well,Lodge Group Care UK Ltd,Home Care - Private Contractors Payment,612.27,0.00,COMMERCIAL SUPPLIER 
 12-12-2023,People - Ageing Well,Home Sweet Home Care Ltd,Home Care - Private Contractors Payment,612.27,0.00,COMMERCIAL SUPPLIER 
 12-12-2023,People - Ageing Well,Leonard Cheshire Disability_a.,Residential Placements - Private Contractors Payment,612.76,0.00,COMMERCIAL SUPPLIER 
 12-12-2023,People - Ageing Well,John Stanleys Care Agency Ltd,Home Care - Private Contractors Payment,613.36,0.00,COMMERCIAL SUPPLIER 
 12-12-2023,People - Ageing Well,Home Sweet Home Care Ltd,Home Care - Private Contractors Payment,613.73,0.00,COMMERCIAL SUPPLIER 
 12-12-2023,People - Ageing Well,Raynet Recruitment Agency Ltd,Supported Other Accommodation - Private Contractors Payment,614.04,0.00,COMMERCIAL SUPPLIER 
 06-12-2023,People - Ageing Well,Hospiva Care & Associates Agency Ltd_a,Home Care - Private Contractors Payment,614.09,0.00,COMMERCIAL SUPPLIER 
 11-12-2023,People - Ageing Well,Prestige Care & Support Ltd,Home Care - Private Contractors Payment,614.09,0.00,COMMERCIAL SUPPLIER 
 12-12-2023,People - Ageing Well,Home Sweet Home Care Ltd,Home Care - Private Contractors Payment,614.09,0.00,COMMERCIAL SUPPLIER 
 12-12-2023,People - Ageing Well,Care-Away Ltd T/A Care Support,Home Care - Private Contractors Payment,614.39,0.00,COMMERCIAL SUPPLIER 
 08-12-2023,People - Ageing Well,Home Support Services (Havering & Essex) Ltd,Home Care - Private Contractors Payment,614.45,0.00,COMMERCIAL SUPPLIER 
 11-12-2023,People - Ageing Well,Anytime Care 2020_a,Home Care - Private Contractors Payment,614.45,0.00,COMMERCIAL SUPPLIER 
 12-12-2023,People - Ageing Well,Home Sweet Home Care Ltd,Home Care - Private Contractors Payment,614.82,0.00,COMMERCIAL SUPPLIER 
 12-12-2023,People - Ageing Well,Home Sweet Home Care Ltd,Home Care - Private Contractors Payment,614.82,0.00,COMMERCIAL SUPPLIER 
 06-12-2023,People - Ageing Well,Hospiva Care & Associates Agency Ltd_a,Home Care - Private Contractors Payment,615.18,0.00,COMMERCIAL SUPPLIER 
 12-12-2023,People - Ageing Well,Home Sweet Home Care Ltd,Home Care - Private Contractors Payment,615.18,0.00,COMMERCIAL SUPPLIER 
 08-12-2023,People - Ageing Well,Lodge Group Care UK Ltd,Home Care - Private Contractors Payment,615.55,0.00,COMMERCIAL SUPPLIER 
 06-12-2023,People - Ageing Well,Hospiva Care & Associates Agency Ltd_a,Home Care - Private Contractors Payment,615.91,0.00,COMMERCIAL SUPPLIER 
 08-12-2023,People - Ageing Well,Lodge Group Care UK Ltd,Home Care - Private Contractors Payment,616.64,0.00,COMMERCIAL SUPPLIER 
 11-12-2023,People - Ageing Well,Anytime Care 2020_a,Home Care - Private Contractors Payment,616.64,0.00,COMMERCIAL SUPPLIER 
 07-12-2023,People - Ageing Well,Cera Care Operations Ltd,Home Care - Private Contractors Payment,617.00,0.00,COMMERCIAL SUPPLIER 
 11-12-2023,People - Ageing Well,Prestige Care & Support Ltd,Home Care - Private Contractors Payment,617.00,0.00,COMMERCIAL SUPPLIER 
 12-12-2023,People - Ageing Well,Prior Care Ltd_a,Home Care - Private Contractors Payment,617.00,0.00,COMMERCIAL SUPPLIER 
 08-12-2023,People - Ageing Well,Lodge Group Care UK Ltd,Home Care - Private Contractors Payment,617.37,0.00,COMMERCIAL SUPPLIER 
 08-12-2023,People - Ageing Well,Lodge Group Care UK Ltd,Home Care - Private Contractors Payment,617.37,0.00,COMMERCIAL SUPPLIER 
 11-12-2023,People - Ageing Well,Prestige Care & Support Ltd,Home Care - Private Contractors Payment,617.73,0.00,COMMERCIAL SUPPLIER 
 12-12-2023,People - Ageing Well,Home Sweet Home Care Ltd,Home Care - Private Contractors Payment,617.73,0.00,COMMERCIAL SUPPLIER 
 08-12-2023,People - Ageing Well,Lodge Group Care UK Ltd,Home Care - Private Contractors Payment,618.46,0.00,COMMERCIAL SUPPLIER 
 08-12-2023,People - Ageing Well,Lodge Group Care UK Ltd,Home Care - Private Contractors Payment,618.82,0.00,COMMERCIAL SUPPLIER 
 08-12-2023,People - Ageing Well,Home Support Services (Havering & Essex) Ltd,Home Care - Private Contractors Payment,618.82,0.00,COMMERCIAL SUPPLIER 
 08-12-2023,People - Ageing Well,Lodge Group Care UK Ltd,Home Care - Private Contractors Payment,619.55,0.00,COMMERCIAL SUPPLIER 
 20-12-2023,People - Ageing Well,Matrix SCM Ltd,Agency Staff,619.55,0.00,COMMERCIAL SUPPLIER 
 28-12-2023,People - Ageing Well,Matrix SCM Ltd,Agency Staff,619.55,0.00,COMMERCIAL SUPPLIER 
 08-12-2023,People - Ageing Well,Home Support Services (Havering & Essex) Ltd,Home Care - Private Contractors Payment,619.91,0.00,COMMERCIAL SUPPLIER 
 01-12-2023,People - Ageing Well,New Windmill Hall Community Association,Premises Hire - Facilities,620.00,0.00,NON COMMERCIAL SUPPLIER 
 29-12-2023,People - Ageing Well,Romford Private Hire Ltd,Client Transport,620.00,0.00,COMMERCIAL SUPPLIER 
 13-12-2023,People - Ageing Well,Quality Healthcare Solutions Ltd t/a Kare Plus Romford,Home Care - Private Contractors Payment,620.28,0.00,COMMERCIAL SUPPLIER 
 08-12-2023,People - Ageing Well,Lodge Group Care UK Ltd,Home Care - Private Contractors Payment,621.36,0.00,COMMERCIAL SUPPLIER 
 13-12-2023,People - Ageing Well,Homestead Care Service,Home Care - Private Contractors Payment,621.37,0.00,COMMERCIAL SUPPLIER 
 12-12-2023,People - Ageing Well,Morepower Ltd t/a Aqs Homecare,Home Care - Private Contractors Payment,621.73,0.00,COMMERCIAL SUPPLIER 
 12-12-2023,People - Ageing Well,BeTo Solutions Ltd,Supported Other Accommodation - Private Contractors Payment,622.08,0.00,COMMERCIAL SUPPLIER 
 12-12-2023,People - Ageing Well,Morepower Ltd t/a Aqs Homecare,Home Care - Private Contractors Payment,622.10,0.00,COMMERCIAL SUPPLIER 
 12-12-2023,People - Ageing Well,Home Sweet Home Care Ltd,Home Care - Private Contractors Payment,622.10,0.00,COMMERCIAL SUPPLIER 
 11-12-2023,People - Ageing Well,Anytime Care 2020_a,Home Care - Private Contractors Payment,622.83,0.00,COMMERCIAL SUPPLIER 
 12-12-2023,People - Ageing Well,Morepower Ltd t/a Aqs Homecare,Home Care - Private Contractors Payment,622.83,0.00,COMMERCIAL SUPPLIER 
 13-12-2023,People - Ageing Well,Homestead Care Service,Home Care - Private Contractors Payment,623.19,0.00,COMMERCIAL SUPPLIER 
 08-12-2023,People - Ageing Well,Lodge Group Care UK Ltd,Home Care - Private Contractors Payment,623.92,0.00,COMMERCIAL SUPPLIER 
 08-12-2023,People - Ageing Well,Home Support Services (Havering & Essex) Ltd,Home Care - Private Contractors Payment,625.01,0.00,COMMERCIAL SUPPLIER 
 08-12-2023,People - Ageing Well,Home Support Services (Havering & Essex) Ltd,Home Care - Private Contractors Payment,625.01,0.00,COMMERCIAL SUPPLIER 
 11-12-2023,People - Ageing Well,Anytime Care 2020_a,Home Care - Private Contractors Payment,625.37,0.00,COMMERCIAL SUPPLIER 
 12-12-2023,People - Ageing Well,Morepower Ltd t/a Aqs Homecare,Home Care - Private Contractors Payment,626.10,0.00,COMMERCIAL SUPPLIER 
 12-12-2023,People - Ageing Well,Home Sweet Home Care Ltd,Home Care - Private Contractors Payment,626.10,0.00,COMMERCIAL SUPPLIER 
 12-12-2023,People - Ageing Well,Home Sweet Home Care Ltd,Home Care - Private Contractors Payment,628.65,0.00,COMMERCIAL SUPPLIER 
 12-12-2023,People - Ageing Well,Care Square Ltd.,Supported Other Accommodation - Private Contractors Payment,629.60,0.00,COMMERCIAL SUPPLIER 
 06-12-2023,People - Ageing Well,Hospiva Care & Associates Agency Ltd_a,Home Care - Private Contractors Payment,629.74,0.00,COMMERCIAL SUPPLIER 
 12-12-2023,People - Ageing Well,Home Sweet Home Care Ltd,Home Care - Private Contractors Payment,629.74,0.00,COMMERCIAL SUPPLIER 
 12-12-2023,People - Ageing Well,Cygnet Health Care,Residential Placements - Private Contractors Payment,630.00,0.00,COMMERCIAL SUPPLIER 
 08-12-2023,People - Ageing Well,Lodge Group Care UK Ltd,Home Care - Private Contractors Payment,630.11,0.00,COMMERCIAL SUPPLIER 
 08-12-2023,People - Ageing Well,Lodge Group Care UK Ltd,Home Care - Private Contractors Payment,630.47,0.00,COMMERCIAL SUPPLIER 
 12-12-2023,People - Ageing Well,Home Sweet Home Care Ltd,Home Care - Private Contractors Payment,631.20,0.00,COMMERCIAL SUPPLIER 
 12-12-2023,People - Ageing Well,Morepower Ltd t/a Aqs Homecare,Home Care - Private Contractors Payment,631.56,0.00,COMMERCIAL SUPPLIER 
 13-12-2023,People - Ageing Well,Matrix SCM Ltd,Agency Staff,631.64,0.00,COMMERCIAL SUPPLIER 
 12-12-2023,People - Ageing Well,Home Sweet Home Care Ltd,Home Care - Private Contractors Payment,631.93,0.00,COMMERCIAL SUPPLIER 
 11-12-2023,People - Ageing Well,Prestige Care & Support Ltd,Home Care - Private Contractors Payment,632.29,0.00,COMMERCIAL SUPPLIER 
 06-12-2023,People - Ageing Well,Matrix SCM Ltd,Agency Staff,632.51,0.00,COMMERCIAL SUPPLIER 
 13-12-2023,People - Ageing Well,Matrix SCM Ltd,Agency Staff,632.51,0.00,COMMERCIAL SUPPLIER 
 20-12-2023,People - Ageing Well,Matrix SCM Ltd,Agency Staff,632.51,0.00,COMMERCIAL SUPPLIER 
 12-12-2023,People - Ageing Well,Livingstone Health Care Services,Home Care - Private Contractors Payment,633.75,0.00,COMMERCIAL SUPPLIER 
 07-12-2023,People - Ageing Well,Cera Care Operations Ltd,Home Care - Private Contractors Payment,637.39,0.00,COMMERCIAL SUPPLIER 
 12-12-2023,People - Ageing Well,Morepower Ltd t/a Aqs Homecare,Home Care - Private Contractors Payment,638.83,0.00,COMMERCIAL SUPPLIER 
 08-12-2023,People - Ageing Well,Home Support Services (Havering & Essex) Ltd,Home Care - Private Contractors Payment,639.57,0.00,COMMERCIAL SUPPLIER 
 08-12-2023,People - Ageing Well,Lodge Group Care UK Ltd,Home Care - Private Contractors Payment,640.30,0.00,COMMERCIAL SUPPLIER 
 08-12-2023,People - Ageing Well,Home Support Services (Havering & Essex) Ltd,Home Care - Private Contractors Payment,640.66,0.00,COMMERCIAL SUPPLIER 
 12-12-2023,People - Ageing Well,Pathways Care and Support Services Ltd,Supported Other Accommodation - Private Contractors Payment,640.68,0.00,COMMERCIAL SUPPLIER 
 08-12-2023,People - Ageing Well,Home Support Services (Havering & Essex) Ltd,Home Care - Private Contractors Payment,641.03,0.00,COMMERCIAL SUPPLIER 
 08-12-2023,People - Ageing Well,Home Support Services (Havering & Essex) Ltd,Home Care - Private Contractors Payment,641.39,0.00,COMMERCIAL SUPPLIER 
 12-12-2023,People - Ageing Well,Prior Care Ltd_a,Home Care - Private Contractors Payment,643.57,0.00,COMMERCIAL SUPPLIER 
 11-12-2023,People - Ageing Well,Anytime Care 2020_a,Home Care - Private Contractors Payment,644.30,0.00,COMMERCIAL SUPPLIER 
 11-12-2023,People - Ageing Well,Prestige Care & Support Ltd,Home Care - Private Contractors Payment,644.66,0.00,COMMERCIAL SUPPLIER 
 13-12-2023,People - Ageing Well,Quality Healthcare Solutions Ltd t/a Kare Plus Romford,Home Care - Private Contractors Payment,645.76,0.00,COMMERCIAL SUPPLIER 
 13-12-2023,People - Ageing Well,Homestead Care Service,Home Care - Private Contractors Payment,647.58,0.00,COMMERCIAL SUPPLIER 
 13-12-2023,People - Ageing Well,Quality Healthcare Solutions Ltd t/a Kare Plus Romford,Home Care - Private Contractors Payment,648.67,0.00,COMMERCIAL SUPPLIER 
 08-12-2023,People - Ageing Well,Lodge Group Care UK Ltd,Home Care - Private Contractors Payment,651.58,0.00,COMMERCIAL SUPPLIER 
 06-12-2023,People - Ageing Well,Matrix SCM Ltd,Agency Staff,651.72,0.00,COMMERCIAL SUPPLIER 
 07-12-2023,People - Ageing Well,Cera Care Operations Ltd,Home Care - Private Contractors Payment,651.95,0.00,COMMERCIAL SUPPLIER 
 08-12-2023,People - Ageing Well,Lodge Group Care UK Ltd,Home Care - Private Contractors Payment,651.95,0.00,COMMERCIAL SUPPLIER 
 13-12-2023,People - Ageing Well,Homestead Care Service,Home Care - Private Contractors Payment,652.30,0.00,COMMERCIAL SUPPLIER 
 08-12-2023,People - Ageing Well,Home Support Services (Havering & Essex) Ltd,Home Care - Private Contractors Payment,652.31,0.00,COMMERCIAL SUPPLIER 
 26-12-2023,People - Ageing Well,Personal Information - Redacted,Home Care - Private Contractors Payment,655.20,0.00,INDIVIDUALS 
 04-12-2023,People - Ageing Well,London Homecare Ltd,Home Care - Private Contractors Payment,655.21,0.00,COMMERCIAL SUPPLIER 
 12-12-2023,People - Ageing Well,Prior Care Ltd_a,Home Care - Private Contractors Payment,655.22,0.00,COMMERCIAL SUPPLIER 
 08-12-2023,People - Ageing Well,Home Support Services (Havering & Essex) Ltd,Home Care - Private Contractors Payment,656.31,0.00,COMMERCIAL SUPPLIER 
 13-12-2023,People - Ageing Well,Quality Healthcare Solutions Ltd t/a Kare Plus Romford,Home Care - Private Contractors Payment,657.77,0.00,COMMERCIAL SUPPLIER 
 13-12-2023,People - Ageing Well,Westminster Homecare Ltd_a,Home Care - Private Contractors Payment,659.95,0.00,COMMERCIAL SUPPLIER 
 11-12-2023,People - Ageing Well,Anytime Care 2020_a,Home Care - Private Contractors Payment,660.68,0.00,COMMERCIAL SUPPLIER 
 12-12-2023,People - Ageing Well,Morepower Ltd t/a Aqs Homecare,Home Care - Private Contractors Payment,669.05,0.00,COMMERCIAL SUPPLIER 
 12-12-2023,People - Ageing Well,Morepower Ltd t/a Aqs Homecare,Home Care - Private Contractors Payment,670.51,0.00,COMMERCIAL SUPPLIER 
 13-12-2023,People - Ageing Well,Quality Healthcare Solutions Ltd t/a Kare Plus Romford,Home Care - Private Contractors Payment,672.69,0.00,COMMERCIAL SUPPLIER 
 08-12-2023,People - Ageing Well,Home Support Services (Havering & Essex) Ltd,Home Care - Private Contractors Payment,673.79,0.00,COMMERCIAL SUPPLIER 
 12-12-2023,People - Ageing Well,John Stanleys Care Agency Ltd,Home Care - Private Contractors Payment,675.97,0.00,COMMERCIAL SUPPLIER 
 08-12-2023,People - Ageing Well,Lodge Group Care UK Ltd,Home Care - Private Contractors Payment,677.06,0.00,COMMERCIAL SUPPLIER 
 26-12-2023,People - Ageing Well,Personal Information - Redacted,Home Care - Private Contractors Payment,677.51,0.00,INDIVIDUALS 
 12-12-2023,People - Ageing Well,Morepower Ltd t/a Aqs Homecare,Home Care - Private Contractors Payment,677.79,0.00,COMMERCIAL SUPPLIER 
 12-12-2023,People - Ageing Well,Morepower Ltd t/a Aqs Homecare,Home Care - Private Contractors Payment,678.52,0.00,COMMERCIAL SUPPLIER 
 12-12-2023,People - Ageing Well,Gemini Assisted Living Ltd,Supported Other Accommodation - Private Contractors Payment,686.40,0.00,COMMERCIAL SUPPLIER 
 12-12-2023,People - Ageing Well,Care-Away Ltd T/A Care Support,Home Care - Private Contractors Payment,687.75,0.00,COMMERCIAL SUPPLIER 
 12-12-2023,People - Ageing Well,Care-Away Ltd T/A Care Support,Home Care - Private Contractors Payment,687.75,0.00,COMMERCIAL SUPPLIER 
 13-12-2023,People - Ageing Well,Care-Away Ltd T/A Care Support,Home Care - Private Contractors Payment,687.75,0.00,COMMERCIAL SUPPLIER 
 13-12-2023,People - Ageing Well,Care-Away Ltd T/A Care Support,Home Care - Private Contractors Payment,687.75,0.00,COMMERCIAL SUPPLIER 
 13-12-2023,People - Ageing Well,Homestead Care Service,Home Care - Private Contractors Payment,687.99,0.00,COMMERCIAL SUPPLIER 
 18-12-2023,People - Ageing Well,Lakefield Enterprises Ltd t/a R J Bowyer Building Services,Maintenance - Equipment Furniture And Materials,690.00,0.00,COMMERCIAL SUPPLIER 
 13-12-2023,People - Ageing Well,Quality Healthcare Solutions Ltd t/a Kare Plus Romford,Home Care - Private Contractors Payment,690.90,0.00,COMMERCIAL SUPPLIER 
 20-12-2023,People - Ageing Well,Matrix SCM Ltd,Agency Staff,693.00,0.00,COMMERCIAL SUPPLIER 
 11-12-2023,People - Ageing Well,Anytime Care 2020_a,Home Care - Private Contractors Payment,694.53,0.00,COMMERCIAL SUPPLIER 
 13-12-2023,People - Ageing Well,Matrix SCM Ltd,Agency Staff,695.17,0.00,COMMERCIAL SUPPLIER 
 11-12-2023,People - Ageing Well,Prestige Care & Support Ltd,Home Care - Private Contractors Payment,695.63,0.00,COMMERCIAL SUPPLIER 
 12-12-2023,People - Ageing Well,Blessday Services Ltd,Supported Other Accommodation - Private Contractors Payment,697.68,0.00,COMMERCIAL SUPPLIER 
 28-12-2023,People - Ageing Well,Matrix SCM Ltd,Agency Staff,698.40,0.00,COMMERCIAL SUPPLIER 
 28-12-2023,People - Ageing Well,Matrix SCM Ltd,Agency Staff,698.40,0.00,COMMERCIAL SUPPLIER 
 08-12-2023,People - Ageing Well,Home Support Services (Havering & Essex) Ltd,Home Care - Private Contractors Payment,698.88,0.00,COMMERCIAL SUPPLIER 
 03-12-2023,People - Ageing Well,Personal Information - Redacted,Home Care - Private Contractors Payment,698.91,0.00,INDIVIDUALS 
 12-12-2023,People - Ageing Well,Home Sweet Home Care Ltd,Home Care - Private Contractors Payment,700.36,0.00,COMMERCIAL SUPPLIER 
 12-12-2023,People - Ageing Well,DMP Healthcare (Heatherbrook) Ltd,Nursing Homes - Private Contractors Payment,702.00,0.00,NON COMMERCIAL SUPPLIER 
 13-12-2023,People - Ageing Well,Westminster Homecare Ltd_a,Home Care - Private Contractors Payment,703.27,0.00,COMMERCIAL SUPPLIER 
 08-12-2023,People - Ageing Well,Lodge Group Care UK Ltd,Home Care - Private Contractors Payment,703.64,0.00,COMMERCIAL SUPPLIER 
 12-12-2023,People - Ageing Well,Care-Away Ltd T/A Care Support,Home Care - Private Contractors Payment,704.13,0.00,COMMERCIAL SUPPLIER 
 08-12-2023,People - Ageing Well,Lodge Group Care UK Ltd,Home Care - Private Contractors Payment,705.09,0.00,COMMERCIAL SUPPLIER 
 11-12-2023,People - Ageing Well,Anytime Care 2020_a,Home Care - Private Contractors Payment,707.64,0.00,COMMERCIAL SUPPLIER 
 11-12-2023,People - Ageing Well,Care-Away Ltd T/A Care Support,Home Care - Private Contractors Payment,708.71,0.00,COMMERCIAL SUPPLIER 
 12-12-2023,People - Ageing Well,Home Sweet Home Care Ltd,Home Care - Private Contractors Payment,709.83,0.00,COMMERCIAL SUPPLIER 
 11-12-2023,People - Ageing Well,Anytime Care 2020_a,Home Care - Private Contractors Payment,711.64,0.00,COMMERCIAL SUPPLIER 
 05-12-2023,People - Ageing Well,REMARK LTD,Home Care - Private Contractors Payment,712.32,0.00,COMMERCIAL SUPPLIER 
 08-12-2023,People - Ageing Well,Home Support Services (Havering & Essex) Ltd,Home Care - Private Contractors Payment,717.10,0.00,COMMERCIAL SUPPLIER 
 26-12-2023,People - Ageing Well,Personal Information - Redacted,Home Care - Private Contractors Payment,717.60,0.00,INDIVIDUALS 
 11-12-2023,People - Ageing Well,Anytime Care 2020_a,Home Care - Private Contractors Payment,718.20,0.00,COMMERCIAL SUPPLIER 
 07-12-2023,People - Ageing Well,Dignified Homecare,Home Care - Private Contractors Payment,720.74,0.00,COMMERCIAL SUPPLIER 
 07-12-2023,People - Ageing Well,Dignified Homecare,Home Care - Private Contractors Payment,720.74,0.00,COMMERCIAL SUPPLIER 
 08-12-2023,People - Ageing Well,Home Support Services (Havering & Essex) Ltd,Home Care - Private Contractors Payment,722.20,0.00,COMMERCIAL SUPPLIER 
 13-12-2023,People - Ageing Well,Quality Healthcare Solutions Ltd t/a Kare Plus Romford,Home Care - Private Contractors Payment,722.57,0.00,COMMERCIAL SUPPLIER 
 08-12-2023,People - Ageing Well,Lodge Group Care UK Ltd,Home Care - Private Contractors Payment,723.29,0.00,COMMERCIAL SUPPLIER 
 08-12-2023,People - Ageing Well,Lodge Group Care UK Ltd,Home Care - Private Contractors Payment,724.75,0.00,COMMERCIAL SUPPLIER 
 12-12-2023,People - Ageing Well,Home Sweet Home Care Ltd,Home Care - Private Contractors Payment,727.30,0.00,COMMERCIAL SUPPLIER 
 04-12-2023,People - Ageing Well,Tapestry_a.,Daycare - Private Contractors Payment,732.00,0.00,COMMERCIAL SUPPLIER 
 04-12-2023,People - Ageing Well,Tapestry_a.,Daycare - Private Contractors Payment,732.00,0.00,COMMERCIAL SUPPLIER 
 04-12-2023,People - Ageing Well,Tapestry_a.,Daycare - Private Contractors Payment,732.00,0.00,COMMERCIAL SUPPLIER 
 04-12-2023,People - Ageing Well,Tapestry_a.,Daycare - Private Contractors Payment,732.00,0.00,COMMERCIAL SUPPLIER 
 04-12-2023,People - Ageing Well,Tapestry_a.,Daycare - Private Contractors Payment,732.00,0.00,COMMERCIAL SUPPLIER 
 04-12-2023,People - Ageing Well,Tapestry_a.,Daycare - Private Contractors Payment,732.00,0.00,COMMERCIAL SUPPLIER 
 04-12-2023,People - Ageing Well,Tapestry_a.,Daycare - Private Contractors Payment,732.00,0.00,COMMERCIAL SUPPLIER 
 04-12-2023,People - Ageing Well,Tapestry_a.,Daycare - Private Contractors Payment,732.00,0.00,COMMERCIAL SUPPLIER 
 04-12-2023,People - Ageing Well,Tapestry_a.,Daycare - Private Contractors Payment,732.00,0.00,COMMERCIAL SUPPLIER 
 04-12-2023,People - Ageing Well,Tapestry_a.,Daycare - Private Contractors Payment,732.00,0.00,COMMERCIAL SUPPLIER 
 04-12-2023,People - Ageing Well,Tapestry_a.,Daycare - Private Contractors Payment,732.00,0.00,COMMERCIAL SUPPLIER 
 04-12-2023,People - Ageing Well,Tapestry_a.,Daycare - Private Contractors Payment,732.00,0.00,COMMERCIAL SUPPLIER 
 13-12-2023,People - Ageing Well,Matrix SCM Ltd,Agency Staff,732.26,0.00,COMMERCIAL SUPPLIER 
 13-12-2023,People - Ageing Well,Matrix SCM Ltd,Agency Staff,732.26,0.00,COMMERCIAL SUPPLIER 
 20-12-2023,People - Ageing Well,Matrix SCM Ltd,Agency Staff,732.26,0.00,COMMERCIAL SUPPLIER 
 28-12-2023,People - Ageing Well,Matrix SCM Ltd,Agency Staff,732.26,0.00,COMMERCIAL SUPPLIER 
 12-12-2023,People - Ageing Well,Affinia Healthcare Ltd_a,Supported Other Accommodation - Private Contractors Payment,733.28,0.00,COMMERCIAL SUPPLIER 
 08-12-2023,People - Ageing Well,Lodge Group Care UK Ltd,Home Care - Private Contractors Payment,734.57,0.00,COMMERCIAL SUPPLIER 
 06-12-2023,People - Ageing Well,Headway East London,Daycare - Private Contractors Payment,735.00,0.00,COMMERCIAL SUPPLIER 
 12-12-2023,People - Ageing Well,Morepower Ltd t/a Aqs Homecare,Home Care - Private Contractors Payment,738.22,0.00,COMMERCIAL SUPPLIER 
 13-12-2023,People - Ageing Well,Homestead Care Service,Home Care - Private Contractors Payment,738.22,0.00,COMMERCIAL SUPPLIER 
 08-12-2023,People - Ageing Well,Home Support Services (Havering & Essex) Ltd,Home Care - Private Contractors Payment,742.59,0.00,COMMERCIAL SUPPLIER 
 13-12-2023,People - Ageing Well,Homestead Care Service,Home Care - Private Contractors Payment,744.41,0.00,COMMERCIAL SUPPLIER 
 13-12-2023,People - Ageing Well,Homestead Care Service,Home Care - Private Contractors Payment,746.95,0.00,COMMERCIAL SUPPLIER 
 12-12-2023,People - Ageing Well,John Stanleys Care Agency Ltd,Home Care - Private Contractors Payment,748.05,0.00,COMMERCIAL SUPPLIER 
 06-12-2023,People - Ageing Well,Matrix SCM Ltd,Agency Staff,749.94,0.00,COMMERCIAL SUPPLIER 
 04-12-2023,People - Ageing Well,All Therapy Solutions Ltd,Occupational Health,750.00,0.00,COMMERCIAL SUPPLIER 
 13-12-2023,People - Ageing Well,Homestead Care Service,Home Care - Private Contractors Payment,750.59,0.00,COMMERCIAL SUPPLIER 
 04-12-2023,People - Ageing Well,Gims Care Solution Ltd_a,Home Care - Private Contractors Payment,751.00,0.00,NON COMMERCIAL SUPPLIER 
 12-12-2023,People - Ageing Well,Care-Away Ltd T/A Care Support,Home Care - Private Contractors Payment,753.25,0.00,COMMERCIAL SUPPLIER 
 12-12-2023,People - Ageing Well,Home Sweet Home Care Ltd,Home Care - Private Contractors Payment,753.51,0.00,COMMERCIAL SUPPLIER 
 12-12-2023,People - Ageing Well,Home Sweet Home Care Ltd,Home Care - Private Contractors Payment,753.51,0.00,COMMERCIAL SUPPLIER 
 06-12-2023,People - Ageing Well,Radfield Home Care Havering & Brentwood,Home Care - Private Contractors Payment,754.04,0.00,COMMERCIAL SUPPLIER 
 13-12-2023,People - Ageing Well,Matrix SCM Ltd,Agency Staff,755.30,0.00,COMMERCIAL SUPPLIER 
 13-12-2023,People - Ageing Well,Matrix SCM Ltd,Agency Staff,755.30,0.00,COMMERCIAL SUPPLIER 
 12-12-2023,People - Ageing Well,Morepower Ltd t/a Aqs Homecare,Home Care - Private Contractors Payment,755.69,0.00,COMMERCIAL SUPPLIER 
 28-12-2023,People - Ageing Well,Matrix SCM Ltd,Agency Staff,756.00,0.00,COMMERCIAL SUPPLIER 
 13-12-2023,People - Ageing Well,Matrix SCM Ltd,Agency Staff,757.35,0.00,COMMERCIAL SUPPLIER 
 12-12-2023,People - Ageing Well,John Stanleys Care Agency Ltd,Home Care - Private Contractors Payment,757.88,0.00,COMMERCIAL SUPPLIER 
 12-12-2023,People - Ageing Well,Prior Care Ltd_a,Home Care - Private Contractors Payment,758.96,0.00,COMMERCIAL SUPPLIER 
 07-12-2023,People - Ageing Well,Cera Care Operations Ltd,Home Care - Private Contractors Payment,761.88,0.00,COMMERCIAL SUPPLIER 
 04-12-2023,People - Ageing Well,IJB Healthcare Ltd,Home Care - Private Contractors Payment,764.42,0.00,COMMERCIAL SUPPLIER 
 04-12-2023,People - Ageing Well,London Homecare Ltd,Home Care - Private Contractors Payment,764.42,0.00,COMMERCIAL SUPPLIER 
 04-12-2023,People - Ageing Well,London Homecare Ltd,Home Care - Private Contractors Payment,764.42,0.00,COMMERCIAL SUPPLIER 
 06-12-2023,People - Ageing Well,Haven Care Ltd.,Home Care - Private Contractors Payment,764.42,0.00,COMMERCIAL SUPPLIER 
 11-12-2023,People - Ageing Well,Anytime Care 2020_a,Home Care - Private Contractors Payment,767.34,0.00,COMMERCIAL SUPPLIER 
 11-12-2023,People - Ageing Well,Anytime Care 2020_a,Home Care - Private Contractors Payment,767.34,0.00,COMMERCIAL SUPPLIER 
 12-12-2023,People - Ageing Well,John Stanleys Care Agency Ltd,Home Care - Private Contractors Payment,768.79,0.00,COMMERCIAL SUPPLIER 
 11-12-2023,People - Ageing Well,Anytime Care 2020_a,Home Care - Private Contractors Payment,770.96,0.00,COMMERCIAL SUPPLIER 
 12-12-2023,People - Ageing Well,John Stanleys Care Agency Ltd,Home Care - Private Contractors Payment,771.34,0.00,COMMERCIAL SUPPLIER 
 12-12-2023,People - Ageing Well,John Stanleys Care Agency Ltd,Home Care - Private Contractors Payment,772.79,0.00,COMMERCIAL SUPPLIER 
 12-12-2023,People - Ageing Well,John Stanleys Care Agency Ltd,Home Care - Private Contractors Payment,773.89,0.00,COMMERCIAL SUPPLIER 
 20-12-2023,People - Ageing Well,Matrix SCM Ltd,Agency Staff,774.90,0.00,COMMERCIAL SUPPLIER 
 28-12-2023,People - Ageing Well,Matrix SCM Ltd,Agency Staff,774.90,0.00,COMMERCIAL SUPPLIER 
 12-12-2023,People - Ageing Well,Acorn Village_a,Residential Placements - Private Contractors Payment,774.92,0.00,COMMERCIAL SUPPLIER 
 12-12-2023,People - Ageing Well,London Borough of Barking & Dagenham_a,Daycare - Private Contractors Payment,776.00,0.00,LOCAL AUTHORITY SERVICES 
 13-12-2023,People - Ageing Well,Homestead Care Service,Home Care - Private Contractors Payment,776.07,0.00,COMMERCIAL SUPPLIER 
 13-12-2023,People - Ageing Well,Homestead Care Service,Home Care - Private Contractors Payment,776.07,0.00,COMMERCIAL SUPPLIER 
 07-12-2023,People - Ageing Well,Cera Care Operations Ltd,Home Care - Private Contractors Payment,776.43,0.00,COMMERCIAL SUPPLIER 
 13-12-2023,People - Ageing Well,Matrix SCM Ltd,Agency Staff,778.23,0.00,COMMERCIAL SUPPLIER 
 08-12-2023,People - Ageing Well,Home Support Services (Havering & Essex) Ltd,Home Care - Private Contractors Payment,779.35,0.00,COMMERCIAL SUPPLIER 
 04-12-2023,People - Ageing Well,London Homecare Ltd,Home Care - Private Contractors Payment,780.80,0.00,COMMERCIAL SUPPLIER 
 11-12-2023,People - Ageing Well,Prestige Care & Support Ltd,Home Care - Private Contractors Payment,784.45,0.00,COMMERCIAL SUPPLIER 
 12-12-2023,People - Ageing Well,Sahara Care Ltd,Residential Placements - Private Contractors Payment,785.50,0.00,COMMERCIAL SUPPLIER 
 07-12-2023,People - Ageing Well,Cera Care Operations Ltd,Home Care - Private Contractors Payment,785.54,0.00,COMMERCIAL SUPPLIER 
 11-12-2023,People - Ageing Well,Outreach Support Services Ltd,Home Care - Private Contractors Payment,786.26,0.00,COMMERCIAL SUPPLIER 
 08-12-2023,People - Ageing Well,Home Support Services (Havering & Essex) Ltd,Home Care - Private Contractors Payment,786.27,0.00,COMMERCIAL SUPPLIER 
 26-12-2023,People - Ageing Well,Personal Information - Redacted,Home Care - Private Contractors Payment,789.36,0.00,INDIVIDUALS 
 08-12-2023,People - Ageing Well,Home Support Services (Havering & Essex) Ltd,Home Care - Private Contractors Payment,789.91,0.00,COMMERCIAL SUPPLIER 
 12-12-2023,People - Ageing Well,Home Sweet Home Care Ltd,Home Care - Private Contractors Payment,790.64,0.00,COMMERCIAL SUPPLIER 
 13-12-2023,People - Ageing Well,Matrix SCM Ltd,Agency Staff,790.91,0.00,COMMERCIAL SUPPLIER 
 20-12-2023,People - Ageing Well,Matrix SCM Ltd,Agency Staff,790.91,0.00,COMMERCIAL SUPPLIER 
 28-12-2023,People - Ageing Well,Matrix SCM Ltd,Agency Staff,790.91,0.00,COMMERCIAL SUPPLIER 
 06-12-2023,People - Ageing Well,Matrix SCM Ltd,Agency Staff,790.93,0.00,COMMERCIAL SUPPLIER 
 20-12-2023,People - Ageing Well,Matrix SCM Ltd,Agency Staff,790.93,0.00,COMMERCIAL SUPPLIER 
 28-12-2023,People - Ageing Well,Matrix SCM Ltd,Agency Staff,790.93,0.00,COMMERCIAL SUPPLIER 
 08-12-2023,People - Ageing Well,Lodge Group Care UK Ltd,Home Care - Private Contractors Payment,800.83,0.00,COMMERCIAL SUPPLIER 
 08-12-2023,People - Ageing Well,Home Support Services (Havering & Essex) Ltd,Home Care - Private Contractors Payment,801.56,0.00,COMMERCIAL SUPPLIER 
 11-12-2023,People - Ageing Well,Care-Away Ltd T/A Care Support,Home Care - Private Contractors Payment,802.38,0.00,COMMERCIAL SUPPLIER 
 12-12-2023,People - Ageing Well,Care-Away Ltd T/A Care Support,Home Care - Private Contractors Payment,802.38,0.00,COMMERCIAL SUPPLIER 
 12-12-2023,People - Ageing Well,Home Sweet Home Care Ltd,Home Care - Private Contractors Payment,805.19,0.00,COMMERCIAL SUPPLIER 
 12-12-2023,People - Ageing Well,Ashgate House Ltd_a,Residential Placements - Private Contractors Payment,805.84,0.00,COMMERCIAL SUPPLIER 
 08-12-2023,People - Ageing Well,Home Support Services (Havering & Essex) Ltd,Home Care - Private Contractors Payment,808.11,0.00,COMMERCIAL SUPPLIER 
 08-12-2023,People - Ageing Well,Lodge Group Care UK Ltd,Home Care - Private Contractors Payment,810.66,0.00,COMMERCIAL SUPPLIER 
 12-12-2023,People - Ageing Well,Coastal Supported Living CIC,Supported Other Accommodation - Private Contractors Payment,816.04,0.00,COMMERCIAL SUPPLIER 
 13-12-2023,People - Ageing Well,Quality Healthcare Solutions Ltd t/a Kare Plus Romford,Home Care - Private Contractors Payment,816.84,0.00,COMMERCIAL SUPPLIER 
 03-12-2023,People - Ageing Well,Personal Information - Redacted,Home Care - Private Contractors Payment,819.03,0.00,INDIVIDUALS 
 05-12-2023,People - Ageing Well,Inna Care Ltd,Home Care - Private Contractors Payment,819.03,0.00,COMMERCIAL SUPPLIER 
 11-12-2023,People - Ageing Well,Prestige Care & Support Ltd,Home Care - Private Contractors Payment,819.03,0.00,COMMERCIAL SUPPLIER 
 12-12-2023,People - Ageing Well,Outlook Care - 76 Neave Crescent,Supported Other Accommodation - Private Contractors Payment,821.48,0.00,COMMERCIAL SUPPLIER 
 13-12-2023,People - Ageing Well,Homestead Care Service,Home Care - Private Contractors Payment,821.58,0.00,COMMERCIAL SUPPLIER 
 08-12-2023,People - Ageing Well,Home Support Services (Havering & Essex) Ltd,Home Care - Private Contractors Payment,825.94,0.00,COMMERCIAL SUPPLIER 
 12-12-2023,People - Ageing Well,Home Sweet Home Care Ltd,Home Care - Private Contractors Payment,825.95,0.00,COMMERCIAL SUPPLIER 
 07-12-2023,People - Ageing Well,Cera Care Operations Ltd,Home Care - Private Contractors Payment,829.58,0.00,COMMERCIAL SUPPLIER 
 11-12-2023,People - Ageing Well,Prestige Care & Support Ltd,Home Care - Private Contractors Payment,829.95,0.00,COMMERCIAL SUPPLIER 
 11-12-2023,People - Ageing Well,Passion Tree Care Services Ltd,Home Care - Private Contractors Payment,829.95,0.00,COMMERCIAL SUPPLIER 
 04-12-2023,People - Ageing Well,Bluebird Care Havering,Home Care - Private Contractors Payment,831.36,0.00,COMMERCIAL SUPPLIER 
 18-12-2023,People - Ageing Well,Bluebird Care Havering,Home Care - Private Contractors Payment,831.36,0.00,COMMERCIAL SUPPLIER 
 11-12-2023,People - Ageing Well,Anytime Care 2020_a,Home Care - Private Contractors Payment,831.41,0.00,COMMERCIAL SUPPLIER 
 12-12-2023,People - Ageing Well,Chosen Care Group Ltd,Supported Other Accommodation - Private Contractors Payment,834.40,0.00,COMMERCIAL SUPPLIER 
 08-12-2023,People - Ageing Well,R G Care Ltd ,Daycare - Private Contractors Payment,840.00,0.00,COMMERCIAL SUPPLIER 
 12-12-2023,People - Ageing Well,Sahara Care Ltd,Residential Placements - Private Contractors Payment,841.00,0.00,COMMERCIAL SUPPLIER 
 12-12-2023,People - Ageing Well,Prior Care Ltd_a,Home Care - Private Contractors Payment,843.42,0.00,COMMERCIAL SUPPLIER 
 12-12-2023,People - Ageing Well,Home Sweet Home Care Ltd,Home Care - Private Contractors Payment,843.77,0.00,COMMERCIAL SUPPLIER 
 12-12-2023,People - Ageing Well,John Stanleys Care Agency Ltd,Home Care - Private Contractors Payment,845.97,0.00,COMMERCIAL SUPPLIER 
 12-12-2023,People - Ageing Well,Ashgate House Ltd_a,Residential Placements - Private Contractors Payment,846.16,0.00,COMMERCIAL SUPPLIER 
 12-12-2023,People - Ageing Well,John Stanleys Care Agency Ltd,Home Care - Private Contractors Payment,849.61,0.00,COMMERCIAL SUPPLIER 
 07-12-2023,People - Ageing Well,Cera Care Operations Ltd,Home Care - Private Contractors Payment,851.43,0.00,COMMERCIAL SUPPLIER 
 11-12-2023,People - Ageing Well,Prestige Care & Support Ltd,Home Care - Private Contractors Payment,852.52,0.00,COMMERCIAL SUPPLIER 
 08-12-2023,People - Ageing Well,Home Support Services (Havering & Essex) Ltd,Home Care - Private Contractors Payment,853.98,0.00,COMMERCIAL SUPPLIER 
 12-12-2023,People - Ageing Well,Topaz Care and Support Co Ltd,Supported Other Accommodation - Private Contractors Payment,854.20,0.00,COMMERCIAL SUPPLIER 
 11-12-2023,People - Ageing Well,Prestige Care & Support Ltd,Home Care - Private Contractors Payment,854.33,0.00,COMMERCIAL SUPPLIER 
 07-12-2023,People - Ageing Well,Cera Care Operations Ltd,Home Care - Private Contractors Payment,855.42,0.00,COMMERCIAL SUPPLIER 
 13-12-2023,People - Ageing Well,Quality Healthcare Solutions Ltd t/a Kare Plus Romford,Home Care - Private Contractors Payment,856.16,0.00,COMMERCIAL SUPPLIER 
 12-12-2023,People - Ageing Well,Lodge Lane Care Home Limited,Residential Placements - Private Contractors Payment,857.14,0.00,COMMERCIAL SUPPLIER 
 11-12-2023,People - Ageing Well,Care-Away Ltd T/A Care Support,Home Care - Private Contractors Payment,860.67,0.00,COMMERCIAL SUPPLIER 
 12-12-2023,People - Ageing Well,Outlook Care - 76 Neave Crescent,Supported Other Accommodation - Private Contractors Payment,860.72,0.00,COMMERCIAL SUPPLIER 
 20-12-2023,People - Ageing Well,Trinity London Care Ltd,Daycare - Private Contractors Payment,864.00,0.00,COMMERCIAL SUPPLIER 
 07-12-2023,People - Ageing Well,Cera Care Operations Ltd,Home Care - Private Contractors Payment,864.16,0.00,COMMERCIAL SUPPLIER 
 12-12-2023,People - Ageing Well,Home Sweet Home Care Ltd,Home Care - Private Contractors Payment,864.17,0.00,COMMERCIAL SUPPLIER 
 07-12-2023,People - Ageing Well,Cera Care Operations Ltd,Home Care - Private Contractors Payment,872.17,0.00,COMMERCIAL SUPPLIER 
 12-12-2023,People - Ageing Well,DMP Healthcare (Cherry Orchard) Ltd,Nursing Homes - Private Contractors Payment,872.65,0.00,COMMERCIAL SUPPLIER 
 12-12-2023,People - Ageing Well,DMP Healthcare (Cherry Orchard) Ltd,Nursing Homes - Private Contractors Payment,872.65,0.00,COMMERCIAL SUPPLIER 
 12-12-2023,People - Ageing Well,DMP Healthcare (Cherry Orchard) Ltd,Nursing Homes - Private Contractors Payment,872.65,0.00,COMMERCIAL SUPPLIER 
 12-12-2023,People - Ageing Well,DMP Healthcare (Cherry Orchard) Ltd,Nursing Homes - Private Contractors Payment,872.65,0.00,COMMERCIAL SUPPLIER 
 12-12-2023,People - Ageing Well,DMP Healthcare (Cherry Orchard) Ltd,Nursing Homes - Private Contractors Payment,872.65,0.00,COMMERCIAL SUPPLIER 
 12-12-2023,People - Ageing Well,DMP Healthcare (Cherry Orchard) Ltd,Nursing Homes - Private Contractors Payment,872.65,0.00,COMMERCIAL SUPPLIER 
 12-12-2023,People - Ageing Well,DMP Healthcare (Cherry Orchard) Ltd,Nursing Homes - Private Contractors Payment,872.65,0.00,COMMERCIAL SUPPLIER 
 12-12-2023,People - Ageing Well,DMP Healthcare (Cherry Orchard) Ltd,Nursing Homes - Private Contractors Payment,872.65,0.00,COMMERCIAL SUPPLIER 
 12-12-2023,People - Ageing Well,DMP Healthcare (Cherry Orchard) Ltd,Nursing Homes - Private Contractors Payment,872.65,0.00,COMMERCIAL SUPPLIER 
 12-12-2023,People - Ageing Well,DMP Healthcare (Cherry Orchard) Ltd,Nursing Homes - Private Contractors Payment,872.65,0.00,COMMERCIAL SUPPLIER 
 26-12-2023,People - Ageing Well,Personal Information - Redacted,Home Care - Private Contractors Payment,873.60,0.00,INDIVIDUALS 
 26-12-2023,People - Ageing Well,Personal Information - Redacted,Home Care - Private Contractors Payment,873.60,0.00,INDIVIDUALS 
 26-12-2023,People - Ageing Well,Personal Information - Redacted,Home Care - Private Contractors Payment,873.60,0.00,INDIVIDUALS 
 26-12-2023,People - Ageing Well,Personal Information - Redacted,Home Care - Private Contractors Payment,873.60,0.00,INDIVIDUALS 
 26-12-2023,People - Ageing Well,Personal Information - Redacted,Home Care - Private Contractors Payment,873.60,0.00,INDIVIDUALS 
 26-12-2023,People - Ageing Well,Personal Information - Redacted,Home Care - Private Contractors Payment,873.60,0.00,INDIVIDUALS 
 03-12-2023,People - Ageing Well,Personal Information - Redacted,Home Care - Private Contractors Payment,873.63,0.00,INDIVIDUALS 
 08-12-2023,People - Ageing Well,Lodge Group Care UK Ltd,Home Care - Private Contractors Payment,874.36,0.00,COMMERCIAL SUPPLIER 
 08-12-2023,People - Ageing Well,Lodge Group Care UK Ltd,Home Care - Private Contractors Payment,874.36,0.00,COMMERCIAL SUPPLIER 
 12-12-2023,People - Ageing Well,Prior Care Ltd_a,Home Care - Private Contractors Payment,875.82,0.00,COMMERCIAL SUPPLIER 
 12-12-2023,People - Ageing Well,Blessday Services Ltd,Supported Other Accommodation - Private Contractors Payment,884.00,0.00,COMMERCIAL SUPPLIER 
 08-12-2023,People - Ageing Well,Lodge Group Care UK Ltd,Home Care - Private Contractors Payment,885.25,0.00,COMMERCIAL SUPPLIER 
 13-12-2023,People - Ageing Well,Matrix SCM Ltd,Agency Staff,885.60,0.00,COMMERCIAL SUPPLIER 
 12-12-2023,People - Ageing Well,Morepower Ltd t/a Aqs Homecare,Home Care - Private Contractors Payment,885.63,0.00,COMMERCIAL SUPPLIER 
 12-12-2023,People - Ageing Well,John Stanleys Care Agency Ltd,Home Care - Private Contractors Payment,886.37,0.00,COMMERCIAL SUPPLIER 
 12-12-2023,People - Ageing Well,Home Sweet Home Care Ltd,Home Care - Private Contractors Payment,886.74,0.00,COMMERCIAL SUPPLIER 
 08-12-2023,People - Ageing Well,Lodge Group Care UK Ltd,Home Care - Private Contractors Payment,889.65,0.00,COMMERCIAL SUPPLIER 
 13-12-2023,People - Ageing Well,Homestead Care Service,Home Care - Private Contractors Payment,890.01,0.00,COMMERCIAL SUPPLIER 
 12-12-2023,People - Ageing Well,Personal Information - Redacted,Direct Payments Income,892.40,0.00,INDIVIDUALS 
 12-12-2023,People - Ageing Well,Personal Information - Redacted,Direct Payments Income,892.40,0.00,INDIVIDUALS 
 12-12-2023,People - Ageing Well,Personal Information - Redacted,Direct Payments Income,892.40,0.00,INDIVIDUALS 
 12-12-2023,People - Ageing Well,Personal Information - Redacted,Direct Payments Income,892.40,0.00,INDIVIDUALS 
 12-12-2023,People - Ageing Well,Personal Information - Redacted,Direct Payments Income,892.40,0.00,INDIVIDUALS 
 11-12-2023,People - Ageing Well,Prestige Care & Support Ltd,Home Care - Private Contractors Payment,892.56,0.00,COMMERCIAL SUPPLIER 
 11-12-2023,People - Ageing Well,Passion Tree Care Services Ltd,Home Care - Private Contractors Payment,895.47,0.00,COMMERCIAL SUPPLIER 
 12-12-2023,People - Ageing Well,Personal Information - Redacted,Direct Payments Income,896.00,0.00,INDIVIDUALS 
 12-12-2023,People - Ageing Well,Personal Information - Redacted,Direct Payments Income,896.00,0.00,INDIVIDUALS 
 12-12-2023,People - Ageing Well,Personal Information - Redacted,Direct Payments Income,896.00,0.00,INDIVIDUALS 
 12-12-2023,People - Ageing Well,Personal Information - Redacted,Direct Payments Income,896.00,0.00,INDIVIDUALS 
 07-12-2023,People - Ageing Well,Cera Care Operations Ltd,Home Care - Private Contractors Payment,896.20,0.00,COMMERCIAL SUPPLIER 
 12-12-2023,People - Ageing Well,John Stanleys Care Agency Ltd,Home Care - Private Contractors Payment,896.20,0.00,COMMERCIAL SUPPLIER 
 13-12-2023,People - Ageing Well,Homestead Care Service,Home Care - Private Contractors Payment,898.02,0.00,COMMERCIAL SUPPLIER 
 11-12-2023,People - Ageing Well,Anytime Care 2020_a,Home Care - Private Contractors Payment,899.48,0.00,COMMERCIAL SUPPLIER 
 08-12-2023,People - Ageing Well,R G Care Ltd ,Daycare - Private Contractors Payment,900.00,0.00,COMMERCIAL SUPPLIER 
 11-12-2023,People - Ageing Well,Prestige Care & Support Ltd,Home Care - Private Contractors Payment,901.29,0.00,COMMERCIAL SUPPLIER 
 12-12-2023,People - Ageing Well,DMP Healthcare (Cherry Orchard) Ltd,Nursing Homes - Private Contractors Payment,903.82,0.00,COMMERCIAL SUPPLIER 
 08-12-2023,People - Ageing Well,Lodge Group Care UK Ltd,Home Care - Private Contractors Payment,904.21,0.00,COMMERCIAL SUPPLIER 
 13-12-2023,People - Ageing Well,Quality Healthcare Solutions Ltd t/a Kare Plus Romford,Home Care - Private Contractors Payment,904.57,0.00,COMMERCIAL SUPPLIER 
 12-12-2023,People - Ageing Well,Home Sweet Home Care Ltd,Home Care - Private Contractors Payment,906.39,0.00,COMMERCIAL SUPPLIER 
 13-12-2023,People - Ageing Well,Care-Away Ltd T/A Care Support,Home Care - Private Contractors Payment,907.83,0.00,COMMERCIAL SUPPLIER 
 08-12-2023,People - Ageing Well,Home Support Services (Havering & Essex) Ltd,Home Care - Private Contractors Payment,908.94,0.00,COMMERCIAL SUPPLIER 
 12-12-2023,People - Ageing Well,DMP Healthcare (Heatherbrook) Ltd,Nursing Care Income,909.24,0.00,NON COMMERCIAL SUPPLIER 
 12-12-2023,People - Ageing Well,John Stanleys Care Agency Ltd,Home Care - Private Contractors Payment,911.49,0.00,COMMERCIAL SUPPLIER 
 12-12-2023,People - Ageing Well,Morepower Ltd t/a Aqs Homecare,Home Care - Private Contractors Payment,913.31,0.00,COMMERCIAL SUPPLIER 
 12-12-2023,People - Ageing Well,Home Sweet Home Care Ltd,Home Care - Private Contractors Payment,914.04,0.00,COMMERCIAL SUPPLIER 
 07-12-2023,People - Ageing Well,Cera Care Operations Ltd,Home Care - Private Contractors Payment,914.40,0.00,COMMERCIAL SUPPLIER 
 11-12-2023,People - Ageing Well,Anytime Care 2020_a,Home Care - Private Contractors Payment,914.40,0.00,COMMERCIAL SUPPLIER 
 11-12-2023,People - Ageing Well,Care-Away Ltd T/A Care Support,Home Care - Private Contractors Payment,917.00,0.00,COMMERCIAL SUPPLIER 
 11-12-2023,People - Ageing Well,Care-Away Ltd T/A Care Support,Home Care - Private Contractors Payment,917.00,0.00,COMMERCIAL SUPPLIER 
 12-12-2023,People - Ageing Well,Care-Away Ltd T/A Care Support,Home Care - Private Contractors Payment,917.00,0.00,COMMERCIAL SUPPLIER 
 12-12-2023,People - Ageing Well,Care-Away Ltd T/A Care Support,Home Care - Private Contractors Payment,917.00,0.00,COMMERCIAL SUPPLIER 
 13-12-2023,People - Ageing Well,Care-Away Ltd T/A Care Support,Home Care - Private Contractors Payment,917.00,0.00,COMMERCIAL SUPPLIER 
 13-12-2023,People - Ageing Well,Care-Away Ltd T/A Care Support,Home Care - Private Contractors Payment,917.00,0.00,COMMERCIAL SUPPLIER 
 13-12-2023,People - Ageing Well,Care-Away Ltd T/A Care Support,Home Care - Private Contractors Payment,917.00,0.00,COMMERCIAL SUPPLIER 
 13-12-2023,People - Ageing Well,Care-Away Ltd T/A Care Support,Home Care - Private Contractors Payment,917.00,0.00,COMMERCIAL SUPPLIER 
 13-12-2023,People - Ageing Well,Westminster Homecare Ltd_a,Home Care - Private Contractors Payment,917.30,0.00,COMMERCIAL SUPPLIER 
 03-12-2023,People - Ageing Well,Personal Information - Redacted,Home Care - Private Contractors Payment,917.31,0.00,INDIVIDUALS 
 03-12-2023,People - Ageing Well,Personal Information - Redacted,Home Care - Private Contractors Payment,917.31,0.00,INDIVIDUALS 
 05-12-2023,People - Ageing Well,Inna Care Ltd,Home Care - Private Contractors Payment,917.31,0.00,COMMERCIAL SUPPLIER 
 05-12-2023,People - Ageing Well,Inna Care Ltd,Home Care - Private Contractors Payment,917.31,0.00,COMMERCIAL SUPPLIER 
 05-12-2023,People - Ageing Well,Inna Care Ltd,Home Care - Private Contractors Payment,917.31,0.00,COMMERCIAL SUPPLIER 
 05-12-2023,People - Ageing Well,Inna Care Ltd,Home Care - Private Contractors Payment,917.31,0.00,COMMERCIAL SUPPLIER 
 05-12-2023,People - Ageing Well,Inna Care Ltd,Home Care - Private Contractors Payment,917.31,0.00,COMMERCIAL SUPPLIER 
 08-12-2023,People - Ageing Well,Lodge Group Care UK Ltd,Home Care - Private Contractors Payment,917.31,0.00,COMMERCIAL SUPPLIER 
 08-12-2023,People - Ageing Well,Lodge Group Care UK Ltd,Home Care - Private Contractors Payment,917.31,0.00,COMMERCIAL SUPPLIER 
 08-12-2023,People - Ageing Well,Home Support Services (Havering & Essex) Ltd,Home Care - Private Contractors Payment,917.31,0.00,COMMERCIAL SUPPLIER 
 08-12-2023,People - Ageing Well,Home Support Services (Havering & Essex) Ltd,Home Care - Private Contractors Payment,917.31,0.00,COMMERCIAL SUPPLIER 
 08-12-2023,People - Ageing Well,Home Support Services (Havering & Essex) Ltd,Home Care - Private Contractors Payment,917.31,0.00,COMMERCIAL SUPPLIER 
 11-12-2023,People - Ageing Well,Anytime Care 2020_a,Home Care - Private Contractors Payment,917.31,0.00,COMMERCIAL SUPPLIER 
 11-12-2023,People - Ageing Well,Anytime Care 2020_a,Home Care - Private Contractors Payment,917.31,0.00,COMMERCIAL SUPPLIER 
 11-12-2023,People - Ageing Well,Passion Tree Care Services Ltd,Home Care - Private Contractors Payment,917.31,0.00,COMMERCIAL SUPPLIER 
 11-12-2023,People - Ageing Well,Rosemont Care Limited,Home Care - Private Contractors Payment,917.31,0.00,COMMERCIAL SUPPLIER 
 11-12-2023,People - Ageing Well,Rosemont Care Limited,Home Care - Private Contractors Payment,917.31,0.00,COMMERCIAL SUPPLIER 
 11-12-2023,People - Ageing Well,Outreach Support Services Ltd,Home Care - Private Contractors Payment,917.31,0.00,COMMERCIAL SUPPLIER 
 12-12-2023,People - Ageing Well,Home Sweet Home Care Ltd,Home Care - Private Contractors Payment,917.31,0.00,COMMERCIAL SUPPLIER 
 08-12-2023,People - Ageing Well,Lodge Group Care UK Ltd,Home Care - Private Contractors Payment,917.68,0.00,COMMERCIAL SUPPLIER 
 13-12-2023,People - Ageing Well,Quality Healthcare Solutions Ltd t/a Kare Plus Romford,Home Care - Private Contractors Payment,917.68,0.00,COMMERCIAL SUPPLIER 
 03-12-2023,People - Ageing Well,Personal Information - Redacted,Home Care - Private Contractors Payment,917.88,0.00,INDIVIDUALS 
 08-12-2023,People - Ageing Well,Home Support Services (Havering & Essex) Ltd,Home Care - Private Contractors Payment,918.04,0.00,COMMERCIAL SUPPLIER 
 11-12-2023,People - Ageing Well,Anytime Care 2020_a,Home Care - Private Contractors Payment,918.04,0.00,COMMERCIAL SUPPLIER 
 12-12-2023,People - Ageing Well,Morepower Ltd t/a Aqs Homecare,Home Care - Private Contractors Payment,918.04,0.00,COMMERCIAL SUPPLIER 
 12-12-2023,People - Ageing Well,Omega Elifar Ltd,Residential Placements - Private Contractors Payment,918.40,0.00,COMMERCIAL SUPPLIER 
 08-12-2023,People - Ageing Well,Lodge Group Care UK Ltd,Home Care - Private Contractors Payment,918.41,0.00,COMMERCIAL SUPPLIER 
 08-12-2023,People - Ageing Well,Lodge Group Care UK Ltd,Home Care - Private Contractors Payment,918.77,0.00,COMMERCIAL SUPPLIER 
 13-12-2023,People - Ageing Well,Homestead Care Service,Home Care - Private Contractors Payment,918.77,0.00,COMMERCIAL SUPPLIER 
 08-12-2023,People - Ageing Well,Lodge Group Care UK Ltd,Home Care - Private Contractors Payment,919.13,0.00,COMMERCIAL SUPPLIER 
 08-12-2023,People - Ageing Well,Lodge Group Care UK Ltd,Home Care - Private Contractors Payment,919.50,0.00,COMMERCIAL SUPPLIER 
 08-12-2023,People - Ageing Well,Home Support Services (Havering & Essex) Ltd,Home Care - Private Contractors Payment,920.23,0.00,COMMERCIAL SUPPLIER 
 12-12-2023,People - Ageing Well,John Stanleys Care Agency Ltd,Home Care - Private Contractors Payment,920.23,0.00,COMMERCIAL SUPPLIER 
 11-12-2023,People - Ageing Well,Anytime Care 2020_a,Home Care - Private Contractors Payment,920.59,0.00,COMMERCIAL SUPPLIER 
 12-12-2023,People - Ageing Well,Home Sweet Home Care Ltd,Home Care - Private Contractors Payment,920.59,0.00,COMMERCIAL SUPPLIER 
 06-12-2023,People - Ageing Well,Hospiva Care & Associates Agency Ltd_a,Home Care - Private Contractors Payment,921.68,0.00,COMMERCIAL SUPPLIER 
 06-12-2023,People - Ageing Well,Hospiva Care & Associates Agency Ltd_a,Home Care - Private Contractors Payment,921.68,0.00,COMMERCIAL SUPPLIER 
 12-12-2023,People - Ageing Well,Kadmiel Projects Ltd,Supported Other Accommodation - Private Contractors Payment,922.40,0.00,COMMERCIAL SUPPLIER 
 07-12-2023,People - Ageing Well,Cera Care Operations Ltd,Home Care - Private Contractors Payment,922.41,0.00,COMMERCIAL SUPPLIER 
 12-12-2023,People - Ageing Well,Livingstone Health Care Services,Home Care - Private Contractors Payment,926.05,0.00,COMMERCIAL SUPPLIER 
 08-12-2023,People - Ageing Well,Lodge Group Care UK Ltd,Home Care - Private Contractors Payment,927.14,0.00,COMMERCIAL SUPPLIER 
 11-12-2023,People - Ageing Well,Anytime Care 2020_a,Home Care - Private Contractors Payment,927.14,0.00,COMMERCIAL SUPPLIER 
 12-12-2023,People - Ageing Well,Home Sweet Home Care Ltd,Home Care - Private Contractors Payment,927.87,0.00,COMMERCIAL SUPPLIER 
 03-12-2023,People - Ageing Well,Eastway Care Ltd_a,Daycare - Private Contractors Payment,928.00,0.00,COMMERCIAL SUPPLIER 
 03-12-2023,People - Ageing Well,Eastway Care Ltd_a,Daycare - Private Contractors Payment,928.00,0.00,COMMERCIAL SUPPLIER 
 11-12-2023,People - Ageing Well,Anytime Care 2020_a,Home Care - Private Contractors Payment,928.23,0.00,COMMERCIAL SUPPLIER 
 08-12-2023,People - Ageing Well,Lodge Group Care UK Ltd,Home Care - Private Contractors Payment,928.60,0.00,COMMERCIAL SUPPLIER 
 08-12-2023,People - Ageing Well,Lodge Group Care UK Ltd,Home Care - Private Contractors Payment,928.60,0.00,COMMERCIAL SUPPLIER 
 12-12-2023,People - Ageing Well,Livingstone Health Care Services,Home Care - Private Contractors Payment,928.60,0.00,COMMERCIAL SUPPLIER 
 08-12-2023,People - Ageing Well,Lodge Group Care UK Ltd,Home Care - Private Contractors Payment,928.96,0.00,COMMERCIAL SUPPLIER 
 08-12-2023,People - Ageing Well,Lodge Group Care UK Ltd,Home Care - Private Contractors Payment,928.96,0.00,COMMERCIAL SUPPLIER 
 08-12-2023,People - Ageing Well,Lodge Group Care UK Ltd,Home Care - Private Contractors Payment,929.33,0.00,COMMERCIAL SUPPLIER 
 08-12-2023,People - Ageing Well,Lodge Group Care UK Ltd,Home Care - Private Contractors Payment,929.33,0.00,COMMERCIAL SUPPLIER 
 08-12-2023,People - Ageing Well,Lodge Group Care UK Ltd,Home Care - Private Contractors Payment,929.33,0.00,COMMERCIAL SUPPLIER 
 12-12-2023,People - Ageing Well,Morepower Ltd t/a Aqs Homecare,Home Care - Private Contractors Payment,929.69,0.00,COMMERCIAL SUPPLIER 
 12-12-2023,People - Ageing Well,Morepower Ltd t/a Aqs Homecare,Home Care - Private Contractors Payment,930.42,0.00,COMMERCIAL SUPPLIER 
 08-12-2023,People - Ageing Well,Home Support Services (Havering & Essex) Ltd,Home Care - Private Contractors Payment,932.24,0.00,COMMERCIAL SUPPLIER 
 12-12-2023,People - Ageing Well,Able2achieve Ltd,Supported Other Accommodation - Private Contractors Payment,933.60,0.00,COMMERCIAL SUPPLIER 
 08-12-2023,People - Ageing Well,Lodge Group Care UK Ltd,Home Care - Private Contractors Payment,933.69,0.00,COMMERCIAL SUPPLIER 
 08-12-2023,People - Ageing Well,Lodge Group Care UK Ltd,Home Care - Private Contractors Payment,933.69,0.00,COMMERCIAL SUPPLIER 
 12-12-2023,People - Ageing Well,Home Sweet Home Care Ltd,Home Care - Private Contractors Payment,933.69,0.00,COMMERCIAL SUPPLIER 
 12-12-2023,People - Ageing Well,Morepower Ltd t/a Aqs Homecare,Home Care - Private Contractors Payment,934.42,0.00,COMMERCIAL SUPPLIER 
 07-12-2023,People - Ageing Well,Cera Care Operations Ltd,Home Care - Private Contractors Payment,935.15,0.00,COMMERCIAL SUPPLIER 
 11-12-2023,People - Ageing Well,Prestige Care & Support Ltd,Home Care - Private Contractors Payment,935.51,0.00,COMMERCIAL SUPPLIER 
 12-12-2023,People - Ageing Well,DMP Healthcare (Cherry Orchard) Ltd,Residential Placements - Private Contractors Payment,935.64,0.00,COMMERCIAL SUPPLIER 
 06-12-2023,People - Ageing Well,Hospiva Care & Associates Agency Ltd_a,Home Care - Private Contractors Payment,936.24,0.00,COMMERCIAL SUPPLIER 
 08-12-2023,People - Ageing Well,London Care Plc_a,Home Care - Private Contractors Payment,936.60,0.00,COMMERCIAL SUPPLIER 
 12-12-2023,People - Ageing Well,Prior Care Ltd_a,Home Care - Private Contractors Payment,936.61,0.00,COMMERCIAL SUPPLIER 
 08-12-2023,People - Ageing Well,Lodge Group Care UK Ltd,Home Care - Private Contractors Payment,937.70,0.00,COMMERCIAL SUPPLIER 
 08-12-2023,People - Ageing Well,Lodge Group Care UK Ltd,Home Care - Private Contractors Payment,937.70,0.00,COMMERCIAL SUPPLIER 
 08-12-2023,People - Ageing Well,Lodge Group Care UK Ltd,Home Care - Private Contractors Payment,938.06,0.00,COMMERCIAL SUPPLIER 
 08-12-2023,People - Ageing Well,Home Support Services (Havering & Essex) Ltd,Home Care - Private Contractors Payment,938.06,0.00,COMMERCIAL SUPPLIER 
 13-12-2023,People - Ageing Well,Quality Healthcare Solutions Ltd t/a Kare Plus Romford,Home Care - Private Contractors Payment,938.06,0.00,COMMERCIAL SUPPLIER 
 11-12-2023,People - Ageing Well,Prestige Care & Support Ltd,Home Care - Private Contractors Payment,938.43,0.00,COMMERCIAL SUPPLIER 
 08-12-2023,People - Ageing Well,Home Support Services (Havering & Essex) Ltd,Home Care - Private Contractors Payment,939.15,0.00,COMMERCIAL SUPPLIER 
 13-12-2023,People - Ageing Well,Westminster Homecare Ltd_a,Home Care - Private Contractors Payment,939.52,0.00,COMMERCIAL SUPPLIER 
 06-12-2023,People - Ageing Well,Hospiva Care & Associates Agency Ltd_a,Home Care - Private Contractors Payment,942.43,0.00,COMMERCIAL SUPPLIER 
 08-12-2023,People - Ageing Well,Lodge Group Care UK Ltd,Home Care - Private Contractors Payment,943.52,0.00,COMMERCIAL SUPPLIER 
 13-12-2023,People - Ageing Well,Homestead Care Service,Home Care - Private Contractors Payment,943.52,0.00,COMMERCIAL SUPPLIER 
 07-12-2023,People - Ageing Well,Cera Care Operations Ltd,Home Care - Private Contractors Payment,943.89,0.00,COMMERCIAL SUPPLIER 
 06-12-2023,People - Ageing Well,Headway East London,Daycare - Private Contractors Payment,944.00,0.00,COMMERCIAL SUPPLIER 
 08-12-2023,People - Ageing Well,Lodge Group Care UK Ltd,Home Care - Private Contractors Payment,947.16,0.00,COMMERCIAL SUPPLIER 
 13-12-2023,People - Ageing Well,Quality Healthcare Solutions Ltd t/a Kare Plus Romford,Home Care - Private Contractors Payment,947.53,0.00,COMMERCIAL SUPPLIER 
 13-12-2023,People - Ageing Well,Westminster Homecare Ltd_a,Home Care - Private Contractors Payment,948.25,0.00,COMMERCIAL SUPPLIER 
 08-12-2023,People - Ageing Well,Home Support Services (Havering & Essex) Ltd,Home Care - Private Contractors Payment,949.35,0.00,COMMERCIAL SUPPLIER 
 12-12-2023,People - Ageing Well,Morepower Ltd t/a Aqs Homecare,Home Care - Private Contractors Payment,949.35,0.00,COMMERCIAL SUPPLIER 
 11-12-2023,People - Ageing Well,Prestige Care & Support Ltd,Home Care - Private Contractors Payment,949.71,0.00,COMMERCIAL SUPPLIER 
 12-12-2023,People - Ageing Well,Care-Away Ltd T/A Care Support,Home Care - Private Contractors Payment,949.75,0.00,COMMERCIAL SUPPLIER 
 12-12-2023,People - Ageing Well,Care-Away Ltd T/A Care Support,Home Care - Private Contractors Payment,949.75,0.00,COMMERCIAL SUPPLIER 
 12-12-2023,People - Ageing Well,Lodge Lane Care Home Limited,Respite Care - Private Contractors Payment,950.00,0.00,COMMERCIAL SUPPLIER 
 12-12-2023,People - Ageing Well,Ebony Health Care Services Limited,Supported Other Accommodation - Private Contractors Payment,952.00,0.00,COMMERCIAL SUPPLIER 
 12-12-2023,People - Ageing Well,Home Sweet Home Care Ltd,Home Care - Private Contractors Payment,954.08,0.00,COMMERCIAL SUPPLIER 
 08-12-2023,People - Ageing Well,Lodge Group Care UK Ltd,Home Care - Private Contractors Payment,955.17,0.00,COMMERCIAL SUPPLIER 
 13-12-2023,People - Ageing Well,Quality Healthcare Solutions Ltd t/a Kare Plus Romford,Home Care - Private Contractors Payment,960.27,0.00,COMMERCIAL SUPPLIER 
 06-12-2023,People - Ageing Well,Carers Trust East Midlands,Home Care - Private Contractors Payment,960.96,0.00,COMMERCIAL SUPPLIER 
 26-12-2023,People - Ageing Well,Personal Information - Redacted,Home Care - Private Contractors Payment,960.96,0.00,INDIVIDUALS 
 26-12-2023,People - Ageing Well,Personal Information - Redacted,Home Care - Private Contractors Payment,960.96,0.00,INDIVIDUALS 
 26-12-2023,People - Ageing Well,Personal Information - Redacted,Home Care - Private Contractors Payment,960.96,0.00,INDIVIDUALS 
 26-12-2023,People - Ageing Well,Personal Information - Redacted,Home Care - Private Contractors Payment,960.96,0.00,INDIVIDUALS 
 26-12-2023,People - Ageing Well,Personal Information - Redacted,Home Care - Private Contractors Payment,960.96,0.00,INDIVIDUALS 
 26-12-2023,People - Ageing Well,Personal Information - Redacted,Home Care - Private Contractors Payment,960.96,0.00,INDIVIDUALS 
 26-12-2023,People - Ageing Well,Personal Information - Redacted,Home Care - Private Contractors Payment,960.96,0.00,INDIVIDUALS 
 26-12-2023,People - Ageing Well,Personal Information - Redacted,Home Care - Private Contractors Payment,960.96,0.00,INDIVIDUALS 
 06-12-2023,People - Ageing Well,Carers Trust East Midlands,Home Care - Private Contractors Payment,960.97,0.00,COMMERCIAL SUPPLIER 
 12-12-2023,People - Ageing Well,Home Sweet Home Care Ltd,Home Care - Private Contractors Payment,961.36,0.00,COMMERCIAL SUPPLIER 
 12-12-2023,People - Ageing Well,Home Sweet Home Care Ltd,Home Care - Private Contractors Payment,961.36,0.00,COMMERCIAL SUPPLIER 
 07-12-2023,People - Ageing Well,Cera Care Operations Ltd,Home Care - Private Contractors Payment,963.90,0.00,COMMERCIAL SUPPLIER 
 08-12-2023,People - Ageing Well,Lodge Group Care UK Ltd,Home Care - Private Contractors Payment,965.00,0.00,COMMERCIAL SUPPLIER 
 12-12-2023,People - Ageing Well,2 Peel Way - Outlook Care,Supported Other Accommodation - Private Contractors Payment,967.20,0.00,NON COMMERCIAL SUPPLIER 
 12-12-2023,People - Ageing Well,Fresh Tree Care Services,Supported Other Accommodation - Private Contractors Payment,967.68,0.00,COMMERCIAL SUPPLIER 
 12-12-2023,People - Ageing Well,Consensus Support Services Ltd - Blakeney House,Residential Placements - Private Contractors Payment,968.80,0.00,COMMERCIAL SUPPLIER 
 08-12-2023,People - Ageing Well,Lodge Group Care UK Ltd,Home Care - Private Contractors Payment,975.19,0.00,COMMERCIAL SUPPLIER 
 04-12-2023,People - Ageing Well,Tapestry_a.,Daycare - Private Contractors Payment,976.00,0.00,COMMERCIAL SUPPLIER 
 04-12-2023,People - Ageing Well,Tapestry_a.,Daycare - Private Contractors Payment,976.00,0.00,COMMERCIAL SUPPLIER 
 04-12-2023,People - Ageing Well,Tapestry_a.,Daycare - Private Contractors Payment,976.00,0.00,COMMERCIAL SUPPLIER 
 04-12-2023,People - Ageing Well,Tapestry_a.,Daycare - Private Contractors Payment,976.00,0.00,COMMERCIAL SUPPLIER 
 12-12-2023,People - Ageing Well,Morepower Ltd t/a Aqs Homecare,Home Care - Private Contractors Payment,979.91,0.00,COMMERCIAL SUPPLIER 
 13-12-2023,People - Ageing Well,Homestead Care Service,Home Care - Private Contractors Payment,980.65,0.00,COMMERCIAL SUPPLIER 
 08-12-2023,People - Ageing Well,Lodge Group Care UK Ltd,Home Care - Private Contractors Payment,981.74,0.00,COMMERCIAL SUPPLIER 
 06-12-2023,People - Ageing Well,Hospiva Care & Associates Agency Ltd_a,Home Care - Private Contractors Payment,982.82,0.00,COMMERCIAL SUPPLIER 
 12-12-2023,People - Ageing Well,Masumin Ltd t/s Abbeleigh House,Residential Placements - Private Contractors Payment,982.86,0.00,COMMERCIAL SUPPLIER 
 12-12-2023,People - Ageing Well,Morepower Ltd t/a Aqs Homecare,Home Care - Private Contractors Payment,987.57,0.00,COMMERCIAL SUPPLIER 
 12-12-2023,People - Ageing Well,North London Care (Havering) Ltd_a,Residential Placements - Private Contractors Payment,987.80,0.00,COMMERCIAL SUPPLIER 
 12-12-2023,People - Ageing Well,The Cedars,Supported Other Accommodation - Private Contractors Payment,988.40,0.00,COMMERCIAL SUPPLIER 
 06-12-2023,People - Ageing Well,Matrix SCM Ltd,Agency Staff,988.44,0.00,COMMERCIAL SUPPLIER 
 03-12-2023,People - Ageing Well,S J Builders,Occupational Health,990.00,0.00,COMMERCIAL SUPPLIER 
 12-12-2023,People - Ageing Well,Outlook Care - 4 Peel Way,Supported Other Accommodation - Private Contractors Payment,991.00,0.00,COMMERCIAL SUPPLIER 
 20-12-2023,People - Ageing Well,Matrix SCM Ltd,Agency Staff,991.30,0.00,COMMERCIAL SUPPLIER 
 07-12-2023,People - Ageing Well,Cera Care Operations Ltd,Home Care - Private Contractors Payment,991.93,0.00,COMMERCIAL SUPPLIER 
 12-12-2023,People - Ageing Well,Morepower Ltd t/a Aqs Homecare,Home Care - Private Contractors Payment,997.39,0.00,COMMERCIAL SUPPLIER 
 13-12-2023,People - Ageing Well,Care-Away Ltd T/A Care Support,Home Care - Private Contractors Payment,998.88,0.00,COMMERCIAL SUPPLIER 
 12-12-2023,People - Ageing Well,Oaks Residential Home,Respite Care - Private Contractors Payment,1000.00,0.00,COMMERCIAL SUPPLIER 
 13-12-2023,People - Ageing Well,Westminster Homecare Ltd_a,Home Care - Private Contractors Payment,1000.30,0.00,COMMERCIAL SUPPLIER 
 04-12-2023,People - Ageing Well,Gims Care Solution Ltd_a,Home Care - Private Contractors Payment,1000.32,0.00,NON COMMERCIAL SUPPLIER 
 12-12-2023,People - Ageing Well,Accomplish Group Support Ltd,Residential Placements - Private Contractors Payment,1000.52,0.00,COMMERCIAL SUPPLIER 
 12-12-2023,People - Ageing Well,Home Sweet Home Care Ltd,Home Care - Private Contractors Payment,1002.49,0.00,COMMERCIAL SUPPLIER 
 12-12-2023,People - Ageing Well,Home Sweet Home Care Ltd,Home Care - Private Contractors Payment,1002.49,0.00,COMMERCIAL SUPPLIER 
 12-12-2023,People - Ageing Well,Home Sweet Home Care Ltd,Home Care - Private Contractors Payment,1003.22,0.00,COMMERCIAL SUPPLIER 
 03-12-2023,People - Ageing Well,Personal Information - Redacted,Home Care - Private Contractors Payment,1004.66,0.00,INDIVIDUALS 
 12-12-2023,People - Ageing Well,John Stanleys Care Agency Ltd,Home Care - Private Contractors Payment,1004.66,0.00,COMMERCIAL SUPPLIER 
 03-12-2023,People - Ageing Well,Personal Information - Redacted,Home Care - Private Contractors Payment,1004.68,0.00,INDIVIDUALS 
 05-12-2023,People - Ageing Well,Inna Care Ltd,Home Care - Private Contractors Payment,1004.68,0.00,COMMERCIAL SUPPLIER 
 12-12-2023,People - Ageing Well,Prior Care Ltd_a,Home Care - Private Contractors Payment,1006.49,0.00,COMMERCIAL SUPPLIER 
 08-12-2023,People - Ageing Well,Lodge Group Care UK Ltd,Home Care - Private Contractors Payment,1006.50,0.00,COMMERCIAL SUPPLIER 
 12-12-2023,People - Ageing Well,Home Sweet Home Care Ltd,Home Care - Private Contractors Payment,1007.22,0.00,COMMERCIAL SUPPLIER 
 08-12-2023,People - Ageing Well,Home Support Services (Havering & Essex) Ltd,Home Care - Private Contractors Payment,1009.03,0.00,COMMERCIAL SUPPLIER 
 13-12-2023,People - Ageing Well,Quality Healthcare Solutions Ltd t/a Kare Plus Romford,Home Care - Private Contractors Payment,1012.32,0.00,COMMERCIAL SUPPLIER 
 07-12-2023,People - Ageing Well,Cera Care Operations Ltd,Home Care - Private Contractors Payment,1015.96,0.00,COMMERCIAL SUPPLIER 
 08-12-2023,People - Ageing Well,Home Support Services (Havering & Essex) Ltd,Home Care - Private Contractors Payment,1018.86,0.00,COMMERCIAL SUPPLIER 
 11-12-2023,People - Ageing Well,Prestige Care & Support Ltd,Home Care - Private Contractors Payment,1018.87,0.00,COMMERCIAL SUPPLIER 
 07-12-2023,People - Ageing Well,Cera Care Operations Ltd,Home Care - Private Contractors Payment,1019.23,0.00,COMMERCIAL SUPPLIER 
 08-12-2023,People - Ageing Well,Home Support Services (Havering & Essex) Ltd,Home Care - Private Contractors Payment,1019.60,0.00,COMMERCIAL SUPPLIER 
 08-12-2023,People - Ageing Well,Home Support Services (Havering & Essex) Ltd,Home Care - Private Contractors Payment,1021.05,0.00,COMMERCIAL SUPPLIER 
 08-12-2023,People - Ageing Well,Lodge Group Care UK Ltd,Home Care - Private Contractors Payment,1022.51,0.00,COMMERCIAL SUPPLIER 
 08-12-2023,People - Ageing Well,Lodge Group Care UK Ltd,Home Care - Private Contractors Payment,1022.51,0.00,COMMERCIAL SUPPLIER 
 11-12-2023,People - Ageing Well,Anytime Care 2020_a,Home Care - Private Contractors Payment,1025.42,0.00,COMMERCIAL SUPPLIER 
 06-12-2023,People - Ageing Well,Hospiva Care & Associates Agency Ltd_a,Home Care - Private Contractors Payment,1026.15,0.00,COMMERCIAL SUPPLIER 
 13-12-2023,People - Ageing Well,Quality Healthcare Solutions Ltd t/a Kare Plus Romford,Home Care - Private Contractors Payment,1026.15,0.00,COMMERCIAL SUPPLIER 
 28-12-2023,People - Ageing Well,Matrix SCM Ltd,Agency Staff,1026.32,0.00,COMMERCIAL SUPPLIER 
 11-12-2023,People - Ageing Well,Anytime Care 2020_a,Home Care - Private Contractors Payment,1027.97,0.00,COMMERCIAL SUPPLIER 
 12-12-2023,People - Ageing Well,Ebury Court_a,Residential Placements - Private Contractors Payment,1030.32,0.00,COMMERCIAL SUPPLIER 
 11-12-2023,People - Ageing Well,Anytime Care 2020_a,Home Care - Private Contractors Payment,1030.88,0.00,COMMERCIAL SUPPLIER 
 12-12-2023,People - Ageing Well,Care-Away Ltd T/A Care Support,Home Care - Private Contractors Payment,1031.63,0.00,COMMERCIAL SUPPLIER 
 13-12-2023,People - Ageing Well,Care-Away Ltd T/A Care Support,Home Care - Private Contractors Payment,1031.63,0.00,COMMERCIAL SUPPLIER 
 13-12-2023,People - Ageing Well,Care-Away Ltd T/A Care Support,Home Care - Private Contractors Payment,1031.63,0.00,COMMERCIAL SUPPLIER 
 13-12-2023,People - Ageing Well,Westminster Homecare Ltd_a,Home Care - Private Contractors Payment,1032.34,0.00,COMMERCIAL SUPPLIER 
 06-12-2023,People - Ageing Well,Matrix SCM Ltd,Agency Staff,1034.40,0.00,COMMERCIAL SUPPLIER 
 06-12-2023,People - Ageing Well,Matrix SCM Ltd,Agency Staff,1034.40,0.00,COMMERCIAL SUPPLIER 
 13-12-2023,People - Ageing Well,Matrix SCM Ltd,Agency Staff,1034.40,0.00,COMMERCIAL SUPPLIER 
 20-12-2023,People - Ageing Well,Matrix SCM Ltd,Agency Staff,1034.40,0.00,COMMERCIAL SUPPLIER 
 28-12-2023,People - Ageing Well,Matrix SCM Ltd,Agency Staff,1034.40,0.00,COMMERCIAL SUPPLIER 
 12-12-2023,People - Ageing Well,Sahara Care Ltd,Residential Placements - Private Contractors Payment,1036.00,0.00,COMMERCIAL SUPPLIER 
 12-12-2023,People - Ageing Well,Sahara Care Ltd,Residential Placements - Private Contractors Payment,1036.00,0.00,COMMERCIAL SUPPLIER 
 04-12-2023,People - Ageing Well,Tapestry_a.,Daycare - Private Contractors Payment,1037.00,0.00,COMMERCIAL SUPPLIER 
 12-12-2023,People - Ageing Well,Home Sweet Home Care Ltd,Home Care - Private Contractors Payment,1037.44,0.00,COMMERCIAL SUPPLIER 
 06-12-2023,People - Ageing Well,Matrix SCM Ltd,Agency Staff,1037.64,0.00,COMMERCIAL SUPPLIER 
 12-12-2023,People - Ageing Well,2 Peel Way - Outlook Care,Supported Other Accommodation - Private Contractors Payment,1041.04,0.00,NON COMMERCIAL SUPPLIER 
 12-12-2023,People - Ageing Well,IECC Care,Supported Other Accommodation - Private Contractors Payment,1041.48,0.00,COMMERCIAL SUPPLIER 
 12-12-2023,People - Ageing Well,Care-Away Ltd T/A Care Support,Home Care - Private Contractors Payment,1045.38,0.00,COMMERCIAL SUPPLIER 
 11-12-2023,People - Ageing Well,Passion Tree Care Services Ltd,Home Care - Private Contractors Payment,1048.33,0.00,COMMERCIAL SUPPLIER 
 12-12-2023,People - Ageing Well,Gims Care Solution Ltd_a,Supported Other Accommodation - Private Contractors Payment,1050.00,0.00,NON COMMERCIAL SUPPLIER 
 12-12-2023,People - Ageing Well,Morepower Ltd t/a Aqs Homecare,Home Care - Private Contractors Payment,1051.27,0.00,COMMERCIAL SUPPLIER 
 12-12-2023,People - Ageing Well,Home Sweet Home Care Ltd,Home Care - Private Contractors Payment,1059.63,0.00,COMMERCIAL SUPPLIER 
 13-12-2023,People - Ageing Well,Matrix SCM Ltd,Agency Staff,1060.26,0.00,COMMERCIAL SUPPLIER 
 12-12-2023,People - Ageing Well,Home Sweet Home Care Ltd,Home Care - Private Contractors Payment,1061.82,0.00,COMMERCIAL SUPPLIER 
 12-12-2023,People - Ageing Well,The Cedars,Supported Other Accommodation - Private Contractors Payment,1064.56,0.00,COMMERCIAL SUPPLIER 
 13-12-2023,People - Ageing Well,Homestead Care Service,Home Care - Private Contractors Payment,1064.72,0.00,COMMERCIAL SUPPLIER 
 08-12-2023,People - Ageing Well,Chosen Care Group Ltd,Home Care - Private Contractors Payment,1065.60,0.00,COMMERCIAL SUPPLIER 
 08-12-2023,People - Ageing Well,Chosen Care Group Ltd,Home Care - Private Contractors Payment,1065.60,0.00,COMMERCIAL SUPPLIER 
 08-12-2023,People - Ageing Well,Chosen Care Group Ltd,Home Care - Private Contractors Payment,1065.60,0.00,COMMERCIAL SUPPLIER 
 06-12-2023,People - Ageing Well,Matrix SCM Ltd,Agency Staff,1066.04,0.00,COMMERCIAL SUPPLIER 
 13-12-2023,People - Ageing Well,Matrix SCM Ltd,Agency Staff,1066.04,0.00,COMMERCIAL SUPPLIER 
 12-12-2023,People - Ageing Well,Home Sweet Home Care Ltd,Home Care - Private Contractors Payment,1067.65,0.00,COMMERCIAL SUPPLIER 
 12-12-2023,People - Ageing Well,Outreach Support Services Ltd,Supported Other Accommodation - Private Contractors Payment,1068.00,0.00,COMMERCIAL SUPPLIER 
 03-12-2023,People - Ageing Well,Personal Information - Redacted,Home Care - Private Contractors Payment,1070.18,0.00,INDIVIDUALS 
 12-12-2023,People - Ageing Well,Home Sweet Home Care Ltd,Home Care - Private Contractors Payment,1070.20,0.00,COMMERCIAL SUPPLIER 
 12-12-2023,People - Ageing Well,Ebony Health Care Services Limited,Supported Other Accommodation - Private Contractors Payment,1071.60,0.00,COMMERCIAL SUPPLIER 
 13-12-2023,People - Ageing Well,Westminster Homecare Ltd_a,Home Care - Private Contractors Payment,1073.47,0.00,COMMERCIAL SUPPLIER 
 11-12-2023,People - Ageing Well,Prestige Care & Support Ltd,Home Care - Private Contractors Payment,1074.93,0.00,COMMERCIAL SUPPLIER 
 06-12-2023,People - Ageing Well,Matrix SCM Ltd,Agency Staff,1075.20,0.00,COMMERCIAL SUPPLIER 
 12-12-2023,People - Ageing Well,Home Sweet Home Care Ltd,Home Care - Private Contractors Payment,1076.02,0.00,COMMERCIAL SUPPLIER 
 20-12-2023,People - Ageing Well,Trinity London Care Ltd,Daycare - Private Contractors Payment,1080.00,0.00,COMMERCIAL SUPPLIER 
 20-12-2023,People - Ageing Well,Trinity London Care Ltd,Daycare - Private Contractors Payment,1080.00,0.00,COMMERCIAL SUPPLIER 
 20-12-2023,People - Ageing Well,Trinity London Care Ltd,Daycare - Private Contractors Payment,1080.00,0.00,COMMERCIAL SUPPLIER 
 12-12-2023,People - Ageing Well,Care-Away Ltd T/A Care Support,Home Care - Private Contractors Payment,1080.75,0.00,COMMERCIAL SUPPLIER 
 29-12-2023,People - Ageing Well,HOLLY CARE SERVICES LIMITED,Home Care - Private Contractors Payment,1081.08,0.00,COMMERCIAL SUPPLIER 
 29-12-2023,People - Ageing Well,HOLLY CARE SERVICES LIMITED,Home Care - Private Contractors Payment,1081.08,0.00,COMMERCIAL SUPPLIER 
 29-12-2023,People - Ageing Well,HOLLY CARE SERVICES LIMITED,Home Care - Private Contractors Payment,1081.08,0.00,COMMERCIAL SUPPLIER 
 12-12-2023,People - Ageing Well,Coastal Supported Living CIC,Supported Other Accommodation - Private Contractors Payment,1082.76,0.00,COMMERCIAL SUPPLIER 
 12-12-2023,People - Ageing Well,Efficiency - For Care,Supported Other Accommodation - Private Contractors Payment,1085.00,0.00,COMMERCIAL SUPPLIER 
 13-12-2023,People - Ageing Well,Homestead Care Service,Home Care - Private Contractors Payment,1087.30,0.00,COMMERCIAL SUPPLIER 
 12-12-2023,People - Ageing Well,Independent Community Support Ltd t/a Wingletye Lodge ,Supported Other Accommodation - Private Contractors Payment,1088.64,0.00,COMMERCIAL SUPPLIER 
 12-12-2023,People - Ageing Well,Personal Information - Redacted,Supported Other Accommodation - Private Contractors Payment,1088.64,0.00,INDIVIDUALS 
 13-12-2023,People - Ageing Well,Homestead Care Service,Home Care - Private Contractors Payment,1090.94,0.00,COMMERCIAL SUPPLIER 
 13-12-2023,People - Ageing Well,Homestead Care Service,Home Care - Private Contractors Payment,1091.67,0.00,COMMERCIAL SUPPLIER 
 12-12-2023,People - Ageing Well,Ebony Health Care Services Limited,Home Care - Private Contractors Payment,1091.96,0.00,COMMERCIAL SUPPLIER 
 05-12-2023,People - Ageing Well,Inna Care Ltd,Home Care - Private Contractors Payment,1092.04,0.00,COMMERCIAL SUPPLIER 
 05-12-2023,People - Ageing Well,Inna Care Ltd,Home Care - Private Contractors Payment,1092.04,0.00,COMMERCIAL SUPPLIER 
 12-12-2023,People - Ageing Well,Home Sweet Home Care Ltd,Home Care - Private Contractors Payment,1092.04,0.00,COMMERCIAL SUPPLIER 
 08-12-2023,People - Ageing Well,Home Support Services (Havering & Essex) Ltd,Home Care - Private Contractors Payment,1094.58,0.00,COMMERCIAL SUPPLIER 
 13-12-2023,People - Ageing Well,Homestead Care Service,Home Care - Private Contractors Payment,1095.66,0.00,COMMERCIAL SUPPLIER 
 12-12-2023,People - Ageing Well,Livingstone Health Care Services,Home Care - Private Contractors Payment,1101.13,0.00,COMMERCIAL SUPPLIER 
 12-12-2023,People - Ageing Well,Livingstone Health Care Services,Home Care - Private Contractors Payment,1101.50,0.00,COMMERCIAL SUPPLIER 
 12-12-2023,People - Ageing Well,Infinite Healthcare Services Ltd.,Supported Other Accommodation - Private Contractors Payment,1101.60,0.00,COMMERCIAL SUPPLIER 
 12-12-2023,People - Ageing Well,The Cedars,Supported Other Accommodation - Private Contractors Payment,1102.48,0.00,COMMERCIAL SUPPLIER 
 08-12-2023,People - Ageing Well,Lodge Group Care UK Ltd,Home Care - Private Contractors Payment,1104.77,0.00,COMMERCIAL SUPPLIER 
 11-12-2023,People - Ageing Well,Prestige Care & Support Ltd,Home Care - Private Contractors Payment,1106.96,0.00,COMMERCIAL SUPPLIER 
 12-12-2023,People - Ageing Well,Prior Care Ltd_a,Home Care - Private Contractors Payment,1109.88,0.00,COMMERCIAL SUPPLIER 
 12-12-2023,People - Ageing Well,Sahara Care Ltd,Residential Placements - Private Contractors Payment,1110.00,0.00,COMMERCIAL SUPPLIER 
 07-12-2023,People - Ageing Well,Cera Care Operations Ltd,Home Care - Private Contractors Payment,1113.15,0.00,COMMERCIAL SUPPLIER 
 13-12-2023,People - Ageing Well,Homestead Care Service,Home Care - Private Contractors Payment,1113.87,0.00,COMMERCIAL SUPPLIER 
 28-12-2023,People - Ageing Well,Matrix SCM Ltd,Agency Staff,1114.64,0.00,COMMERCIAL SUPPLIER 
 12-12-2023,People - Ageing Well,Shalom Community Support Services,Supported Other Accommodation - Private Contractors Payment,1115.14,0.00,COMMERCIAL SUPPLIER 
 06-12-2023,People - Ageing Well,Matrix SCM Ltd,Agency Staff,1115.92,0.00,COMMERCIAL SUPPLIER 
 08-12-2023,People - Ageing Well,Lodge Group Care UK Ltd,Home Care - Private Contractors Payment,1117.15,0.00,COMMERCIAL SUPPLIER 
 12-12-2023,People - Ageing Well,Outlook Care - 4 Peel Way,Supported Other Accommodation - Private Contractors Payment,1117.88,0.00,COMMERCIAL SUPPLIER 
 04-12-2023,People - Ageing Well,Treal Care Limited,Home Care - Private Contractors Payment,1120.00,0.00,COMMERCIAL SUPPLIER 
 04-12-2023,People - Ageing Well,Treal Care Limited,Home Care - Private Contractors Payment,1120.00,0.00,COMMERCIAL SUPPLIER 
 13-12-2023,People - Ageing Well,Homestead Care Service,Home Care - Private Contractors Payment,1121.52,0.00,COMMERCIAL SUPPLIER 
 12-12-2023,People - Ageing Well,The Cottage Residential Care Home,Residential Placements - Private Contractors Payment,1123.52,0.00,COMMERCIAL SUPPLIER 
 13-12-2023,People - Ageing Well,Homestead Care Service,Home Care - Private Contractors Payment,1126.62,0.00,COMMERCIAL SUPPLIER 
 12-12-2023,People - Ageing Well,Morepower Ltd t/a Aqs Homecare,Home Care - Private Contractors Payment,1130.26,0.00,COMMERCIAL SUPPLIER 
 12-12-2023,People - Ageing Well,Care Management Group Ltd - The Ridgeway,Supported Other Accommodation - Private Contractors Payment,1131.60,0.00,COMMERCIAL SUPPLIER 
 08-12-2023,People - Ageing Well,Home Support Services (Havering & Essex) Ltd,Home Care - Private Contractors Payment,1132.08,0.00,COMMERCIAL SUPPLIER 
 12-12-2023,People - Ageing Well,Protecthand Care Ltd ,Supported Other Accommodation - Private Contractors Payment,1134.00,0.00,COMMERCIAL SUPPLIER 
 12-12-2023,People - Ageing Well,Morepower Ltd t/a Aqs Homecare,Home Care - Private Contractors Payment,1135.68,0.00,COMMERCIAL SUPPLIER 
 04-12-2023,People - Ageing Well,IJB Healthcare Ltd,Home Care - Private Contractors Payment,1135.70,0.00,COMMERCIAL SUPPLIER 
 05-12-2023,People - Ageing Well,Amachyck Care Solution Ltd.,Home Care - Private Contractors Payment,1135.70,0.00,COMMERCIAL SUPPLIER 
 06-12-2023,People - Ageing Well,Matrix SCM Ltd,Agency Staff,1136.72,0.00,COMMERCIAL SUPPLIER 
 12-12-2023,People - Ageing Well,Morepower Ltd t/a Aqs Homecare,Home Care - Private Contractors Payment,1140.45,0.00,COMMERCIAL SUPPLIER 
 08-12-2023,People - Ageing Well,Lodge Group Care UK Ltd,Home Care - Private Contractors Payment,1141.18,0.00,COMMERCIAL SUPPLIER 
 12-12-2023,People - Ageing Well,Prior Care Ltd_a,Home Care - Private Contractors Payment,1142.27,0.00,COMMERCIAL SUPPLIER 
 08-12-2023,People - Ageing Well,Lodge Group Care UK Ltd,Home Care - Private Contractors Payment,1143.00,0.00,COMMERCIAL SUPPLIER 
 12-12-2023,People - Ageing Well,Outreach Support Services Ltd,Supported Other Accommodation - Private Contractors Payment,1143.08,0.00,COMMERCIAL SUPPLIER 
 12-12-2023,People - Ageing Well,Home Sweet Home Care Ltd,Home Care - Private Contractors Payment,1145.91,0.00,COMMERCIAL SUPPLIER 
 12-12-2023,People - Ageing Well,Care-Away Ltd T/A Care Support,Home Care - Private Contractors Payment,1146.25,0.00,COMMERCIAL SUPPLIER 
 13-12-2023,People - Ageing Well,Care-Away Ltd T/A Care Support,Home Care - Private Contractors Payment,1146.25,0.00,COMMERCIAL SUPPLIER 
 12-12-2023,People - Ageing Well,Home Sweet Home Care Ltd,Home Care - Private Contractors Payment,1146.64,0.00,COMMERCIAL SUPPLIER 
 12-12-2023,People - Ageing Well,Home Sweet Home Care Ltd,Home Care - Private Contractors Payment,1146.64,0.00,COMMERCIAL SUPPLIER 
 11-12-2023,People - Ageing Well,Anytime Care 2020_a,Home Care - Private Contractors Payment,1149.19,0.00,COMMERCIAL SUPPLIER 
 04-12-2023,People - Ageing Well,Treal Care Limited,Home Care - Private Contractors Payment,1155.00,0.00,COMMERCIAL SUPPLIER 
 08-12-2023,People - Ageing Well,Home Support Services (Havering & Essex) Ltd,Home Care - Private Contractors Payment,1156.11,0.00,COMMERCIAL SUPPLIER 
 12-12-2023,People - Ageing Well,Bluebell & Hawthorn,Residential Placements - Private Contractors Payment,1156.80,0.00,COMMERCIAL SUPPLIER 
 04-12-2023,People - Ageing Well,Eveshel Care Ltd,Home Care - Private Contractors Payment,1157.55,0.00,COMMERCIAL SUPPLIER 
 04-12-2023,People - Ageing Well,Eveshel Care Ltd,Home Care - Private Contractors Payment,1157.55,0.00,COMMERCIAL SUPPLIER 
 12-12-2023,People - Ageing Well,The Riverside Group,Supported Other Accommodation - Private Contractors Payment,1160.00,0.00, 
 12-12-2023,People - Ageing Well,The Riverside Group,Supported Other Accommodation - Private Contractors Payment,1160.00,0.00, 
 12-12-2023,People - Ageing Well,The Riverside Group,Supported Other Accommodation - Private Contractors Payment,1160.00,0.00, 
 12-12-2023,People - Ageing Well,The Riverside Group,Supported Other Accommodation - Private Contractors Payment,1160.00,0.00, 
 12-12-2023,People - Ageing Well,The Riverside Group,Supported Other Accommodation - Private Contractors Payment,1160.00,0.00, 
 12-12-2023,People - Ageing Well,The Riverside Group,Supported Other Accommodation - Private Contractors Payment,1160.00,0.00, 
 12-12-2023,People - Ageing Well,The Riverside Group,Supported Other Accommodation - Private Contractors Payment,1160.00,0.00, 
 12-12-2023,People - Ageing Well,The Riverside Group,Supported Other Accommodation - Private Contractors Payment,1160.00,0.00, 
 12-12-2023,People - Ageing Well,The Riverside Group,Supported Other Accommodation - Private Contractors Payment,1160.00,0.00, 
 08-12-2023,People - Ageing Well,Lodge Group Care UK Ltd,Home Care - Private Contractors Payment,1172.12,0.00,COMMERCIAL SUPPLIER 
 13-12-2023,People - Ageing Well,Homestead Care Service,Home Care - Private Contractors Payment,1176.13,0.00,COMMERCIAL SUPPLIER 
 08-12-2023,People - Ageing Well,Lodge Group Care UK Ltd,Home Care - Private Contractors Payment,1177.22,0.00,COMMERCIAL SUPPLIER 
 04-12-2023,People - Ageing Well,IJB Healthcare Ltd,Home Care - Private Contractors Payment,1179.39,0.00,COMMERCIAL SUPPLIER 
 28-12-2023,People - Ageing Well,Crystalize Care Services Ltd,Home Care - Private Contractors Payment,1179.39,0.00,COMMERCIAL SUPPLIER 
 05-12-2023,People - Ageing Well,Inna Care Ltd,Home Care - Private Contractors Payment,1179.40,0.00,COMMERCIAL SUPPLIER 
 08-12-2023,People - Ageing Well,Home Support Services (Havering & Essex) Ltd,Home Care - Private Contractors Payment,1179.40,0.00,COMMERCIAL SUPPLIER 
 13-12-2023,People - Ageing Well,Homestead Care Service,Home Care - Private Contractors Payment,1181.95,0.00,COMMERCIAL SUPPLIER 
 13-12-2023,People - Ageing Well,Homestead Care Service,Home Care - Private Contractors Payment,1181.95,0.00,COMMERCIAL SUPPLIER 
 07-12-2023,People - Ageing Well,Cera Care Operations Ltd,Home Care - Private Contractors Payment,1183.04,0.00,COMMERCIAL SUPPLIER 
 04-12-2023,People - Ageing Well,Ace Outreach Ltd,Home Care - Private Contractors Payment,1188.00,0.00,COMMERCIAL SUPPLIER 
 12-12-2023,People - Ageing Well,Home Sweet Home Care Ltd,Home Care - Private Contractors Payment,1190.32,0.00,COMMERCIAL SUPPLIER 
 12-12-2023,People - Ageing Well,Home Sweet Home Care Ltd,Home Care - Private Contractors Payment,1191.78,0.00,COMMERCIAL SUPPLIER 
 08-12-2023,People - Ageing Well,Lodge Group Care UK Ltd,Home Care - Private Contractors Payment,1193.95,0.00,COMMERCIAL SUPPLIER 
 12-12-2023,People - Ageing Well,Home Sweet Home Care Ltd,Home Care - Private Contractors Payment,1195.78,0.00,COMMERCIAL SUPPLIER 
 08-12-2023,People - Ageing Well,Lodge Group Care UK Ltd,Home Care - Private Contractors Payment,1196.15,0.00,COMMERCIAL SUPPLIER 
 12-12-2023,People - Ageing Well,Prior Care Ltd_a,Home Care - Private Contractors Payment,1197.60,0.00,COMMERCIAL SUPPLIER 
 08-12-2023,People - Ageing Well,Home Support Services (Havering & Essex) Ltd,Home Care - Private Contractors Payment,1198.69,0.00,COMMERCIAL SUPPLIER 
 08-12-2023,People - Ageing Well,Lodge Group Care UK Ltd,Home Care - Private Contractors Payment,1198.70,0.00,COMMERCIAL SUPPLIER 
 12-12-2023,People - Ageing Well,Lodge Lane Care Home Limited,Respite Care - Private Contractors Payment,1200.00,0.00,COMMERCIAL SUPPLIER 
 12-12-2023,People - Ageing Well,Lodge Lane Care Home Limited,Respite Care - Private Contractors Payment,1200.00,0.00,COMMERCIAL SUPPLIER 
 12-12-2023,People - Ageing Well,Livingstone Health Care Services,Home Care - Private Contractors Payment,1201.24,0.00,COMMERCIAL SUPPLIER 
 12-12-2023,People - Ageing Well,Home Sweet Home Care Ltd,Home Care - Private Contractors Payment,1201.24,0.00,COMMERCIAL SUPPLIER 
 12-12-2023,People - Ageing Well,Home Sweet Home Care Ltd,Home Care - Private Contractors Payment,1201.61,0.00,COMMERCIAL SUPPLIER 
 12-12-2023,People - Ageing Well,Home Sweet Home Care Ltd,Home Care - Private Contractors Payment,1204.52,0.00,COMMERCIAL SUPPLIER 
 13-12-2023,People - Ageing Well,Homestead Care Service,Home Care - Private Contractors Payment,1205.61,0.00,COMMERCIAL SUPPLIER 
 13-12-2023,People - Ageing Well,Homestead Care Service,Home Care - Private Contractors Payment,1206.34,0.00,COMMERCIAL SUPPLIER 
 12-12-2023,People - Ageing Well,Home Sweet Home Care Ltd,Home Care - Private Contractors Payment,1207.43,0.00,COMMERCIAL SUPPLIER 
 13-12-2023,People - Ageing Well,Homestead Care Service,Home Care - Private Contractors Payment,1207.43,0.00,COMMERCIAL SUPPLIER 
 13-12-2023,People - Ageing Well,Homestead Care Service,Home Care - Private Contractors Payment,1207.43,0.00,COMMERCIAL SUPPLIER 
 12-12-2023,People - Ageing Well,Home Sweet Home Care Ltd,Home Care - Private Contractors Payment,1208.89,0.00,COMMERCIAL SUPPLIER 
 13-12-2023,People - Ageing Well,Matrix SCM Ltd,Agency Staff,1209.60,0.00,COMMERCIAL SUPPLIER 
 20-12-2023,People - Ageing Well,Matrix SCM Ltd,Agency Staff,1209.60,0.00,COMMERCIAL SUPPLIER 
 28-12-2023,People - Ageing Well,Matrix SCM Ltd,Agency Staff,1209.60,0.00,COMMERCIAL SUPPLIER 
 12-12-2023,People - Ageing Well,Care-Away Ltd T/A Care Support,Home Care - Private Contractors Payment,1211.75,0.00,COMMERCIAL SUPPLIER 
 12-12-2023,People - Ageing Well,Morepower Ltd t/a Aqs Homecare,Home Care - Private Contractors Payment,1211.80,0.00,COMMERCIAL SUPPLIER 
 12-12-2023,People - Ageing Well,Home Sweet Home Care Ltd,Home Care - Private Contractors Payment,1212.16,0.00,COMMERCIAL SUPPLIER 
 13-12-2023,People - Ageing Well,Homestead Care Service,Home Care - Private Contractors Payment,1212.16,0.00,COMMERCIAL SUPPLIER 
 13-12-2023,People - Ageing Well,Homestead Care Service,Home Care - Private Contractors Payment,1212.16,0.00,COMMERCIAL SUPPLIER 
 08-12-2023,People - Ageing Well,Home Support Services (Havering & Essex) Ltd,Home Care - Private Contractors Payment,1212.89,0.00,COMMERCIAL SUPPLIER 
 13-12-2023,People - Ageing Well,Homestead Care Service,Home Care - Private Contractors Payment,1212.89,0.00,COMMERCIAL SUPPLIER 
 13-12-2023,People - Ageing Well,Homestead Care Service,Home Care - Private Contractors Payment,1213.62,0.00,COMMERCIAL SUPPLIER 
 08-12-2023,People - Ageing Well,Home Support Services (Havering & Essex) Ltd,Home Care - Private Contractors Payment,1215.44,0.00,COMMERCIAL SUPPLIER 
 12-12-2023,People - Ageing Well,Home Sweet Home Care Ltd,Home Care - Private Contractors Payment,1216.17,0.00,COMMERCIAL SUPPLIER 
 12-12-2023,People - Ageing Well,Home Sweet Home Care Ltd,Home Care - Private Contractors Payment,1216.90,0.00,COMMERCIAL SUPPLIER 
 08-12-2023,People - Ageing Well,Home Support Services (Havering & Essex) Ltd,Home Care - Private Contractors Payment,1217.62,0.00,COMMERCIAL SUPPLIER 
 12-12-2023,People - Ageing Well,Morepower Ltd t/a Aqs Homecare,Home Care - Private Contractors Payment,1218.34,0.00,COMMERCIAL SUPPLIER 
 13-12-2023,People - Ageing Well,Homestead Care Service,Home Care - Private Contractors Payment,1218.72,0.00,COMMERCIAL SUPPLIER 
 04-12-2023,People - Ageing Well,Tapestry_a.,Daycare - Private Contractors Payment,1220.00,0.00,COMMERCIAL SUPPLIER 
 04-12-2023,People - Ageing Well,Tapestry_a.,Daycare - Private Contractors Payment,1220.00,0.00,COMMERCIAL SUPPLIER 
 04-12-2023,People - Ageing Well,Tapestry_a.,Daycare - Private Contractors Payment,1220.00,0.00,COMMERCIAL SUPPLIER 
 07-12-2023,People - Ageing Well,Cera Care Operations Ltd,Home Care - Private Contractors Payment,1220.90,0.00,COMMERCIAL SUPPLIER 
 12-12-2023,People - Ageing Well,Morepower Ltd t/a Aqs Homecare,Home Care - Private Contractors Payment,1221.26,0.00,COMMERCIAL SUPPLIER 
 12-12-2023,People - Ageing Well,Morepower Ltd t/a Aqs Homecare,Home Care - Private Contractors Payment,1221.26,0.00,COMMERCIAL SUPPLIER 
 13-12-2023,People - Ageing Well,Homestead Care Service,Home Care - Private Contractors Payment,1221.26,0.00,COMMERCIAL SUPPLIER 
 13-12-2023,People - Ageing Well,Homestead Care Service,Home Care - Private Contractors Payment,1221.63,0.00,COMMERCIAL SUPPLIER 
 12-12-2023,People - Ageing Well,Home Sweet Home Care Ltd,Home Care - Private Contractors Payment,1221.99,0.00,COMMERCIAL SUPPLIER 
 12-12-2023,People - Ageing Well,Home Sweet Home Care Ltd,Home Care - Private Contractors Payment,1222.72,0.00,COMMERCIAL SUPPLIER 
 03-12-2023,People - Ageing Well,Personal Information - Redacted,Home Care - Private Contractors Payment,1223.05,0.00,INDIVIDUALS 
 04-12-2023,People - Ageing Well,IJB Healthcare Ltd,Home Care - Private Contractors Payment,1223.06,0.00,COMMERCIAL SUPPLIER 
 05-12-2023,People - Ageing Well,Inna Care Ltd,Home Care - Private Contractors Payment,1223.06,0.00,COMMERCIAL SUPPLIER 
 28-12-2023,People - Ageing Well,Crystalize Care Services Ltd,Home Care - Private Contractors Payment,1223.06,0.00,COMMERCIAL SUPPLIER 
 28-12-2023,People - Ageing Well,Crystalize Care Services Ltd,Home Care - Private Contractors Payment,1223.06,0.00,COMMERCIAL SUPPLIER 
 04-12-2023,People - Ageing Well,Gims Care Solution Ltd_a,Home Care - Private Contractors Payment,1223.07,0.00,NON COMMERCIAL SUPPLIER 
 04-12-2023,People - Ageing Well,London Homecare Ltd,Home Care - Private Contractors Payment,1223.07,0.00,COMMERCIAL SUPPLIER 
 01-12-2023,People - Ageing Well,Recruitcare Professionals Ltd ,Home Care - Private Contractors Payment,1223.08,0.00,COMMERCIAL SUPPLIER 
 03-12-2023,People - Ageing Well,Personal Information - Redacted,Home Care - Private Contractors Payment,1223.08,0.00,INDIVIDUALS 
 03-12-2023,People - Ageing Well,Personal Information - Redacted,Home Care - Private Contractors Payment,1223.08,0.00,INDIVIDUALS 
 03-12-2023,People - Ageing Well,Personal Information - Redacted,Home Care - Private Contractors Payment,1223.08,0.00,INDIVIDUALS 
 04-12-2023,People - Ageing Well,London Homecare Ltd,Home Care - Private Contractors Payment,1223.08,0.00,COMMERCIAL SUPPLIER 
 04-12-2023,People - Ageing Well,London Homecare Ltd,Home Care - Private Contractors Payment,1223.08,0.00,COMMERCIAL SUPPLIER 
 04-12-2023,People - Ageing Well,London Homecare Ltd,Home Care - Private Contractors Payment,1223.08,0.00,COMMERCIAL SUPPLIER 
 06-12-2023,People - Ageing Well,Premier Carewaiting Ltd,Home Care - Private Contractors Payment,1223.08,0.00,COMMERCIAL SUPPLIER 
 06-12-2023,People - Ageing Well,Premier Carewaiting Ltd,Home Care - Private Contractors Payment,1223.08,0.00,COMMERCIAL SUPPLIER 
 08-12-2023,People - Ageing Well,Lodge Group Care UK Ltd,Home Care - Private Contractors Payment,1223.08,0.00,COMMERCIAL SUPPLIER 
 08-12-2023,People - Ageing Well,Lodge Group Care UK Ltd,Home Care - Private Contractors Payment,1223.08,0.00,COMMERCIAL SUPPLIER 
 08-12-2023,People - Ageing Well,Lodge Group Care UK Ltd,Home Care - Private Contractors Payment,1223.08,0.00,COMMERCIAL SUPPLIER 
 08-12-2023,People - Ageing Well,Lodge Group Care UK Ltd,Home Care - Private Contractors Payment,1223.08,0.00,COMMERCIAL SUPPLIER 
 08-12-2023,People - Ageing Well,Lodge Group Care UK Ltd,Home Care - Private Contractors Payment,1223.08,0.00,COMMERCIAL SUPPLIER 
 08-12-2023,People - Ageing Well,Lodge Group Care UK Ltd,Home Care - Private Contractors Payment,1223.08,0.00,COMMERCIAL SUPPLIER 
 08-12-2023,People - Ageing Well,Home Support Services (Havering & Essex) Ltd,Home Care - Private Contractors Payment,1223.08,0.00,COMMERCIAL SUPPLIER 
 08-12-2023,People - Ageing Well,Home Support Services (Havering & Essex) Ltd,Home Care - Private Contractors Payment,1223.08,0.00,COMMERCIAL SUPPLIER 
 11-12-2023,People - Ageing Well,Prestige Care & Support Ltd,Home Care - Private Contractors Payment,1223.08,0.00,COMMERCIAL SUPPLIER 
 11-12-2023,People - Ageing Well,Prestige Care & Support Ltd,Home Care - Private Contractors Payment,1223.08,0.00,COMMERCIAL SUPPLIER 
 11-12-2023,People - Ageing Well,Anytime Care 2020_a,Home Care - Private Contractors Payment,1223.08,0.00,COMMERCIAL SUPPLIER 
 11-12-2023,People - Ageing Well,Anytime Care 2020_a,Home Care - Private Contractors Payment,1223.08,0.00,COMMERCIAL SUPPLIER 
 11-12-2023,People - Ageing Well,Passion Tree Care Services Ltd,Home Care - Private Contractors Payment,1223.08,0.00,COMMERCIAL SUPPLIER 
 11-12-2023,People - Ageing Well,Rosemont Care Limited,Home Care - Private Contractors Payment,1223.08,0.00,COMMERCIAL SUPPLIER 
 11-12-2023,People - Ageing Well,Rosemont Care Limited,Home Care - Private Contractors Payment,1223.08,0.00,COMMERCIAL SUPPLIER 
 11-12-2023,People - Ageing Well,Rosemont Care Limited,Home Care - Private Contractors Payment,1223.08,0.00,COMMERCIAL SUPPLIER 
 11-12-2023,People - Ageing Well,Rosemont Care Limited,Home Care - Private Contractors Payment,1223.08,0.00,COMMERCIAL SUPPLIER 
 11-12-2023,People - Ageing Well,Outreach Support Services Ltd,Home Care - Private Contractors Payment,1223.08,0.00,COMMERCIAL SUPPLIER 
 11-12-2023,People - Ageing Well,Outreach Support Services Ltd,Home Care - Private Contractors Payment,1223.08,0.00,COMMERCIAL SUPPLIER 
 11-12-2023,People - Ageing Well,Outreach Support Services Ltd,Home Care - Private Contractors Payment,1223.08,0.00,COMMERCIAL SUPPLIER 
 11-12-2023,People - Ageing Well,Outreach Support Services Ltd,Home Care - Private Contractors Payment,1223.08,0.00,COMMERCIAL SUPPLIER 
 11-12-2023,People - Ageing Well,Outreach Support Services Ltd,Home Care - Private Contractors Payment,1223.08,0.00,COMMERCIAL SUPPLIER 
 11-12-2023,People - Ageing Well,Outreach Support Services Ltd,Home Care - Private Contractors Payment,1223.08,0.00,COMMERCIAL SUPPLIER 
 11-12-2023,People - Ageing Well,Outreach Support Services Ltd,Home Care - Private Contractors Payment,1223.08,0.00,COMMERCIAL SUPPLIER 
 13-12-2023,People - Ageing Well,Homestead Care Service,Home Care - Private Contractors Payment,1223.08,0.00,COMMERCIAL SUPPLIER 
 13-12-2023,People - Ageing Well,Homestead Care Service,Home Care - Private Contractors Payment,1223.08,0.00,COMMERCIAL SUPPLIER 
 08-12-2023,People - Ageing Well,Lodge Group Care UK Ltd,Home Care - Private Contractors Payment,1223.45,0.00,COMMERCIAL SUPPLIER 
 11-12-2023,People - Ageing Well,Anytime Care 2020_a,Home Care - Private Contractors Payment,1223.45,0.00,COMMERCIAL SUPPLIER 
 08-12-2023,People - Ageing Well,Home Support Services (Havering & Essex) Ltd,Home Care - Private Contractors Payment,1223.81,0.00,COMMERCIAL SUPPLIER 
 12-12-2023,People - Ageing Well,Morepower Ltd t/a Aqs Homecare,Home Care - Private Contractors Payment,1223.81,0.00,COMMERCIAL SUPPLIER 
 12-12-2023,People - Ageing Well,Prior Care Ltd_a,Home Care - Private Contractors Payment,1223.81,0.00,COMMERCIAL SUPPLIER 
 08-12-2023,People - Ageing Well,Lodge Group Care UK Ltd,Home Care - Private Contractors Payment,1224.54,0.00,COMMERCIAL SUPPLIER 
 06-12-2023,People - Ageing Well,Hospiva Care & Associates Agency Ltd_a,Home Care - Private Contractors Payment,1224.90,0.00,COMMERCIAL SUPPLIER 
 08-12-2023,People - Ageing Well,Home Support Services (Havering & Essex) Ltd,Home Care - Private Contractors Payment,1224.90,0.00,COMMERCIAL SUPPLIER 
 13-12-2023,People - Ageing Well,Homestead Care Service,Home Care - Private Contractors Payment,1224.90,0.00,COMMERCIAL SUPPLIER 
 13-12-2023,People - Ageing Well,Homestead Care Service,Home Care - Private Contractors Payment,1224.90,0.00,COMMERCIAL SUPPLIER 
 13-12-2023,People - Ageing Well,Homestead Care Service,Home Care - Private Contractors Payment,1224.90,0.00,COMMERCIAL SUPPLIER 
 12-12-2023,People - Ageing Well,John Stanleys Care Agency Ltd,Home Care - Private Contractors Payment,1225.27,0.00,COMMERCIAL SUPPLIER 
 13-12-2023,People - Ageing Well,Homestead Care Service,Home Care - Private Contractors Payment,1226.00,0.00,COMMERCIAL SUPPLIER 
 11-12-2023,People - Ageing Well,Anytime Care 2020_a,Home Care - Private Contractors Payment,1226.36,0.00,COMMERCIAL SUPPLIER 
 12-12-2023,People - Ageing Well,John Stanleys Care Agency Ltd,Home Care - Private Contractors Payment,1226.36,0.00,COMMERCIAL SUPPLIER 
 13-12-2023,People - Ageing Well,Homestead Care Service,Home Care - Private Contractors Payment,1226.72,0.00,COMMERCIAL SUPPLIER 
 13-12-2023,People - Ageing Well,Homestead Care Service,Home Care - Private Contractors Payment,1226.72,0.00,COMMERCIAL SUPPLIER 
 12-12-2023,People - Ageing Well,John Stanleys Care Agency Ltd,Home Care - Private Contractors Payment,1227.08,0.00,COMMERCIAL SUPPLIER 
 08-12-2023,People - Ageing Well,Lodge Group Care UK Ltd,Home Care - Private Contractors Payment,1227.09,0.00,COMMERCIAL SUPPLIER 
 08-12-2023,People - Ageing Well,Lodge Group Care UK Ltd,Home Care - Private Contractors Payment,1227.45,0.00,COMMERCIAL SUPPLIER 
 08-12-2023,People - Ageing Well,Lodge Group Care UK Ltd,Home Care - Private Contractors Payment,1227.45,0.00,COMMERCIAL SUPPLIER 
 08-12-2023,People - Ageing Well,Lodge Group Care UK Ltd,Home Care - Private Contractors Payment,1227.82,0.00,COMMERCIAL SUPPLIER 
 11-12-2023,People - Ageing Well,Anytime Care 2020_a,Home Care - Private Contractors Payment,1227.82,0.00,COMMERCIAL SUPPLIER 
 08-12-2023,People - Ageing Well,Lodge Group Care UK Ltd,Home Care - Private Contractors Payment,1228.18,0.00,COMMERCIAL SUPPLIER 
 08-12-2023,People - Ageing Well,Lodge Group Care UK Ltd,Home Care - Private Contractors Payment,1228.18,0.00,COMMERCIAL SUPPLIER 
 08-12-2023,People - Ageing Well,Lodge Group Care UK Ltd,Home Care - Private Contractors Payment,1228.18,0.00,COMMERCIAL SUPPLIER 
 08-12-2023,People - Ageing Well,Lodge Group Care UK Ltd,Home Care - Private Contractors Payment,1228.18,0.00,COMMERCIAL SUPPLIER 
 08-12-2023,People - Ageing Well,Lodge Group Care UK Ltd,Home Care - Private Contractors Payment,1228.53,0.00,COMMERCIAL SUPPLIER 
 08-12-2023,People - Ageing Well,Lodge Group Care UK Ltd,Home Care - Private Contractors Payment,1228.54,0.00,COMMERCIAL SUPPLIER 
 08-12-2023,People - Ageing Well,Lodge Group Care UK Ltd,Home Care - Private Contractors Payment,1228.54,0.00,COMMERCIAL SUPPLIER 
 08-12-2023,People - Ageing Well,Lodge Group Care UK Ltd,Home Care - Private Contractors Payment,1228.54,0.00,COMMERCIAL SUPPLIER 
 11-12-2023,People - Ageing Well,Anytime Care 2020_a,Home Care - Private Contractors Payment,1228.54,0.00,COMMERCIAL SUPPLIER 
 08-12-2023,People - Ageing Well,Lodge Group Care UK Ltd,Home Care - Private Contractors Payment,1228.91,0.00,COMMERCIAL SUPPLIER 
 08-12-2023,People - Ageing Well,Home Support Services (Havering & Essex) Ltd,Home Care - Private Contractors Payment,1228.91,0.00,COMMERCIAL SUPPLIER 
 12-12-2023,People - Ageing Well,Home Sweet Home Care Ltd,Home Care - Private Contractors Payment,1228.91,0.00,COMMERCIAL SUPPLIER 
 12-12-2023,People - Ageing Well,Home Sweet Home Care Ltd,Home Care - Private Contractors Payment,1228.91,0.00,COMMERCIAL SUPPLIER 
 12-12-2023,People - Ageing Well,Home Sweet Home Care Ltd,Home Care - Private Contractors Payment,1228.91,0.00,COMMERCIAL SUPPLIER 
 11-12-2023,People - Ageing Well,Anytime Care 2020_a,Home Care - Private Contractors Payment,1229.64,0.00,COMMERCIAL SUPPLIER 
 13-12-2023,People - Ageing Well,Homestead Care Service,Home Care - Private Contractors Payment,1229.64,0.00,COMMERCIAL SUPPLIER 
 12-12-2023,People - Ageing Well,Home Sweet Home Care Ltd,Home Care - Private Contractors Payment,1230.36,0.00,COMMERCIAL SUPPLIER 
 12-12-2023,People - Ageing Well,Home Sweet Home Care Ltd,Home Care - Private Contractors Payment,1230.36,0.00,COMMERCIAL SUPPLIER 
 13-12-2023,People - Ageing Well,Homestead Care Service,Home Care - Private Contractors Payment,1230.73,0.00,COMMERCIAL SUPPLIER 
 12-12-2023,People - Ageing Well,Prior Care Ltd_a,Home Care - Private Contractors Payment,1231.08,0.00,COMMERCIAL SUPPLIER 
 08-12-2023,People - Ageing Well,Lodge Group Care UK Ltd,Home Care - Private Contractors Payment,1231.09,0.00,COMMERCIAL SUPPLIER 
 08-12-2023,People - Ageing Well,Lodge Group Care UK Ltd,Home Care - Private Contractors Payment,1231.09,0.00,COMMERCIAL SUPPLIER 
 13-12-2023,People - Ageing Well,Homestead Care Service,Home Care - Private Contractors Payment,1231.09,0.00,COMMERCIAL SUPPLIER 
 08-12-2023,People - Ageing Well,Lodge Group Care UK Ltd,Home Care - Private Contractors Payment,1231.82,0.00,COMMERCIAL SUPPLIER 
 13-12-2023,People - Ageing Well,Homestead Care Service,Home Care - Private Contractors Payment,1231.82,0.00,COMMERCIAL SUPPLIER 
 07-12-2023,People - Ageing Well,Cera Care Operations Ltd,Home Care - Private Contractors Payment,1232.18,0.00,COMMERCIAL SUPPLIER 
 08-12-2023,People - Ageing Well,Lodge Group Care UK Ltd,Home Care - Private Contractors Payment,1232.18,0.00,COMMERCIAL SUPPLIER 
 12-12-2023,People - Ageing Well,Home Sweet Home Care Ltd,Home Care - Private Contractors Payment,1232.91,0.00,COMMERCIAL SUPPLIER 
 12-12-2023,People - Ageing Well,Home Sweet Home Care Ltd,Home Care - Private Contractors Payment,1233.28,0.00,COMMERCIAL SUPPLIER 
 07-12-2023,People - Ageing Well,Cera Care Operations Ltd,Home Care - Private Contractors Payment,1233.64,0.00,COMMERCIAL SUPPLIER 
 11-12-2023,People - Ageing Well,Prestige Care & Support Ltd,Home Care - Private Contractors Payment,1233.64,0.00,COMMERCIAL SUPPLIER 
 08-12-2023,People - Ageing Well,Home Support Services (Havering & Essex) Ltd,Home Care - Private Contractors Payment,1234.00,0.00,COMMERCIAL SUPPLIER 
 11-12-2023,People - Ageing Well,Prestige Care & Support Ltd,Home Care - Private Contractors Payment,1234.00,0.00,COMMERCIAL SUPPLIER 
 07-12-2023,People - Ageing Well,Cera Care Operations Ltd,Home Care - Private Contractors Payment,1234.37,0.00,COMMERCIAL SUPPLIER 
 11-12-2023,People - Ageing Well,Prestige Care & Support Ltd,Home Care - Private Contractors Payment,1234.37,0.00,COMMERCIAL SUPPLIER 
 13-12-2023,People - Ageing Well,Homestead Care Service,Home Care - Private Contractors Payment,1235.10,0.00,COMMERCIAL SUPPLIER 
 13-12-2023,People - Ageing Well,Homestead Care Service,Home Care - Private Contractors Payment,1235.10,0.00,COMMERCIAL SUPPLIER 
 08-12-2023,People - Ageing Well,Lodge Group Care UK Ltd,Home Care - Private Contractors Payment,1236.19,0.00,COMMERCIAL SUPPLIER 
 12-12-2023,People - Ageing Well,Home Sweet Home Care Ltd,Home Care - Private Contractors Payment,1236.55,0.00,COMMERCIAL SUPPLIER 
 13-12-2023,People - Ageing Well,Homestead Care Service,Home Care - Private Contractors Payment,1236.55,0.00,COMMERCIAL SUPPLIER 
 08-12-2023,People - Ageing Well,Lodge Group Care UK Ltd,Home Care - Private Contractors Payment,1237.28,0.00,COMMERCIAL SUPPLIER 
 08-12-2023,People - Ageing Well,Lodge Group Care UK Ltd,Home Care - Private Contractors Payment,1237.28,0.00,COMMERCIAL SUPPLIER 
 08-12-2023,People - Ageing Well,Lodge Group Care UK Ltd,Home Care - Private Contractors Payment,1237.64,0.00,COMMERCIAL SUPPLIER 
 12-12-2023,People - Ageing Well,Home Sweet Home Care Ltd,Home Care - Private Contractors Payment,1238.01,0.00,COMMERCIAL SUPPLIER 
 08-12-2023,People - Ageing Well,Home Support Services (Havering & Essex) Ltd,Home Care - Private Contractors Payment,1238.37,0.00,COMMERCIAL SUPPLIER 
 12-12-2023,People - Ageing Well,Home Sweet Home Care Ltd,Home Care - Private Contractors Payment,1238.74,0.00,COMMERCIAL SUPPLIER 
 12-12-2023,People - Ageing Well,John Stanleys Care Agency Ltd,Home Care - Private Contractors Payment,1238.74,0.00,COMMERCIAL SUPPLIER 
 13-12-2023,People - Ageing Well,Homestead Care Service,Home Care - Private Contractors Payment,1239.83,0.00,COMMERCIAL SUPPLIER 
 08-12-2023,People - Ageing Well,Home Support Services (Havering & Essex) Ltd,Home Care - Private Contractors Payment,1240.19,0.00,COMMERCIAL SUPPLIER 
 13-12-2023,People - Ageing Well,Homestead Care Service,Home Care - Private Contractors Payment,1240.19,0.00,COMMERCIAL SUPPLIER 
 11-12-2023,People - Ageing Well,Prestige Care & Support Ltd,Home Care - Private Contractors Payment,1240.92,0.00,COMMERCIAL SUPPLIER 
 06-12-2023,People - Ageing Well,Matrix SCM Ltd,Agency Staff,1241.28,0.00,COMMERCIAL SUPPLIER 
 06-12-2023,People - Ageing Well,Matrix SCM Ltd,Agency Staff,1241.28,0.00,COMMERCIAL SUPPLIER 
 06-12-2023,People - Ageing Well,Matrix SCM Ltd,Agency Staff,1241.28,0.00,COMMERCIAL SUPPLIER 
 06-12-2023,People - Ageing Well,Matrix SCM Ltd,Agency Staff,1241.28,0.00,COMMERCIAL SUPPLIER 
 12-12-2023,People - Ageing Well,Home Sweet Home Care Ltd,Home Care - Private Contractors Payment,1241.28,0.00,COMMERCIAL SUPPLIER 
 13-12-2023,People - Ageing Well,Homestead Care Service,Home Care - Private Contractors Payment,1241.28,0.00,COMMERCIAL SUPPLIER 
 13-12-2023,People - Ageing Well,Matrix SCM Ltd,Agency Staff,1241.28,0.00,COMMERCIAL SUPPLIER 
 13-12-2023,People - Ageing Well,Matrix SCM Ltd,Agency Staff,1241.28,0.00,COMMERCIAL SUPPLIER 
 13-12-2023,People - Ageing Well,Matrix SCM Ltd,Agency Staff,1241.28,0.00,COMMERCIAL SUPPLIER 
 13-12-2023,People - Ageing Well,Matrix SCM Ltd,Agency Staff,1241.28,0.00,COMMERCIAL SUPPLIER 
 13-12-2023,People - Ageing Well,Matrix SCM Ltd,Agency Staff,1241.28,0.00,COMMERCIAL SUPPLIER 
 20-12-2023,People - Ageing Well,Matrix SCM Ltd,Agency Staff,1241.28,0.00,COMMERCIAL SUPPLIER 
 20-12-2023,People - Ageing Well,Matrix SCM Ltd,Agency Staff,1241.28,0.00,COMMERCIAL SUPPLIER 
 20-12-2023,People - Ageing Well,Matrix SCM Ltd,Agency Staff,1241.28,0.00,COMMERCIAL SUPPLIER 
 20-12-2023,People - Ageing Well,Matrix SCM Ltd,Agency Staff,1241.28,0.00,COMMERCIAL SUPPLIER 
 20-12-2023,People - Ageing Well,Matrix SCM Ltd,Agency Staff,1241.28,0.00,COMMERCIAL SUPPLIER 
 20-12-2023,People - Ageing Well,Matrix SCM Ltd,Agency Staff,1241.28,0.00,COMMERCIAL SUPPLIER 
 28-12-2023,People - Ageing Well,Matrix SCM Ltd,Agency Staff,1241.28,0.00,COMMERCIAL SUPPLIER 
 28-12-2023,People - Ageing Well,Matrix SCM Ltd,Agency Staff,1241.28,0.00,COMMERCIAL SUPPLIER 
 28-12-2023,People - Ageing Well,Matrix SCM Ltd,Agency Staff,1241.28,0.00,COMMERCIAL SUPPLIER 
 28-12-2023,People - Ageing Well,Matrix SCM Ltd,Agency Staff,1241.28,0.00,COMMERCIAL SUPPLIER 
 28-12-2023,People - Ageing Well,Matrix SCM Ltd,Agency Staff,1241.28,0.00,COMMERCIAL SUPPLIER 
 28-12-2023,People - Ageing Well,Matrix SCM Ltd,Agency Staff,1241.28,0.00,COMMERCIAL SUPPLIER 
 12-12-2023,People - Ageing Well,Morepower Ltd t/a Aqs Homecare,Home Care - Private Contractors Payment,1241.65,0.00,COMMERCIAL SUPPLIER 
 12-12-2023,People - Ageing Well,Prior Care Ltd_a,Home Care - Private Contractors Payment,1241.65,0.00,COMMERCIAL SUPPLIER 
 06-12-2023,People - Ageing Well,Hospiva Care & Associates Agency Ltd_a,Home Care - Private Contractors Payment,1242.38,0.00,COMMERCIAL SUPPLIER 
 12-12-2023,People - Ageing Well,Home Sweet Home Care Ltd,Home Care - Private Contractors Payment,1242.38,0.00,COMMERCIAL SUPPLIER 
 12-12-2023,People - Ageing Well,Morepower Ltd t/a Aqs Homecare,Home Care - Private Contractors Payment,1242.74,0.00,COMMERCIAL SUPPLIER 
 08-12-2023,People - Ageing Well,Home Support Services (Havering & Essex) Ltd,Home Care - Private Contractors Payment,1243.10,0.00,COMMERCIAL SUPPLIER 
 08-12-2023,People - Ageing Well,Home Support Services (Havering & Essex) Ltd,Home Care - Private Contractors Payment,1243.10,0.00,COMMERCIAL SUPPLIER 
 07-12-2023,People - Ageing Well,Cera Care Operations Ltd,Home Care - Private Contractors Payment,1244.20,0.00,COMMERCIAL SUPPLIER 
 08-12-2023,People - Ageing Well,Lodge Group Care UK Ltd,Home Care - Private Contractors Payment,1247.11,0.00,COMMERCIAL SUPPLIER 
 13-12-2023,People - Ageing Well,Westminster Homecare Ltd_a,Home Care - Private Contractors Payment,1247.47,0.00,COMMERCIAL SUPPLIER 
 12-12-2023,People - Ageing Well,Home Sweet Home Care Ltd,Home Care - Private Contractors Payment,1248.20,0.00,COMMERCIAL SUPPLIER 
 12-12-2023,People - Ageing Well,Morepower Ltd t/a Aqs Homecare,Home Care - Private Contractors Payment,1250.38,0.00,COMMERCIAL SUPPLIER 
 12-12-2023,People - Ageing Well,Home Sweet Home Care Ltd,Home Care - Private Contractors Payment,1250.75,0.00,COMMERCIAL SUPPLIER 
 08-12-2023,People - Ageing Well,Lodge Group Care UK Ltd,Home Care - Private Contractors Payment,1251.11,0.00,COMMERCIAL SUPPLIER 
 12-12-2023,People - Ageing Well,Morepower Ltd t/a Aqs Homecare,Home Care - Private Contractors Payment,1251.11,0.00,COMMERCIAL SUPPLIER 
 13-12-2023,People - Ageing Well,Homestead Care Service,Home Care - Private Contractors Payment,1251.48,0.00,COMMERCIAL SUPPLIER 
 08-12-2023,People - Ageing Well,Home Support Services (Havering & Essex) Ltd,Home Care - Private Contractors Payment,1252.20,0.00,COMMERCIAL SUPPLIER 
 13-12-2023,People - Ageing Well,Homestead Care Service,Home Care - Private Contractors Payment,1252.20,0.00,COMMERCIAL SUPPLIER 
 08-12-2023,People - Ageing Well,Lodge Group Care UK Ltd,Home Care - Private Contractors Payment,1253.30,0.00,COMMERCIAL SUPPLIER 
 20-12-2023,People - Ageing Well,Matrix SCM Ltd,Agency Staff,1253.54,0.00,COMMERCIAL SUPPLIER 
 20-12-2023,People - Ageing Well,Matrix SCM Ltd,Agency Staff,1253.54,0.00,COMMERCIAL SUPPLIER 
 28-12-2023,People - Ageing Well,Matrix SCM Ltd,Agency Staff,1253.54,0.00,COMMERCIAL SUPPLIER 
 08-12-2023,People - Ageing Well,Lodge Group Care UK Ltd,Home Care - Private Contractors Payment,1253.66,0.00,COMMERCIAL SUPPLIER 
 12-12-2023,People - Ageing Well,Morepower Ltd t/a Aqs Homecare,Home Care - Private Contractors Payment,1253.66,0.00,COMMERCIAL SUPPLIER 
 13-12-2023,People - Ageing Well,Homestead Care Service,Home Care - Private Contractors Payment,1253.66,0.00,COMMERCIAL SUPPLIER 
 12-12-2023,People - Ageing Well,Morepower Ltd t/a Aqs Homecare,Home Care - Private Contractors Payment,1255.48,0.00,COMMERCIAL SUPPLIER 
 12-12-2023,People - Ageing Well,Nightingale Residential Care Home Ltd,Residential Placements - Private Contractors Payment,1257.14,0.00,COMMERCIAL SUPPLIER 
 12-12-2023,People - Ageing Well,Lodge Lane Care Home Limited,Residential Placements - Private Contractors Payment,1257.14,0.00,COMMERCIAL SUPPLIER 
 12-12-2023,People - Ageing Well,Home Sweet Home Care Ltd,Home Care - Private Contractors Payment,1257.30,0.00,COMMERCIAL SUPPLIER 
 12-12-2023,People - Ageing Well,Home Sweet Home Care Ltd,Home Care - Private Contractors Payment,1258.76,0.00,COMMERCIAL SUPPLIER 
 13-12-2023,People - Ageing Well,Quality Healthcare Solutions Ltd t/a Kare Plus Romford,Home Care - Private Contractors Payment,1260.58,0.00,COMMERCIAL SUPPLIER 
 12-12-2023,People - Ageing Well,Home Sweet Home Care Ltd,Home Care - Private Contractors Payment,1260.94,0.00,COMMERCIAL SUPPLIER 
 13-12-2023,People - Ageing Well,Homestead Care Service,Home Care - Private Contractors Payment,1260.94,0.00,COMMERCIAL SUPPLIER 
 07-12-2023,People - Ageing Well,Cera Care Operations Ltd,Home Care - Private Contractors Payment,1261.67,0.00,COMMERCIAL SUPPLIER 
 06-12-2023,People - Ageing Well,Matrix SCM Ltd,Agency Staff,1261.74,0.00,COMMERCIAL SUPPLIER 
 13-12-2023,People - Ageing Well,Matrix SCM Ltd,Agency Staff,1261.74,0.00,COMMERCIAL SUPPLIER 
 20-12-2023,People - Ageing Well,Matrix SCM Ltd,Agency Staff,1261.74,0.00,COMMERCIAL SUPPLIER 
 28-12-2023,People - Ageing Well,Matrix SCM Ltd,Agency Staff,1261.74,0.00,COMMERCIAL SUPPLIER 
 08-12-2023,People - Ageing Well,Home Support Services (Havering & Essex) Ltd,Home Care - Private Contractors Payment,1262.03,0.00,COMMERCIAL SUPPLIER 
 13-12-2023,People - Ageing Well,Westminster Homecare Ltd_a,Home Care - Private Contractors Payment,1262.03,0.00,COMMERCIAL SUPPLIER 
 07-12-2023,People - Ageing Well,Cera Care Operations Ltd,Home Care - Private Contractors Payment,1262.40,0.00,COMMERCIAL SUPPLIER 
 12-12-2023,People - Ageing Well,Livingstone Health Care Services,Home Care - Private Contractors Payment,1262.40,0.00,COMMERCIAL SUPPLIER 
 08-12-2023,People - Ageing Well,Home Support Services (Havering & Essex) Ltd,Home Care - Private Contractors Payment,1263.12,0.00,COMMERCIAL SUPPLIER 
 12-12-2023,People - Ageing Well,Home Sweet Home Care Ltd,Home Care - Private Contractors Payment,1263.85,0.00,COMMERCIAL SUPPLIER 
 08-12-2023,People - Ageing Well,Lodge Group Care UK Ltd,Home Care - Private Contractors Payment,1264.22,0.00,COMMERCIAL SUPPLIER 
 08-12-2023,People - Ageing Well,Lodge Group Care UK Ltd,Home Care - Private Contractors Payment,1264.22,0.00,COMMERCIAL SUPPLIER 
 13-12-2023,People - Ageing Well,Homestead Care Service,Home Care - Private Contractors Payment,1264.22,0.00,COMMERCIAL SUPPLIER 
 08-12-2023,People - Ageing Well,Lodge Group Care UK Ltd,Home Care - Private Contractors Payment,1264.94,0.00,COMMERCIAL SUPPLIER 
 13-12-2023,People - Ageing Well,Homestead Care Service,Home Care - Private Contractors Payment,1264.94,0.00,COMMERCIAL SUPPLIER 
 13-12-2023,People - Ageing Well,Homestead Care Service,Home Care - Private Contractors Payment,1265.67,0.00,COMMERCIAL SUPPLIER 
 12-12-2023,People - Ageing Well,Morepower Ltd t/a Aqs Homecare,Home Care - Private Contractors Payment,1266.04,0.00,COMMERCIAL SUPPLIER 
 12-12-2023,People - Ageing Well,Morepower Ltd t/a Aqs Homecare,Home Care - Private Contractors Payment,1266.76,0.00,COMMERCIAL SUPPLIER 
 07-12-2023,People - Ageing Well,Cera Care Operations Ltd,Home Care - Private Contractors Payment,1267.49,0.00,COMMERCIAL SUPPLIER 
 08-12-2023,People - Ageing Well,Home Support Services (Havering & Essex) Ltd,Home Care - Private Contractors Payment,1267.49,0.00,COMMERCIAL SUPPLIER 
 07-12-2023,People - Ageing Well,Cera Care Operations Ltd,Home Care - Private Contractors Payment,1268.95,0.00,COMMERCIAL SUPPLIER 
 12-12-2023,People - Ageing Well,Ashgate House Ltd_a,Residential Placements - Private Contractors Payment,1269.24,0.00,COMMERCIAL SUPPLIER 
 12-12-2023,People - Ageing Well,Footsteps Support Ltd_a,Supported Other Accommodation - Private Contractors Payment,1270.08,0.00,COMMERCIAL SUPPLIER 
 13-12-2023,People - Ageing Well,Homestead Care Service,Home Care - Private Contractors Payment,1271.86,0.00,COMMERCIAL SUPPLIER 
 13-12-2023,People - Ageing Well,Homestead Care Service,Home Care - Private Contractors Payment,1271.86,0.00,COMMERCIAL SUPPLIER 
 06-12-2023,People - Ageing Well,Matrix SCM Ltd,Agency Staff,1273.31,0.00,COMMERCIAL SUPPLIER 
 13-12-2023,People - Ageing Well,Matrix SCM Ltd,Agency Staff,1273.31,0.00,COMMERCIAL SUPPLIER 
 20-12-2023,People - Ageing Well,Matrix SCM Ltd,Agency Staff,1273.31,0.00,COMMERCIAL SUPPLIER 
 12-12-2023,People - Ageing Well,Home Sweet Home Care Ltd,Home Care - Private Contractors Payment,1273.32,0.00,COMMERCIAL SUPPLIER 
 06-12-2023,People - Ageing Well,Matrix SCM Ltd,Agency Staff,1274.05,0.00,COMMERCIAL SUPPLIER 
 13-12-2023,People - Ageing Well,Matrix SCM Ltd,Agency Staff,1274.05,0.00,COMMERCIAL SUPPLIER 
 20-12-2023,People - Ageing Well,Matrix SCM Ltd,Agency Staff,1274.05,0.00,COMMERCIAL SUPPLIER 
 06-12-2023,People - Ageing Well,Matrix SCM Ltd,Agency Staff,1275.49,0.00,COMMERCIAL SUPPLIER 
 06-12-2023,People - Ageing Well,Matrix SCM Ltd,Agency Staff,1275.49,0.00,COMMERCIAL SUPPLIER 
 06-12-2023,People - Ageing Well,Matrix SCM Ltd,Agency Staff,1275.49,0.00,COMMERCIAL SUPPLIER 
 08-12-2023,People - Ageing Well,Lodge Group Care UK Ltd,Home Care - Private Contractors Payment,1275.49,0.00,COMMERCIAL SUPPLIER 
 13-12-2023,People - Ageing Well,Matrix SCM Ltd,Agency Staff,1275.49,0.00,COMMERCIAL SUPPLIER 
 20-12-2023,People - Ageing Well,Matrix SCM Ltd,Agency Staff,1275.49,0.00,COMMERCIAL SUPPLIER 
 20-12-2023,People - Ageing Well,Matrix SCM Ltd,Agency Staff,1275.49,0.00,COMMERCIAL SUPPLIER 
 20-12-2023,People - Ageing Well,Matrix SCM Ltd,Agency Staff,1275.49,0.00,COMMERCIAL SUPPLIER 
 28-12-2023,People - Ageing Well,Matrix SCM Ltd,Agency Staff,1275.49,0.00,COMMERCIAL SUPPLIER 
 28-12-2023,People - Ageing Well,Matrix SCM Ltd,Agency Staff,1275.49,0.00,COMMERCIAL SUPPLIER 
 12-12-2023,People - Ageing Well,John Stanleys Care Agency Ltd,Home Care - Private Contractors Payment,1275.50,0.00,COMMERCIAL SUPPLIER 
 13-12-2023,People - Ageing Well,Homestead Care Service,Home Care - Private Contractors Payment,1276.23,0.00,COMMERCIAL SUPPLIER 
 06-12-2023,People - Ageing Well,Matrix SCM Ltd,Agency Staff,1277.28,0.00,COMMERCIAL SUPPLIER 
 13-12-2023,People - Ageing Well,Matrix SCM Ltd,Agency Staff,1277.28,0.00,COMMERCIAL SUPPLIER 
 20-12-2023,People - Ageing Well,Matrix SCM Ltd,Agency Staff,1277.28,0.00,COMMERCIAL SUPPLIER 
 28-12-2023,People - Ageing Well,Matrix SCM Ltd,Agency Staff,1277.28,0.00,COMMERCIAL SUPPLIER 
 08-12-2023,People - Ageing Well,Home Support Services (Havering & Essex) Ltd,Home Care - Private Contractors Payment,1279.87,0.00,COMMERCIAL SUPPLIER 
 12-12-2023,People - Ageing Well,Morepower Ltd t/a Aqs Homecare,Home Care - Private Contractors Payment,1279.87,0.00,COMMERCIAL SUPPLIER 
 08-12-2023,People - Ageing Well,Lodge Group Care UK Ltd,Home Care - Private Contractors Payment,1282.05,0.00,COMMERCIAL SUPPLIER 
 08-12-2023,People - Ageing Well,Lodge Group Care UK Ltd,Home Care - Private Contractors Payment,1282.78,0.00,COMMERCIAL SUPPLIER 
 13-12-2023,People - Ageing Well,Matrix SCM Ltd,Agency Staff,1283.04,0.00,COMMERCIAL SUPPLIER 
 13-12-2023,People - Ageing Well,Matrix SCM Ltd,Agency Staff,1283.04,0.00,COMMERCIAL SUPPLIER 
 28-12-2023,People - Ageing Well,Matrix SCM Ltd,Agency Staff,1283.04,0.00,COMMERCIAL SUPPLIER 
 08-12-2023,People - Ageing Well,Lodge Group Care UK Ltd,Home Care - Private Contractors Payment,1283.51,0.00,COMMERCIAL SUPPLIER 
 12-12-2023,People - Ageing Well,Prior Care Ltd_a,Home Care - Private Contractors Payment,1284.97,0.00,COMMERCIAL SUPPLIER 
 12-12-2023,People - Ageing Well,Home Sweet Home Care Ltd,Home Care - Private Contractors Payment,1285.69,0.00,COMMERCIAL SUPPLIER 
 06-12-2023,People - Ageing Well,Hospiva Care & Associates Agency Ltd_a,Home Care - Private Contractors Payment,1287.15,0.00,COMMERCIAL SUPPLIER 
 13-12-2023,People - Ageing Well,Homestead Care Service,Home Care - Private Contractors Payment,1287.15,0.00,COMMERCIAL SUPPLIER 
 13-12-2023,People - Ageing Well,Homestead Care Service,Home Care - Private Contractors Payment,1287.51,0.00,COMMERCIAL SUPPLIER 
 28-12-2023,People - Ageing Well,Matrix SCM Ltd,Agency Staff,1288.08,0.00,COMMERCIAL SUPPLIER 
 06-12-2023,People - Ageing Well,Matrix SCM Ltd,Agency Staff,1288.10,0.00,COMMERCIAL SUPPLIER 
 06-12-2023,People - Ageing Well,Matrix SCM Ltd,Agency Staff,1288.10,0.00,COMMERCIAL SUPPLIER 
 13-12-2023,People - Ageing Well,Matrix SCM Ltd,Agency Staff,1288.10,0.00,COMMERCIAL SUPPLIER 
 13-12-2023,People - Ageing Well,Matrix SCM Ltd,Agency Staff,1288.10,0.00,COMMERCIAL SUPPLIER 
 20-12-2023,People - Ageing Well,Matrix SCM Ltd,Agency Staff,1288.10,0.00,COMMERCIAL SUPPLIER 
 20-12-2023,People - Ageing Well,Matrix SCM Ltd,Agency Staff,1288.10,0.00,COMMERCIAL SUPPLIER 
 28-12-2023,People - Ageing Well,Matrix SCM Ltd,Agency Staff,1288.10,0.00,COMMERCIAL SUPPLIER 
 06-12-2023,People - Ageing Well,Matrix SCM Ltd,Agency Staff,1288.45,0.00,COMMERCIAL SUPPLIER 
 06-12-2023,People - Ageing Well,Matrix SCM Ltd,Agency Staff,1288.45,0.00,COMMERCIAL SUPPLIER 
 13-12-2023,People - Ageing Well,Matrix SCM Ltd,Agency Staff,1288.45,0.00,COMMERCIAL SUPPLIER 
 20-12-2023,People - Ageing Well,Matrix SCM Ltd,Agency Staff,1288.45,0.00,COMMERCIAL SUPPLIER 
 28-12-2023,People - Ageing Well,Matrix SCM Ltd,Agency Staff,1288.45,0.00,COMMERCIAL SUPPLIER 
 28-12-2023,People - Ageing Well,Matrix SCM Ltd,Agency Staff,1288.45,0.00,COMMERCIAL SUPPLIER 
 28-12-2023,People - Ageing Well,Matrix SCM Ltd,Agency Staff,1288.45,0.00,COMMERCIAL SUPPLIER 
 13-12-2023,People - Ageing Well,Homestead Care Service,Home Care - Private Contractors Payment,1290.42,0.00,COMMERCIAL SUPPLIER 
 12-12-2023,People - Ageing Well,Prior Care Ltd_a,Home Care - Private Contractors Payment,1291.15,0.00,COMMERCIAL SUPPLIER 
 11-12-2023,People - Ageing Well,Prestige Care & Support Ltd,Home Care - Private Contractors Payment,1291.88,0.00,COMMERCIAL SUPPLIER 
 12-12-2023,People - Ageing Well,Prior Care Ltd_a,Home Care - Private Contractors Payment,1292.24,0.00,COMMERCIAL SUPPLIER 
 13-12-2023,People - Ageing Well,Homestead Care Service,Home Care - Private Contractors Payment,1292.97,0.00,COMMERCIAL SUPPLIER 
 13-12-2023,People - Ageing Well,Matrix SCM Ltd,Agency Staff,1297.05,0.00,COMMERCIAL SUPPLIER 
 08-12-2023,People - Ageing Well,Home Support Services (Havering & Essex) Ltd,Home Care - Private Contractors Payment,1298.07,0.00,COMMERCIAL SUPPLIER 
 12-12-2023,People - Ageing Well,Prior Care Ltd_a,Home Care - Private Contractors Payment,1299.16,0.00,COMMERCIAL SUPPLIER 
 08-12-2023,People - Ageing Well,Lodge Group Care UK Ltd,Home Care - Private Contractors Payment,1302.07,0.00,COMMERCIAL SUPPLIER 
 08-12-2023,People - Ageing Well,Lodge Group Care UK Ltd,Home Care - Private Contractors Payment,1303.16,0.00,COMMERCIAL SUPPLIER 
 11-12-2023,People - Ageing Well,Anytime Care 2020_a,Home Care - Private Contractors Payment,1303.53,0.00,COMMERCIAL SUPPLIER 
 12-12-2023,People - Ageing Well,Livingstone Health Care Services,Home Care - Private Contractors Payment,1303.53,0.00,COMMERCIAL SUPPLIER 
 12-12-2023,People - Ageing Well,Independent Community Support Ltd t/a Wingletye Lodge ,Supported Other Accommodation - Private Contractors Payment,1306.36,0.00,COMMERCIAL SUPPLIER 
 08-12-2023,People - Ageing Well,Home Support Services (Havering & Essex) Ltd,Home Care - Private Contractors Payment,1307.17,0.00,COMMERCIAL SUPPLIER 
 12-12-2023,People - Ageing Well,Morepower Ltd t/a Aqs Homecare,Home Care - Private Contractors Payment,1308.62,0.00,COMMERCIAL SUPPLIER 
 12-12-2023,People - Ageing Well,Morepower Ltd t/a Aqs Homecare,Home Care - Private Contractors Payment,1308.62,0.00,COMMERCIAL SUPPLIER 
 12-12-2023,People - Ageing Well,Morepower Ltd t/a Aqs Homecare,Home Care - Private Contractors Payment,1308.99,0.00,COMMERCIAL SUPPLIER 
 12-12-2023,People - Ageing Well,Morepower Ltd t/a Aqs Homecare,Home Care - Private Contractors Payment,1308.99,0.00,COMMERCIAL SUPPLIER 
 08-12-2023,People - Ageing Well,Home Support Services (Havering & Essex) Ltd,Home Care - Private Contractors Payment,1309.72,0.00,COMMERCIAL SUPPLIER 
 12-12-2023,People - Ageing Well,Achieve Together Ltd - Kingscroft,Supported Other Accommodation - Private Contractors Payment,1310.24,0.00,COMMERCIAL SUPPLIER 
 06-12-2023,People - Ageing Well,Carers Trust East Midlands,Home Care - Private Contractors Payment,1310.41,0.00,COMMERCIAL SUPPLIER 
 06-12-2023,People - Ageing Well,Premier Carewaiting Ltd,Home Care - Private Contractors Payment,1310.44,0.00,COMMERCIAL SUPPLIER 
 11-12-2023,People - Ageing Well,Prestige Care & Support Ltd,Home Care - Private Contractors Payment,1310.45,0.00,COMMERCIAL SUPPLIER 
 12-12-2023,People - Ageing Well,Care-Away Ltd T/A Care Support,Home Care - Private Contractors Payment,1311.31,0.00,COMMERCIAL SUPPLIER 
 13-12-2023,People - Ageing Well,Homestead Care Service,Home Care - Private Contractors Payment,1317.00,0.00,COMMERCIAL SUPPLIER 
 12-12-2023,People - Ageing Well,Home Sweet Home Care Ltd,Home Care - Private Contractors Payment,1318.82,0.00,COMMERCIAL SUPPLIER 
 13-12-2023,People - Ageing Well,Homestead Care Service,Home Care - Private Contractors Payment,1319.54,0.00,COMMERCIAL SUPPLIER 
 12-12-2023,People - Ageing Well,Morepower Ltd t/a Aqs Homecare,Home Care - Private Contractors Payment,1320.64,0.00,COMMERCIAL SUPPLIER 
 12-12-2023,People - Ageing Well,Morepower Ltd t/a Aqs Homecare,Home Care - Private Contractors Payment,1320.64,0.00,COMMERCIAL SUPPLIER 
 20-12-2023,People - Ageing Well,Matrix SCM Ltd,Agency Staff,1323.36,0.00,COMMERCIAL SUPPLIER 
 28-12-2023,People - Ageing Well,Matrix SCM Ltd,Agency Staff,1323.36,0.00,COMMERCIAL SUPPLIER 
 04-12-2023,People - Ageing Well,London Homecare Ltd,Home Care - Private Contractors Payment,1326.82,0.00,COMMERCIAL SUPPLIER 
 04-12-2023,People - Ageing Well,London Homecare Ltd,Home Care - Private Contractors Payment,1326.82,0.00,COMMERCIAL SUPPLIER 
 13-12-2023,People - Ageing Well,Homestead Care Service,Home Care - Private Contractors Payment,1327.19,0.00,COMMERCIAL SUPPLIER 
 08-12-2023,People - Ageing Well,Home Support Services (Havering & Essex) Ltd,Home Care - Private Contractors Payment,1329.37,0.00,COMMERCIAL SUPPLIER 
 13-12-2023,People - Ageing Well,Quality Healthcare Solutions Ltd t/a Kare Plus Romford,Home Care - Private Contractors Payment,1334.10,0.00,COMMERCIAL SUPPLIER 
 03-12-2023,People - Ageing Well,Personal Information - Redacted,Home Care - Private Contractors Payment,1335.04,0.00,INDIVIDUALS 
 12-12-2023,People - Ageing Well,John Stanleys Care Agency Ltd,Home Care - Private Contractors Payment,1335.20,0.00,COMMERCIAL SUPPLIER 
 13-12-2023,People - Ageing Well,Homestead Care Service,Home Care - Private Contractors Payment,1335.92,0.00,COMMERCIAL SUPPLIER 
 13-12-2023,People - Ageing Well,Homestead Care Service,Home Care - Private Contractors Payment,1336.29,0.00,COMMERCIAL SUPPLIER 
 12-12-2023,People - Ageing Well,Home Sweet Home Care Ltd,Home Care - Private Contractors Payment,1338.11,0.00,COMMERCIAL SUPPLIER 
 13-12-2023,People - Ageing Well,Homestead Care Service,Home Care - Private Contractors Payment,1339.93,0.00,COMMERCIAL SUPPLIER 
 20-12-2023,People - Ageing Well,Matrix SCM Ltd,Agency Staff,1341.75,0.00,COMMERCIAL SUPPLIER 
 13-12-2023,People - Ageing Well,Homestead Care Service,Home Care - Private Contractors Payment,1346.12,0.00,COMMERCIAL SUPPLIER 
 13-12-2023,People - Ageing Well,Homestead Care Service,Home Care - Private Contractors Payment,1347.57,0.00,COMMERCIAL SUPPLIER 
 12-12-2023,People - Ageing Well,Home Sweet Home Care Ltd,Home Care - Private Contractors Payment,1349.03,0.00,COMMERCIAL SUPPLIER 
 13-12-2023,People - Ageing Well,Homestead Care Service,Home Care - Private Contractors Payment,1351.58,0.00,COMMERCIAL SUPPLIER 
 11-12-2023,People - Ageing Well,Anytime Care 2020_a,Home Care - Private Contractors Payment,1357.04,0.00,COMMERCIAL SUPPLIER 
 12-12-2023,People - Ageing Well,Beechcourt Care Centre - Bondcare,Nursing Homes - Private Contractors Payment,1357.14,0.00,COMMERCIAL SUPPLIER 
 13-12-2023,People - Ageing Well,Homestead Care Service,Home Care - Private Contractors Payment,1357.40,0.00,COMMERCIAL SUPPLIER 
 04-12-2023,People - Ageing Well,Bluebird Care Havering,Home Care - Private Contractors Payment,1357.52,0.00,COMMERCIAL SUPPLIER 
 18-12-2023,People - Ageing Well,Bluebird Care Havering,Home Care - Private Contractors Payment,1357.52,0.00,COMMERCIAL SUPPLIER 
 07-12-2023,People - Ageing Well,Cera Care Operations Ltd,Home Care - Private Contractors Payment,1364.32,0.00,COMMERCIAL SUPPLIER 
 08-12-2023,People - Ageing Well,Home Support Services (Havering & Essex) Ltd,Home Care - Private Contractors Payment,1366.86,0.00,COMMERCIAL SUPPLIER 
 08-12-2023,People - Ageing Well,Lodge Group Care UK Ltd,Home Care - Private Contractors Payment,1368.32,0.00,COMMERCIAL SUPPLIER 
 08-12-2023,People - Ageing Well,London Care Plc_a,Home Care - Private Contractors Payment,1369.41,0.00,COMMERCIAL SUPPLIER 
 08-12-2023,People - Ageing Well,Lodge Group Care UK Ltd,Home Care - Private Contractors Payment,1369.41,0.00,COMMERCIAL SUPPLIER 
 12-12-2023,People - Ageing Well,Home Sweet Home Care Ltd,Home Care - Private Contractors Payment,1371.96,0.00,COMMERCIAL SUPPLIER 
 12-12-2023,People - Ageing Well,Morepower Ltd t/a Aqs Homecare,Home Care - Private Contractors Payment,1374.14,0.00,COMMERCIAL SUPPLIER 
 12-12-2023,People - Ageing Well,Morepower Ltd t/a Aqs Homecare,Home Care - Private Contractors Payment,1374.14,0.00,COMMERCIAL SUPPLIER 
 13-12-2023,People - Ageing Well,Homestead Care Service,Home Care - Private Contractors Payment,1375.24,0.00,COMMERCIAL SUPPLIER 
 12-12-2023,People - Ageing Well,Care-Away Ltd T/A Care Support,Home Care - Private Contractors Payment,1375.50,0.00,COMMERCIAL SUPPLIER 
 08-12-2023,People - Ageing Well,Home Support Services (Havering & Essex) Ltd,Home Care - Private Contractors Payment,1375.60,0.00,COMMERCIAL SUPPLIER 
 04-12-2023,People - Ageing Well,London Homecare Ltd,Home Care - Private Contractors Payment,1375.95,0.00,COMMERCIAL SUPPLIER 
 06-12-2023,People - Ageing Well,Premier Carewaiting Ltd,Home Care - Private Contractors Payment,1375.95,0.00,COMMERCIAL SUPPLIER 
 12-12-2023,People - Ageing Well,Home Sweet Home Care Ltd,Home Care - Private Contractors Payment,1375.95,0.00,COMMERCIAL SUPPLIER 
 03-12-2023,People - Ageing Well,Personal Information - Redacted,Home Care - Private Contractors Payment,1375.96,0.00,INDIVIDUALS 
 03-12-2023,People - Ageing Well,Personal Information - Redacted,Home Care - Private Contractors Payment,1375.96,0.00,INDIVIDUALS 
 04-12-2023,People - Ageing Well,London Homecare Ltd,Home Care - Private Contractors Payment,1375.96,0.00,COMMERCIAL SUPPLIER 
 04-12-2023,People - Ageing Well,London Homecare Ltd,Home Care - Private Contractors Payment,1375.96,0.00,COMMERCIAL SUPPLIER 
 04-12-2023,People - Ageing Well,London Homecare Ltd,Home Care - Private Contractors Payment,1375.96,0.00,COMMERCIAL SUPPLIER 
 05-12-2023,People - Ageing Well,Inna Care Ltd,Home Care - Private Contractors Payment,1375.96,0.00,COMMERCIAL SUPPLIER 
 05-12-2023,People - Ageing Well,Inna Care Ltd,Home Care - Private Contractors Payment,1375.96,0.00,COMMERCIAL SUPPLIER 
 11-12-2023,People - Ageing Well,Outreach Support Services Ltd,Home Care - Private Contractors Payment,1375.96,0.00,COMMERCIAL SUPPLIER 
 11-12-2023,People - Ageing Well,Outreach Support Services Ltd,Home Care - Private Contractors Payment,1375.96,0.00,COMMERCIAL SUPPLIER 
 11-12-2023,People - Ageing Well,Outreach Support Services Ltd,Home Care - Private Contractors Payment,1375.96,0.00,COMMERCIAL SUPPLIER 
 28-12-2023,People - Ageing Well,Crystalize Care Services Ltd,Home Care - Private Contractors Payment,1375.96,0.00,COMMERCIAL SUPPLIER 
 28-12-2023,People - Ageing Well,Crystalize Care Services Ltd,Home Care - Private Contractors Payment,1375.96,0.00,COMMERCIAL SUPPLIER 
 12-12-2023,People - Ageing Well,John Stanleys Care Agency Ltd,Home Care - Private Contractors Payment,1382.15,0.00,COMMERCIAL SUPPLIER 
 12-12-2023,People - Ageing Well,John Stanleys Care Agency Ltd,Home Care - Private Contractors Payment,1382.88,0.00,COMMERCIAL SUPPLIER 
 08-12-2023,People - Ageing Well,Home Support Services (Havering & Essex) Ltd,Home Care - Private Contractors Payment,1383.97,0.00,COMMERCIAL SUPPLIER 
 06-12-2023,People - Ageing Well,Matrix SCM Ltd,Agency Staff,1384.58,0.00,COMMERCIAL SUPPLIER 
 13-12-2023,People - Ageing Well,Matrix SCM Ltd,Agency Staff,1384.58,0.00,COMMERCIAL SUPPLIER 
 20-12-2023,People - Ageing Well,Matrix SCM Ltd,Agency Staff,1384.58,0.00,COMMERCIAL SUPPLIER 
 28-12-2023,People - Ageing Well,Matrix SCM Ltd,Agency Staff,1384.58,0.00,COMMERCIAL SUPPLIER 
 06-12-2023,People - Ageing Well,Hospiva Care & Associates Agency Ltd_a,Home Care - Private Contractors Payment,1385.06,0.00,COMMERCIAL SUPPLIER 
 06-12-2023,People - Ageing Well,Hospiva Care & Associates Agency Ltd_a,Home Care - Private Contractors Payment,1385.06,0.00,COMMERCIAL SUPPLIER 
 07-12-2023,People - Ageing Well,Cera Care Operations Ltd,Home Care - Private Contractors Payment,1385.07,0.00,COMMERCIAL SUPPLIER 
 08-12-2023,People - Ageing Well,London Care Plc_a,Home Care - Private Contractors Payment,1385.79,0.00,COMMERCIAL SUPPLIER 
 12-12-2023,People - Ageing Well,John Stanleys Care Agency Ltd,Home Care - Private Contractors Payment,1387.95,0.00,COMMERCIAL SUPPLIER 
 08-12-2023,People - Ageing Well,London Care Plc_a,Home Care - Private Contractors Payment,1388.34,0.00,COMMERCIAL SUPPLIER 
 12-12-2023,People - Ageing Well,Morepower Ltd t/a Aqs Homecare,Home Care - Private Contractors Payment,1390.16,0.00,COMMERCIAL SUPPLIER 
 12-12-2023,People - Ageing Well,Seabrook Manor Care Home,Nursing Homes - Private Contractors Payment,1392.86,0.00,COMMERCIAL SUPPLIER 
 06-12-2023,People - Ageing Well,Hospiva Care & Associates Agency Ltd_a,Home Care - Private Contractors Payment,1395.62,0.00,COMMERCIAL SUPPLIER 
 06-12-2023,People - Ageing Well,Hospiva Care & Associates Agency Ltd_a,Home Care - Private Contractors Payment,1395.62,0.00,COMMERCIAL SUPPLIER 
 06-12-2023,People - Ageing Well,Matrix SCM Ltd,Agency Staff,1395.73,0.00,COMMERCIAL SUPPLIER 
 13-12-2023,People - Ageing Well,Matrix SCM Ltd,Agency Staff,1395.73,0.00,COMMERCIAL SUPPLIER 
 20-12-2023,People - Ageing Well,Matrix SCM Ltd,Agency Staff,1395.73,0.00,COMMERCIAL SUPPLIER 
 12-12-2023,People - Ageing Well,John Stanleys Care Agency Ltd,Home Care - Private Contractors Payment,1397.44,0.00,COMMERCIAL SUPPLIER 
 26-12-2023,People - Ageing Well,Personal Information - Redacted,Home Care - Private Contractors Payment,1397.76,0.00,INDIVIDUALS 
 03-12-2023,People - Ageing Well,Personal Information - Redacted,Home Care - Private Contractors Payment,1397.81,0.00,INDIVIDUALS 
 07-12-2023,People - Ageing Well,Cera Care Operations Ltd,Home Care - Private Contractors Payment,1398.53,0.00,COMMERCIAL SUPPLIER 
 12-12-2023,People - Ageing Well,Independant Community Support Ltd T/A Heaton Lodge,Supported Other Accommodation - Private Contractors Payment,1399.68,0.00,COMMERCIAL SUPPLIER 
 12-12-2023,People - Ageing Well,Ranc Care Homes Ltd - Romford Care Centre,Respite Care - Private Contractors Payment,1400.00,0.00,COMMERCIAL SUPPLIER 
 06-12-2023,People - Ageing Well,Hospiva Care & Associates Agency Ltd_a,Home Care - Private Contractors Payment,1401.08,0.00,COMMERCIAL SUPPLIER 
 06-12-2023,People - Ageing Well,Hospiva Care & Associates Agency Ltd_a,Home Care - Private Contractors Payment,1401.08,0.00,COMMERCIAL SUPPLIER 
 12-12-2023,People - Ageing Well,Home Sweet Home Care Ltd,Home Care - Private Contractors Payment,1402.90,0.00,COMMERCIAL SUPPLIER 
 12-12-2023,People - Ageing Well,Ashgate House Ltd_a,Residential Placements - Private Contractors Payment,1408.12,0.00,COMMERCIAL SUPPLIER 
 11-12-2023,People - Ageing Well,Anytime Care 2020_a,Home Care - Private Contractors Payment,1409.82,0.00,COMMERCIAL SUPPLIER 
 13-12-2023,People - Ageing Well,Westminster Homecare Ltd_a,Home Care - Private Contractors Payment,1410.18,0.00,COMMERCIAL SUPPLIER 
 13-12-2023,People - Ageing Well,Homestead Care Service,Home Care - Private Contractors Payment,1410.89,0.00,COMMERCIAL SUPPLIER 
 07-12-2023,People - Ageing Well,Cera Care Operations Ltd,Home Care - Private Contractors Payment,1414.18,0.00,COMMERCIAL SUPPLIER 
 13-12-2023,People - Ageing Well,Homestead Care Service,Home Care - Private Contractors Payment,1416.37,0.00,COMMERCIAL SUPPLIER 
 13-12-2023,People - Ageing Well,Matrix SCM Ltd,Agency Staff,1416.80,0.00,COMMERCIAL SUPPLIER 
 04-12-2023,People - Ageing Well,London Homecare Ltd,Home Care - Private Contractors Payment,1419.63,0.00,COMMERCIAL SUPPLIER 
 13-12-2023,People - Ageing Well,Matrix SCM Ltd,Agency Staff,1420.90,0.00,COMMERCIAL SUPPLIER 
 20-12-2023,People - Ageing Well,Matrix SCM Ltd,Agency Staff,1420.90,0.00,COMMERCIAL SUPPLIER 
 28-12-2023,People - Ageing Well,Matrix SCM Ltd,Agency Staff,1420.90,0.00,COMMERCIAL SUPPLIER 
 12-12-2023,People - Ageing Well,Home Sweet Home Care Ltd,Home Care - Private Contractors Payment,1421.83,0.00,COMMERCIAL SUPPLIER 
 13-12-2023,People - Ageing Well,Homestead Care Service,Home Care - Private Contractors Payment,1422.56,0.00,COMMERCIAL SUPPLIER 
 12-12-2023,People - Ageing Well,Lukka Care Homes Ltd - Ravenscourt,Nursing Homes - Private Contractors Payment,1428.57,0.00,COMMERCIAL SUPPLIER 
 08-12-2023,People - Ageing Well,Lodge Group Care UK Ltd,Home Care - Private Contractors Payment,1430.57,0.00,COMMERCIAL SUPPLIER 
 20-12-2023,People - Ageing Well,Matrix SCM Ltd,Agency Staff,1437.22,0.00,COMMERCIAL SUPPLIER 
 07-12-2023,People - Ageing Well,Cera Care Operations Ltd,Home Care - Private Contractors Payment,1438.57,0.00,COMMERCIAL SUPPLIER 
 12-12-2023,People - Ageing Well,Morepower Ltd t/a Aqs Homecare,Home Care - Private Contractors Payment,1438.93,0.00,COMMERCIAL SUPPLIER 
 12-12-2023,People - Ageing Well,Bettertogether Limited,Supported Other Accommodation - Private Contractors Payment,1440.00,0.00,NON COMMERCIAL SUPPLIER 
 08-12-2023,People - Ageing Well,Home Support Services (Havering & Essex) Ltd,Home Care - Private Contractors Payment,1440.03,0.00,COMMERCIAL SUPPLIER 
 12-12-2023,People - Ageing Well,John Stanleys Care Agency Ltd,Home Care - Private Contractors Payment,1447.31,0.00,COMMERCIAL SUPPLIER 
 12-12-2023,People - Ageing Well,Home Sweet Home Care Ltd,Home Care - Private Contractors Payment,1448.03,0.00,COMMERCIAL SUPPLIER 
 12-12-2023,People - Ageing Well,Livingstone Health Care Services,Home Care - Private Contractors Payment,1448.76,0.00,COMMERCIAL SUPPLIER 
 12-12-2023,People - Ageing Well,Shalom Community Support Services,Supported Other Accommodation - Private Contractors Payment,1451.52,0.00,COMMERCIAL SUPPLIER 
 11-12-2023,People - Ageing Well,Anytime Care 2020_a,Home Care - Private Contractors Payment,1454.59,0.00,COMMERCIAL SUPPLIER 
 11-12-2023,People - Ageing Well,Anytime Care 2020_a,Home Care - Private Contractors Payment,1455.32,0.00,COMMERCIAL SUPPLIER 
 08-12-2023,People - Ageing Well,Lodge Group Care UK Ltd,Home Care - Private Contractors Payment,1461.87,0.00,COMMERCIAL SUPPLIER 
 08-12-2023,People - Ageing Well,Lodge Group Care UK Ltd,Home Care - Private Contractors Payment,1462.60,0.00,COMMERCIAL SUPPLIER 
 08-12-2023,People - Ageing Well,Home Support Services (Havering & Essex) Ltd,Home Care - Private Contractors Payment,1464.78,0.00,COMMERCIAL SUPPLIER 
 13-12-2023,People - Ageing Well,Quality Healthcare Solutions Ltd t/a Kare Plus Romford,Home Care - Private Contractors Payment,1469.88,0.00,COMMERCIAL SUPPLIER 
 12-12-2023,People - Ageing Well,Black Swan International Ltd - Drummonds,Residential Placements - Private Contractors Payment,1470.00,0.00,COMMERCIAL SUPPLIER 
 12-12-2023,People - Ageing Well,Home Sweet Home Care Ltd,Home Care - Private Contractors Payment,1478.98,0.00,COMMERCIAL SUPPLIER 
 12-12-2023,People - Ageing Well,Prior Care Ltd_a,Home Care - Private Contractors Payment,1481.16,0.00,COMMERCIAL SUPPLIER 
 06-12-2023,People - Ageing Well,Matrix SCM Ltd,Agency Staff,1482.64,0.00,COMMERCIAL SUPPLIER 
 13-12-2023,People - Ageing Well,Matrix SCM Ltd,Agency Staff,1482.64,0.00,COMMERCIAL SUPPLIER 
 12-12-2023,People - Ageing Well,Havering Care Homes Ltd t/a Upminster Nursing Home,Nursing Homes - Private Contractors Payment,1484.67,0.00,COMMERCIAL SUPPLIER 
 03-12-2023,People - Ageing Well,Eastway Care Ltd_a,Daycare - Private Contractors Payment,1488.00,0.00,COMMERCIAL SUPPLIER 
 13-12-2023,People - Ageing Well,Quality Healthcare Solutions Ltd t/a Kare Plus Romford,Home Care - Private Contractors Payment,1488.08,0.00,COMMERCIAL SUPPLIER 
 08-12-2023,People - Ageing Well,Home Support Services (Havering & Essex) Ltd,Home Care - Private Contractors Payment,1504.83,0.00,COMMERCIAL SUPPLIER 
 12-12-2023,People - Ageing Well,BeTo Solutions Ltd,Supported Other Accommodation - Private Contractors Payment,1516.32,0.00,COMMERCIAL SUPPLIER 
 08-12-2023,People - Ageing Well,Home Support Services (Havering & Essex) Ltd,Home Care - Private Contractors Payment,1520.48,0.00,COMMERCIAL SUPPLIER 
 07-12-2023,People - Ageing Well,Cera Care Operations Ltd,Home Care - Private Contractors Payment,1527.02,0.00,COMMERCIAL SUPPLIER 
 03-12-2023,People - Ageing Well,Bloomscare Ltd,Home Care - Private Contractors Payment,1528.83,0.00,COMMERCIAL SUPPLIER 
 03-12-2023,People - Ageing Well,Bloomscare Ltd,Home Care - Private Contractors Payment,1528.83,0.00,COMMERCIAL SUPPLIER 
 28-12-2023,People - Ageing Well,Crystalize Care Services Ltd,Home Care - Private Contractors Payment,1528.83,0.00,COMMERCIAL SUPPLIER 
 03-12-2023,People - Ageing Well,Personal Information - Redacted,Home Care - Private Contractors Payment,1528.84,0.00,INDIVIDUALS 
 04-12-2023,People - Ageing Well,London Homecare Ltd,Home Care - Private Contractors Payment,1528.84,0.00,COMMERCIAL SUPPLIER 
 04-12-2023,People - Ageing Well,London Homecare Ltd,Home Care - Private Contractors Payment,1528.84,0.00,COMMERCIAL SUPPLIER 
 04-12-2023,People - Ageing Well,London Homecare Ltd,Home Care - Private Contractors Payment,1528.84,0.00,COMMERCIAL SUPPLIER 
 06-12-2023,People - Ageing Well,Premier Carewaiting Ltd,Home Care - Private Contractors Payment,1528.84,0.00,COMMERCIAL SUPPLIER 
 06-12-2023,People - Ageing Well,Hospiva Care & Associates Agency Ltd_a,Home Care - Private Contractors Payment,1530.66,0.00,COMMERCIAL SUPPLIER 
 06-12-2023,People - Ageing Well,Hospiva Care & Associates Agency Ltd_a,Home Care - Private Contractors Payment,1530.66,0.00,COMMERCIAL SUPPLIER 
 13-12-2023,People - Ageing Well,Homestead Care Service,Home Care - Private Contractors Payment,1536.12,0.00,COMMERCIAL SUPPLIER 
 06-12-2023,People - Ageing Well,Hospiva Care & Associates Agency Ltd_a,Home Care - Private Contractors Payment,1540.13,0.00,COMMERCIAL SUPPLIER 
 06-12-2023,People - Ageing Well,Hospiva Care & Associates Agency Ltd_a,Home Care - Private Contractors Payment,1540.13,0.00,COMMERCIAL SUPPLIER 
 12-12-2023,People - Ageing Well,Lodge Lane Care Home Limited,Respite Care - Private Contractors Payment,1542.86,0.00,COMMERCIAL SUPPLIER 
 11-12-2023,People - Ageing Well,Mayflower Travel,Client Transport,1548.00,0.00,COMMERCIAL SUPPLIER 
 03-12-2023,People - Ageing Well,Personal Information - Redacted,Home Care - Private Contractors Payment,1550.69,0.00,INDIVIDUALS 
 03-12-2023,People - Ageing Well,Personal Information - Redacted,Home Care - Private Contractors Payment,1550.69,0.00,INDIVIDUALS 
 04-12-2023,People - Ageing Well,London Homecare Ltd,Home Care - Private Contractors Payment,1550.69,0.00,COMMERCIAL SUPPLIER 
 12-12-2023,People - Ageing Well,London Borough of Barking & Dagenham_a,Daycare - Private Contractors Payment,1552.00,0.00,LOCAL AUTHORITY SERVICES 
 12-12-2023,People - Ageing Well,London Borough of Barking & Dagenham_a,Daycare - Private Contractors Payment,1552.00,0.00,LOCAL AUTHORITY SERVICES 
 08-12-2023,People - Ageing Well,Home Support Services (Havering & Essex) Ltd,Home Care - Private Contractors Payment,1557.61,0.00,COMMERCIAL SUPPLIER 
 12-12-2023,People - Ageing Well,Stable Family Home Trust,Supported Other Accommodation - Private Contractors Payment,1558.08,0.00,COMMERCIAL SUPPLIER 
 13-12-2023,People - Ageing Well,Westminster Homecare Ltd_a,Home Care - Private Contractors Payment,1559.42,0.00,COMMERCIAL SUPPLIER 
 12-12-2023,People - Ageing Well,Outlook Care - 86 Veronica Close,Residential Placements - Private Contractors Payment,1565.56,0.00,COMMERCIAL SUPPLIER 
 13-12-2023,People - Ageing Well,Homestead Care Service,Home Care - Private Contractors Payment,1568.52,0.00,COMMERCIAL SUPPLIER 
 08-12-2023,People - Ageing Well,London Care Plc_a,Home Care - Private Contractors Payment,1570.34,0.00,COMMERCIAL SUPPLIER 
 13-12-2023,People - Ageing Well,Westminster Homecare Ltd_a,Home Care - Private Contractors Payment,1571.07,0.00,COMMERCIAL SUPPLIER 
 28-12-2023,People - Ageing Well,Crystalize Care Services Ltd,Home Care - Private Contractors Payment,1572.48,0.00,COMMERCIAL SUPPLIER 
 06-12-2023,People - Ageing Well,Premier Carewaiting Ltd,Home Care - Private Contractors Payment,1572.52,0.00,COMMERCIAL SUPPLIER 
 28-12-2023,People - Ageing Well,Crystalize Care Services Ltd,Home Care - Private Contractors Payment,1572.52,0.00,COMMERCIAL SUPPLIER 
 06-12-2023,People - Ageing Well,Premier Carewaiting Ltd,Home Care - Private Contractors Payment,1572.53,0.00,COMMERCIAL SUPPLIER 
 13-12-2023,People - Ageing Well,Westminster Homecare Ltd_a,Home Care - Private Contractors Payment,1580.88,0.00,COMMERCIAL SUPPLIER 
 12-12-2023,People - Ageing Well,John Stanleys Care Agency Ltd,Home Care - Private Contractors Payment,1580.90,0.00,COMMERCIAL SUPPLIER 
 11-12-2023,People - Ageing Well,Prestige Care & Support Ltd,Home Care - Private Contractors Payment,1594.00,0.00,COMMERCIAL SUPPLIER 
 12-12-2023,People - Ageing Well,Blueboard Care Services Ltd,Supported Other Accommodation - Private Contractors Payment,1596.68,0.00,COMMERCIAL SUPPLIER 
 12-12-2023,People - Ageing Well,Blueboard Care Services Ltd,Supported Other Accommodation - Private Contractors Payment,1596.68,0.00,COMMERCIAL SUPPLIER 
 08-12-2023,People - Ageing Well,London Care Plc_a,Home Care - Private Contractors Payment,1596.91,0.00,COMMERCIAL SUPPLIER 
 12-12-2023,People - Ageing Well,The Cedars,Supported Other Accommodation - Private Contractors Payment,1597.56,0.00,COMMERCIAL SUPPLIER 
 11-12-2023,People - Ageing Well,Mayflower Travel,Client Transport,1600.00,0.00,COMMERCIAL SUPPLIER 
 12-12-2023,People - Ageing Well,Oaks Residential Home,Residential Placements - Private Contractors Payment,1600.00,0.00,COMMERCIAL SUPPLIER 
 12-12-2023,People - Ageing Well,Bettertogether Limited,Supported Other Accommodation - Private Contractors Payment,1612.00,0.00,NON COMMERCIAL SUPPLIER 
 12-12-2023,People - Ageing Well,Bettertogether Limited,Supported Other Accommodation - Private Contractors Payment,1612.00,0.00,NON COMMERCIAL SUPPLIER 
 11-12-2023,People - Ageing Well,Prestige Care & Support Ltd,Home Care - Private Contractors Payment,1614.40,0.00,COMMERCIAL SUPPLIER 
 12-12-2023,People - Ageing Well,Ebony Health Care Services Limited,Supported Other Accommodation - Private Contractors Payment,1615.92,0.00,COMMERCIAL SUPPLIER 
 05-12-2023,People - Ageing Well,Inna Care Ltd,Home Care - Private Contractors Payment,1616.21,0.00,COMMERCIAL SUPPLIER 
 05-12-2023,People - Ageing Well,Inna Care Ltd,Home Care - Private Contractors Payment,1616.21,0.00,COMMERCIAL SUPPLIER 
 12-12-2023,People - Ageing Well,Bluebell & Hawthorn,Residential Placements - Private Contractors Payment,1619.52,0.00,COMMERCIAL SUPPLIER 
 12-12-2023,People - Ageing Well,Bluebell & Hawthorn,Residential Placements - Private Contractors Payment,1619.52,0.00,COMMERCIAL SUPPLIER 
 12-12-2023,People - Ageing Well,Bluebell & Hawthorn,Residential Placements - Private Contractors Payment,1619.52,0.00,COMMERCIAL SUPPLIER 
 12-12-2023,People - Ageing Well,The Riverside Group,Supported Other Accommodation - Private Contractors Payment,1623.12,0.00, 
 12-12-2023,People - Ageing Well,Heath Care Services Ltd ,Supported Other Accommodation - Private Contractors Payment,1632.96,0.00,COMMERCIAL SUPPLIER 
 12-12-2023,People - Ageing Well,Havering Care Homes Ltd t/a Upminster Nursing Home,Nursing Homes - Private Contractors Payment,1633.14,0.00,COMMERCIAL SUPPLIER 
 04-12-2023,People - Ageing Well,Certified Healthcare Solutions Ltd t/a In Home Care Havering,Home Care - Private Contractors Payment,1638.04,0.00,COMMERCIAL SUPPLIER 
 12-12-2023,People - Ageing Well,The Cedars,Supported Other Accommodation - Private Contractors Payment,1653.48,0.00,COMMERCIAL SUPPLIER 
 08-12-2023,People - Ageing Well,Lodge Group Care UK Ltd,Home Care - Private Contractors Payment,1657.68,0.00,COMMERCIAL SUPPLIER 
 08-12-2023,People - Ageing Well,Home Support Services (Havering & Essex) Ltd,Home Care - Private Contractors Payment,1659.90,0.00,COMMERCIAL SUPPLIER 
 06-12-2023,People - Ageing Well,Matrix SCM Ltd,Agency Staff,1669.48,0.00,COMMERCIAL SUPPLIER 
 12-12-2023,People - Ageing Well,Langley House,Respite Care - Private Contractors Payment,1671.43,0.00,COMMERCIAL SUPPLIER 
 06-12-2023,People - Ageing Well,Hospiva Care & Associates Agency Ltd_a,Home Care - Private Contractors Payment,1678.81,0.00,COMMERCIAL SUPPLIER 
 12-12-2023,People - Ageing Well,Outlook Care - 76 Neave Crescent,Supported Other Accommodation - Private Contractors Payment,1686.96,0.00,COMMERCIAL SUPPLIER 
 12-12-2023,People - Ageing Well,Outlook Care - 76 Neave Crescent,Supported Other Accommodation - Private Contractors Payment,1686.96,0.00,COMMERCIAL SUPPLIER 
 12-12-2023,People - Ageing Well,Outlook Care - 76 Neave Crescent,Supported Other Accommodation - Private Contractors Payment,1686.96,0.00,COMMERCIAL SUPPLIER 
 12-12-2023,People - Ageing Well,Outlook Care - 76 Neave Crescent,Supported Other Accommodation - Private Contractors Payment,1686.96,0.00,COMMERCIAL SUPPLIER 
 12-12-2023,People - Ageing Well,Outlook Care - 76 Neave Crescent,Supported Other Accommodation - Private Contractors Payment,1686.96,0.00,COMMERCIAL SUPPLIER 
 12-12-2023,People - Ageing Well,Outlook Care - 76 Neave Crescent,Supported Other Accommodation - Private Contractors Payment,1686.96,0.00,COMMERCIAL SUPPLIER 
 12-12-2023,People - Ageing Well,Outlook Care - 76 Neave Crescent,Supported Other Accommodation - Private Contractors Payment,1686.96,0.00,COMMERCIAL SUPPLIER 
 12-12-2023,People - Ageing Well,Outlook Care - 76 Neave Crescent,Supported Other Accommodation - Private Contractors Payment,1691.92,0.00,COMMERCIAL SUPPLIER 
 12-12-2023,People - Ageing Well,Outlook Care - 76 Neave Crescent,Supported Other Accommodation - Private Contractors Payment,1691.92,0.00,COMMERCIAL SUPPLIER 
 12-12-2023,People - Ageing Well,Chiltern Invadex (UK) Ltd,Purchase - Equipment Furniture And Materials,1693.00,0.00,NON COMMERCIAL SUPPLIER 
 12-12-2023,People - Ageing Well,Outlook Care - 4 Peel Way,Supported Other Accommodation - Private Contractors Payment,1696.48,0.00,COMMERCIAL SUPPLIER 
 07-12-2023,People - Ageing Well,Cera Care Operations Ltd,Home Care - Private Contractors Payment,1699.20,0.00,COMMERCIAL SUPPLIER 
 12-12-2023,People - Ageing Well,Highfield Care Homes Ltd t/a Romford Grange Care Home,Respite Care - Private Contractors Payment,1704.00,0.00,COMMERCIAL SUPPLIER 
 12-12-2023,People - Ageing Well,Pathways Care and Support Services Ltd,Supported Other Accommodation - Private Contractors Payment,1708.24,0.00,COMMERCIAL SUPPLIER 
 12-12-2023,People - Ageing Well,Vibrance ,Residential Placements - Private Contractors Payment,1720.76,0.00,COMMERCIAL SUPPLIER 
 12-12-2023,People - Ageing Well,Outlook Care - 76 Neave Crescent,Supported Other Accommodation - Private Contractors Payment,1725.76,0.00,COMMERCIAL SUPPLIER 
 12-12-2023,People - Ageing Well,Outlook Care - 76 Neave Crescent,Supported Other Accommodation - Private Contractors Payment,1725.76,0.00,COMMERCIAL SUPPLIER 
 12-12-2023,People - Ageing Well,Outlook Care - 76 Neave Crescent,Supported Other Accommodation - Private Contractors Payment,1725.76,0.00,COMMERCIAL SUPPLIER 
 12-12-2023,People - Ageing Well,Outlook Care - 76 Neave Crescent,Supported Other Accommodation - Private Contractors Payment,1725.76,0.00,COMMERCIAL SUPPLIER 
 12-12-2023,People - Ageing Well,Morepower Ltd t/a Aqs Homecare,Home Care - Private Contractors Payment,1725.77,0.00,COMMERCIAL SUPPLIER 
 03-12-2023,People - Ageing Well,Vibrance Outreach,Daycare - Private Contractors Payment,1728.00,0.00,COMMERCIAL SUPPLIER 
 12-12-2023,People - Ageing Well,Outreach Support Services Ltd,Supported Other Accommodation - Private Contractors Payment,1728.00,0.00,COMMERCIAL SUPPLIER 
 12-12-2023,People - Ageing Well,Ashking House Ltd,Residential Placements - Private Contractors Payment,1746.20,0.00,COMMERCIAL SUPPLIER 
 03-12-2023,People - Ageing Well,Personal Information - Redacted,Home Care - Private Contractors Payment,1747.24,0.00,INDIVIDUALS 
 13-12-2023,People - Ageing Well,Care-Away Ltd T/A Care Support,Home Care - Private Contractors Payment,1750.16,0.00,COMMERCIAL SUPPLIER 
 08-12-2023,People - Ageing Well,Lodge Group Care UK Ltd,Home Care - Private Contractors Payment,1752.71,0.00,COMMERCIAL SUPPLIER 
 13-12-2023,People - Ageing Well,Homestead Care Service,Home Care - Private Contractors Payment,1754.16,0.00,COMMERCIAL SUPPLIER 
 12-12-2023,People - Ageing Well,John Stanleys Care Agency Ltd,Home Care - Private Contractors Payment,1757.80,0.00,COMMERCIAL SUPPLIER 
 12-12-2023,People - Ageing Well,Langley House,Respite Care - Private Contractors Payment,1800.00,0.00,COMMERCIAL SUPPLIER 
 12-12-2023,People - Ageing Well,Oaks Residential Home,Respite Care - Private Contractors Payment,1800.00,0.00,COMMERCIAL SUPPLIER 
 12-12-2023,People - Ageing Well,Ranc Care Homes Ltd - Romford Care Centre,Residential Placements - Private Contractors Payment,1800.00,0.00,COMMERCIAL SUPPLIER 
 13-12-2023,People - Ageing Well,Care-Away Ltd T/A Care Support,Home Care - Private Contractors Payment,1801.25,0.00,COMMERCIAL SUPPLIER 
 08-12-2023,People - Ageing Well,Home Support Services (Havering & Essex) Ltd,Home Care - Private Contractors Payment,1804.78,0.00,COMMERCIAL SUPPLIER 
 08-12-2023,People - Ageing Well,Home Support Services (Havering & Essex) Ltd,Home Care - Private Contractors Payment,1812.05,0.00,COMMERCIAL SUPPLIER 
 12-12-2023,People - Ageing Well,Outlook Care - 76 Neave Crescent,Supported Other Accommodation - Private Contractors Payment,1812.16,0.00,COMMERCIAL SUPPLIER 
 11-12-2023,People - Ageing Well,Outreach Support Services Ltd,Home Care - Private Contractors Payment,1812.76,0.00,COMMERCIAL SUPPLIER 
 12-12-2023,People - Ageing Well,Protecthand Care Ltd ,Supported Other Accommodation - Private Contractors Payment,1814.40,0.00,COMMERCIAL SUPPLIER 
 12-12-2023,People - Ageing Well,Morepower Ltd t/a Aqs Homecare,Home Care - Private Contractors Payment,1822.93,0.00,COMMERCIAL SUPPLIER 
 12-12-2023,People - Ageing Well,Bettertogether Limited,Supported Other Accommodation - Private Contractors Payment,1832.00,0.00,NON COMMERCIAL SUPPLIER 
 12-12-2023,People - Ageing Well,Bettertogether Limited,Supported Other Accommodation - Private Contractors Payment,1832.00,0.00,NON COMMERCIAL SUPPLIER 
 12-12-2023,People - Ageing Well,Bettertogether Limited,Supported Other Accommodation - Private Contractors Payment,1832.00,0.00,NON COMMERCIAL SUPPLIER 
 12-12-2023,People - Ageing Well,Bettertogether Limited,Supported Other Accommodation - Private Contractors Payment,1832.00,0.00,NON COMMERCIAL SUPPLIER 
 12-12-2023,People - Ageing Well,Bettertogether Limited,Supported Other Accommodation - Private Contractors Payment,1832.00,0.00,NON COMMERCIAL SUPPLIER 
 12-12-2023,People - Ageing Well,Bettertogether Limited,Supported Other Accommodation - Private Contractors Payment,1832.00,0.00,NON COMMERCIAL SUPPLIER 
 12-12-2023,People - Ageing Well,Bettertogether Limited,Supported Other Accommodation - Private Contractors Payment,1832.00,0.00,NON COMMERCIAL SUPPLIER 
 11-12-2023,People - Ageing Well,Care-Away Ltd T/A Care Support,Home Care - Private Contractors Payment,1834.00,0.00,COMMERCIAL SUPPLIER 
 12-12-2023,People - Ageing Well,Care-Away Ltd T/A Care Support,Home Care - Private Contractors Payment,1834.00,0.00,COMMERCIAL SUPPLIER 
 06-12-2023,People - Ageing Well,Premier Carewaiting Ltd,Home Care - Private Contractors Payment,1834.60,0.00,COMMERCIAL SUPPLIER 
 08-12-2023,People - Ageing Well,Home Support Services (Havering & Essex) Ltd,Home Care - Private Contractors Payment,1834.63,0.00,COMMERCIAL SUPPLIER 
 12-12-2023,People - Ageing Well,Affinia Healthcare Ltd_a,Supported Other Accommodation - Private Contractors Payment,1840.52,0.00,COMMERCIAL SUPPLIER 
 08-12-2023,People - Ageing Well,Home Support Services (Havering & Essex) Ltd,Home Care - Private Contractors Payment,1841.18,0.00,COMMERCIAL SUPPLIER 
 08-12-2023,People - Ageing Well,Home Support Services (Havering & Essex) Ltd,Home Care - Private Contractors Payment,1845.91,0.00,COMMERCIAL SUPPLIER 
 08-12-2023,People - Ageing Well,Home Support Services (Havering & Essex) Ltd,Home Care - Private Contractors Payment,1855.01,0.00,COMMERCIAL SUPPLIER 
 12-12-2023,People - Ageing Well,Outlook Care - 4 Peel Way,Supported Other Accommodation - Private Contractors Payment,1857.40,0.00,COMMERCIAL SUPPLIER 
 12-12-2023,People - Ageing Well,Outlook Care - 76 Neave Crescent,Supported Other Accommodation - Private Contractors Payment,1857.48,0.00,COMMERCIAL SUPPLIER 
 12-12-2023,People - Ageing Well,Outlook Care - 76 Neave Crescent,Supported Other Accommodation - Private Contractors Payment,1857.48,0.00,COMMERCIAL SUPPLIER 
 12-12-2023,People - Ageing Well,2 Peel Way - Outlook Care,Supported Other Accommodation - Private Contractors Payment,1858.20,0.00,NON COMMERCIAL SUPPLIER 
 12-12-2023,People - Ageing Well,Outlook Care - 76 Neave Crescent,Supported Other Accommodation - Private Contractors Payment,1858.20,0.00,COMMERCIAL SUPPLIER 
 08-12-2023,People - Ageing Well,Home Support Services (Havering & Essex) Ltd,Home Care - Private Contractors Payment,1858.29,0.00,COMMERCIAL SUPPLIER 
 12-12-2023,People - Ageing Well,2 Peel Way - Outlook Care,Supported Other Accommodation - Private Contractors Payment,1858.68,0.00,NON COMMERCIAL SUPPLIER 
 11-12-2023,People - Ageing Well,Outreach Support Services Ltd,Home Care - Private Contractors Payment,1863.99,0.00,COMMERCIAL SUPPLIER 
 11-12-2023,People - Ageing Well,Outreach Support Services Ltd,Home Care - Private Contractors Payment,1863.99,0.00,COMMERCIAL SUPPLIER 
 08-12-2023,People - Ageing Well,Lodge Group Care UK Ltd,Home Care - Private Contractors Payment,1875.01,0.00,COMMERCIAL SUPPLIER 
 15-12-2023,People - Ageing Well,Fountain Based Ltd,Home Care - Private Contractors Payment,1878.25,0.00,COMMERCIAL SUPPLIER 
 04-12-2023,People - Ageing Well,IJB Healthcare Ltd,Home Care - Private Contractors Payment,1878.28,0.00,COMMERCIAL SUPPLIER 
 12-12-2023,People - Ageing Well,Optimal Care Services Ltd,Supported Other Accommodation - Private Contractors Payment,1879.20,0.00,COMMERCIAL SUPPLIER 
 06-12-2023,People - Ageing Well,Hospiva Care & Associates Agency Ltd_a,Home Care - Private Contractors Payment,1884.47,0.00,COMMERCIAL SUPPLIER 
 06-12-2023,People - Ageing Well,Hospiva Care & Associates Agency Ltd_a,Home Care - Private Contractors Payment,1884.47,0.00,COMMERCIAL SUPPLIER 
 12-12-2023,People - Ageing Well,Lodge Lane Care Home Limited,Respite Care - Private Contractors Payment,1885.71,0.00,COMMERCIAL SUPPLIER 
 12-12-2023,People - Ageing Well,Affinia Healthcare Ltd_a,Supported Other Accommodation - Private Contractors Payment,1891.20,0.00,COMMERCIAL SUPPLIER 
 12-12-2023,People - Ageing Well,Affinia Healthcare Ltd_a,Supported Other Accommodation - Private Contractors Payment,1892.68,0.00,COMMERCIAL SUPPLIER 
 08-12-2023,People - Ageing Well,Home Support Services (Havering & Essex) Ltd,Home Care - Private Contractors Payment,1896.50,0.00,COMMERCIAL SUPPLIER 
 12-12-2023,People - Ageing Well,Lodge Lane Care Home Limited,Respite Care - Private Contractors Payment,1900.00,0.00,COMMERCIAL SUPPLIER 
 12-12-2023,People - Ageing Well,Abbottswood Lodge,Residential Placements - Private Contractors Payment,1904.88,0.00,COMMERCIAL SUPPLIER 
 12-12-2023,People - Ageing Well,DMP Healthcare (Heatherbrook) Ltd,Nursing Homes - Private Contractors Payment,1920.00,0.00,NON COMMERCIAL SUPPLIER 
 11-12-2023,People - Ageing Well,Anytime Care 2020_a,Home Care - Private Contractors Payment,1931.06,0.00,COMMERCIAL SUPPLIER 
 12-12-2023,People - Ageing Well,Home Sweet Home Care Ltd,Home Care - Private Contractors Payment,1932.51,0.00,COMMERCIAL SUPPLIER 
 12-12-2023,People - Ageing Well,Care Square Ltd.,Supported Other Accommodation - Private Contractors Payment,1938.00,0.00,COMMERCIAL SUPPLIER 
 08-12-2023,People - Ageing Well,Lodge Group Care UK Ltd,Home Care - Private Contractors Payment,1938.71,0.00,COMMERCIAL SUPPLIER 
 12-12-2023,People - Ageing Well,Outlook Care - 4 Peel Way,Supported Other Accommodation - Private Contractors Payment,1939.76,0.00,COMMERCIAL SUPPLIER 
 12-12-2023,People - Ageing Well,Outlook Care - 4 Peel Way,Supported Other Accommodation - Private Contractors Payment,1939.76,0.00,COMMERCIAL SUPPLIER 
 12-12-2023,People - Ageing Well,Kadmiel Projects Ltd,Supported Other Accommodation - Private Contractors Payment,1947.64,0.00,COMMERCIAL SUPPLIER 
 05-12-2023,People - Ageing Well,Abbey Care Complex ,Nursing Homes - Private Contractors Payment,1950.00,0.00,COMMERCIAL SUPPLIER 
 13-12-2023,People - Ageing Well,Quality Healthcare Solutions Ltd t/a Kare Plus Romford,Home Care - Private Contractors Payment,1954.75,0.00,COMMERCIAL SUPPLIER 
 12-12-2023,People - Ageing Well,Kadmiel Projects Ltd,Supported Other Accommodation - Private Contractors Payment,1957.92,0.00,COMMERCIAL SUPPLIER 
 12-12-2023,People - Ageing Well,Two Trees Caring Home,Residential Placements - Private Contractors Payment,1960.00,0.00,COMMERCIAL SUPPLIER 
 12-12-2023,People - Ageing Well,Affinia Healthcare Ltd_a,Supported Other Accommodation - Private Contractors Payment,1963.24,0.00,COMMERCIAL SUPPLIER 
 11-12-2023,People - Ageing Well,Prestige Care & Support Ltd,Home Care - Private Contractors Payment,1965.67,0.00,COMMERCIAL SUPPLIER 
 12-12-2023,People - Ageing Well,Forward Community Care Ltd,Residential Placements - Private Contractors Payment,1976.40,0.00,COMMERCIAL SUPPLIER 
 11-12-2023,People - Ageing Well,Prestige Care & Support Ltd,Home Care - Private Contractors Payment,1982.78,0.00,COMMERCIAL SUPPLIER 
 03-12-2023,People - Ageing Well,Personal Information - Redacted,Home Care - Private Contractors Payment,1987.48,0.00,INDIVIDUALS 
 09-12-2023,People - Ageing Well,Pleasant Home Healthcare Ltd,Home Care - Private Contractors Payment,1987.48,0.00,COMMERCIAL SUPPLIER 
 12-12-2023,People - Ageing Well,Heath Care Services Ltd ,Supported Other Accommodation - Private Contractors Payment,2016.00,0.00,COMMERCIAL SUPPLIER 
 12-12-2023,People - Ageing Well,Home Sweet Home Care Ltd,Home Care - Private Contractors Payment,2019.51,0.00,COMMERCIAL SUPPLIER 
 12-12-2023,People - Ageing Well,Maison Moti Ltd,Supported Other Accommodation - Private Contractors Payment,2041.20,0.00,COMMERCIAL SUPPLIER 
 12-12-2023,People - Ageing Well,Black Swan International Ltd - Drummonds,Residential Placements - Private Contractors Payment,2044.00,0.00,COMMERCIAL SUPPLIER 
 12-12-2023,People - Ageing Well,Affinia Healthcare Ltd_a,Supported Other Accommodation - Private Contractors Payment,2053.12,0.00,COMMERCIAL SUPPLIER 
 12-12-2023,People - Ageing Well,Bettertogether Limited,Supported Other Accommodation - Private Contractors Payment,2056.00,0.00,NON COMMERCIAL SUPPLIER 
 12-12-2023,People - Ageing Well,Bettertogether Limited,Supported Other Accommodation - Private Contractors Payment,2056.00,0.00,NON COMMERCIAL SUPPLIER 
 12-12-2023,People - Ageing Well,Bettertogether Limited,Supported Other Accommodation - Private Contractors Payment,2056.00,0.00,NON COMMERCIAL SUPPLIER 
 12-12-2023,People - Ageing Well,S & S Support Service Ltd   ,Supported Other Accommodation - Private Contractors Payment,2056.32,0.00,COMMERCIAL SUPPLIER 
 12-12-2023,People - Ageing Well,Lodge Lane Care Home Limited,Respite Care - Private Contractors Payment,2057.14,0.00,COMMERCIAL SUPPLIER 
 12-12-2023,People - Ageing Well,Sahara Care Ltd,Residential Placements - Private Contractors Payment,2072.00,0.00,COMMERCIAL SUPPLIER 
 12-12-2023,People - Ageing Well,Sahara Care Ltd,Residential Placements - Private Contractors Payment,2072.00,0.00,COMMERCIAL SUPPLIER 
 08-12-2023,People - Ageing Well,Lodge Group Care UK Ltd,Home Care - Private Contractors Payment,2072.30,0.00,COMMERCIAL SUPPLIER 
 12-12-2023,People - Ageing Well,Pathways Care and Support Services Ltd,Supported Other Accommodation - Private Contractors Payment,2086.56,0.00,COMMERCIAL SUPPLIER 
 12-12-2023,People - Ageing Well,Endsleigh Care Ltd,Residential Placements - Private Contractors Payment,2096.12,0.00,COMMERCIAL SUPPLIER 
 06-12-2023,People - Ageing Well,Premier Carewaiting Ltd,Home Care - Private Contractors Payment,2096.69,0.00,COMMERCIAL SUPPLIER 
 11-12-2023,People - Ageing Well,Prestige Care & Support Ltd,Home Care - Private Contractors Payment,2097.44,0.00,COMMERCIAL SUPPLIER 
 12-12-2023,People - Ageing Well,Cygnet (OE) Ltd ,Residential Placements - Private Contractors Payment,2100.00,0.00,COMMERCIAL SUPPLIER 
 04-12-2023,People - Ageing Well,Certified Healthcare Solutions Ltd t/a In Home Care Havering,Home Care - Private Contractors Payment,2118.52,0.00,COMMERCIAL SUPPLIER 
 05-12-2023,People - Ageing Well,Livingstone Health Care Services,Home Care - Private Contractors Payment,2129.43,0.00,COMMERCIAL SUPPLIER 
 05-12-2023,People - Ageing Well,Livingstone Health Care Services,Home Care - Private Contractors Payment,2129.43,0.00,COMMERCIAL SUPPLIER 
 05-12-2023,People - Ageing Well,Livingstone Health Care Services,Home Care - Private Contractors Payment,2129.43,0.00,COMMERCIAL SUPPLIER 
 12-12-2023,People - Ageing Well,Ebony Health Care Services Limited,Supported Other Accommodation - Private Contractors Payment,2150.92,0.00,COMMERCIAL SUPPLIER 
 12-12-2023,People - Ageing Well,DMP Healthcare (Heatherbrook) Ltd,Nursing Homes - Private Contractors Payment,2156.04,0.00,NON COMMERCIAL SUPPLIER 
 12-12-2023,People - Ageing Well,Blueboard Care Services Ltd,Supported Other Accommodation - Private Contractors Payment,2159.12,0.00,COMMERCIAL SUPPLIER 
 12-12-2023,People - Ageing Well,Barleycroft Care Home Ltd,Nursing Homes - Private Contractors Payment,2160.00,0.00,COMMERCIAL SUPPLIER 
 03-12-2023,People - Ageing Well,Personal Information - Redacted,Home Care - Private Contractors Payment,2162.21,0.00,INDIVIDUALS 
 12-12-2023,People - Ageing Well,S&A Care Services Ltd.,Supported Other Accommodation - Private Contractors Payment,2177.28,0.00,COMMERCIAL SUPPLIER 
 12-12-2023,People - Ageing Well,DMP Healthcare (Cherry Orchard) Ltd,Residential Placements - Private Contractors Payment,2183.16,0.00,COMMERCIAL SUPPLIER 
 12-12-2023,People - Ageing Well,John Stanleys Care Agency Ltd,Home Care - Private Contractors Payment,2186.23,0.00,COMMERCIAL SUPPLIER 
 08-12-2023,People - Ageing Well,Home Support Services (Havering & Essex) Ltd,Home Care - Private Contractors Payment,2186.26,0.00,COMMERCIAL SUPPLIER 
 06-12-2023,People - Ageing Well,Hospiva Care & Associates Agency Ltd_a,Home Care - Private Contractors Payment,2192.07,0.00,COMMERCIAL SUPPLIER 
 12-12-2023,People - Ageing Well,Adjuvo Care Essex Ltd ,Supported Other Accommodation - Private Contractors Payment,2196.40,0.00,COMMERCIAL SUPPLIER 
 12-12-2023,People - Ageing Well,Lodge Lane Care Home Limited,Respite Care - Private Contractors Payment,2200.00,0.00,COMMERCIAL SUPPLIER 
 20-12-2023,People - Ageing Well,Trinity London Care Ltd,Daycare - Private Contractors Payment,2200.00,0.00,COMMERCIAL SUPPLIER 
 20-12-2023,People - Ageing Well,Trinity London Care Ltd,Daycare - Private Contractors Payment,2200.00,0.00,COMMERCIAL SUPPLIER 
 20-12-2023,People - Ageing Well,Trinity London Care Ltd,Daycare - Private Contractors Payment,2200.00,0.00,COMMERCIAL SUPPLIER 
 12-12-2023,People - Ageing Well,Cygnet Health Care,Residential Placements - Private Contractors Payment,2205.00,0.00,COMMERCIAL SUPPLIER 
 11-12-2023,People - Ageing Well,Outreach Support Services Ltd,Home Care - Private Contractors Payment,2205.89,0.00,COMMERCIAL SUPPLIER 
 12-12-2023,People - Ageing Well,Affinia Healthcare Ltd_a,Supported Other Accommodation - Private Contractors Payment,2217.96,0.00,COMMERCIAL SUPPLIER 
 12-12-2023,People - Ageing Well,Stable Family Home Trust,Supported Other Accommodation - Private Contractors Payment,2223.60,0.00,COMMERCIAL SUPPLIER 
 11-12-2023,People - Ageing Well,Prestige Care & Support Ltd,Home Care - Private Contractors Payment,2227.40,0.00,COMMERCIAL SUPPLIER 
